Workbook

Sheet Main
B10: 2020-07-09
B12: Sheet No. | C12: Template Name | D12: Summary
B13: 1 | C13: Future Intra | D13: For Intraday trading in F&O segment
B14: 2 | C14: Cash Intra | D14: For Intraday trading in cash market segment
B15: 3 | C15: Mid-cap Intra | D15: For Intraday trading in Mid-cap stocks
B16: 4 | C16: Bulk Deals | D16: Reveals Bulk Deals carried on NSE & BSE
B17: 5 | C17: Call Tracker
K27: `

Sheet Future Intra
M5: Back to Main Page
A6: FOR INTRA DAY TRADING | L6: =Main!B10 -> 2020-07-09
A9: Sr.no | B9: Sector | C9: Scrip | D9: CLOSE RATE | E9: Pivot Point | F9: Supports | I9: Resistances
B10: Sector | D10: Point | E10: Point | F10: S1 | G10: S2 | H10: S3 | I10: R1 | J10: R2 | K10: R3 | L10: HIGH | M10: LOW | N10: OI | O10: % Change in OI
A11: 1 | B11: Index | C11: BANKNIFTY | D11: 22610.75 | E11: 22753.95 | F11: 22389.65 | G11: 22168.55 | H11: 21804.25 | I11: 22975.05 | J11: 23339.35 | K11: 23560.45 | L11: 23118.25 | M11: 22532.85 | N11: 1616725 | O11: 7.10%
A12: 2 | B12: Index | C12: NIFTY | D12: 10696.30 | E12: 10733.33 | F12: 10637.97 | G12: 10579.63 | H12: 10484.27 | I12: 10791.67 | J12: 10887.03 | K12: 10945.37 | L12: 10828.7 | M12: 10675 | N12: 12617025 | O12: -3.70%
A13: 3 | B13: Cement | C13: ACC | D13: 1313.20 | E13: 1309.13 | F13: 1297.22 | G13: 1281.23 | H13: 1269.32 | I13: 1325.12 | J13: 1337.03 | K13: 1353.02 | L13: 1321.05 | M13: 1293.15 | N13: 2254000 | O13: -3.39%
A14: 4 | B14: Others | C14: ADANIENT | D14: 163.15 | E14: 164.80 | F14: 160.10 | G14: 157.05 | H14: 152.35 | I14: 167.85 | J14: 172.55 | K14: 175.60 | L14: 169.5 | M14: 161.75 | N14: 19304000 | O14: -4.94%
A15: 5 | B15: Others | C15: ADANIPORTS | D15: 342.15 | E15: 344.12 | F15: 338.28 | G15: 334.42 | H15: 328.58 | I15: 347.98 | J15: 353.82 | K15: 357.68 | L15: 349.95 | M15: 340.25 | N15: 30752500 | O15: 2.24%
A16: 6 | B16: Automobile | C16: AMARAJABAT | D16: 699.15 | E16: 702.60 | F16: 689.95 | G16: 680.75 | H16: 668.10 | I16: 711.80 | J16: 724.45 | K16: 733.65 | L16: 715.25 | M16: 693.4 | N16: 1543000 | O16: -3.38%
A17: 7 | B17: Cement | C17: AMBUJACEM | D17: 195.70 | E17: 195.13 | F17: 193.47 | G17: 191.23 | H17: 189.57 | I17: 197.37 | J17: 199.03 | K17: 201.27 | L17: 196.8 | M17: 192.9 | N17: 18249000 | O17: -2.56%
A18: 8 | B18: Others | C18: APOLLOHOSP | D18: 1398.45 | E18: 1406.78 | F18: 1379.77 | G18: 1361.08 | H18: 1334.07 | I18: 1425.47 | J18: 1452.48 | K18: 1471.17 | L18: 1433.8 | M18: 1388.1 | N18: 917500 | O18: -10.66%
A19: 9 | B19: Automobile | C19: APOLLOTYRE | D19: 115.95 | E19: 116.98 | F19: 114.32 | G19: 112.68 | H19: 110.02 | I19: 118.62 | J19: 121.28 | K19: 122.92 | L19: 119.65 | M19: 115.35 | N19: 9945000 | O19: -7.27%
A20: 10 | B20: Automobile | C20: ASHOKLEY | D20: 52.00 | E20: 52.40 | F20: 51.30 | G20: 50.60 | H20: 49.50 | I20: 53.10 | J20: 54.20 | K20: 54.90 | L20: 53.5 | M20: 51.7 | N20: 43785000 | O20: -5.72%
A21: 11 | B21: FMCG | C21: ASIANPAINT | D21: 1692.25 | E21: 1713.13 | F21: 1667.27 | G21: 1642.28 | H21: 1596.42 | I21: 1738.12 | J21: 1783.98 | K21: 1808.97 | L21: 1759 | M21: 1688.15 | N21: 5344800 | O21: 0.06%
A22: 12 | B22: Pharma | C22: AUROPHARMA | D22: 804.50 | E22: 797.83 | F22: 784.92 | G22: 765.33 | H22: 752.42 | I22: 817.42 | J22: 830.33 | K22: 849.92 | L22: 810.75 | M22: 778.25 | N22: 12695800 | O22: 1.53%
A23: 13 | B23: Banking | C23: AXISBANK | D23: 444.85 | E23: 449.42 | F23: 436.83 | G23: 428.82 | H23: 416.23 | I23: 457.43 | J23: 470.02 | K23: 478.03 | L23: 462 | M23: 441.4 | N23: 62650800 | O23: -2.27%
A24: 14 | B24: Automobile | C24: BAJAJ-AUTO | D24: 2856.15 | E24: 2858.30 | F24: 2819.95 | G24: 2783.75 | H24: 2745.40 | I24: 2894.50 | J24: 2932.85 | K24: 2969.05 | L24: 2896.65 | M24: 2822.1 | N24: 1711750 | O24: -2.13%
A25: 15 | B25: Finance | C25: BAJAJFINSV | D25: 6408.35 | E25: 6491.25 | F25: 6304.50 | G25: 6200.65 | H25: 6013.90 | I25: 6595.10 | J25: 6781.85 | K25: 6885.70 | L25: 6678 | M25: 6387.4 | N25: 752125 | O25: -4.60%
A26: 16 | B26: Finance | C26: BAJFINANCE | D26: 3193.80 | E26: 3251.60 | F26: 3107.20 | G26: 3020.60 | H26: 2876.20 | I26: 3338.20 | J26: 3482.60 | K26: 3569.20 | L26: 3396 | M26: 3165 | N26: 7136750 | O26: 2.94%
A27: 17 | B27: Automobile | C27: BALKRISIND | D27: 1261.95 | E27: 1275.37 | F27: 1237.13 | G27: 1212.32 | H27: 1174.08 | I27: 1300.18 | J27: 1338.42 | K27: 1363.23 | L27: 1313.6 | M27: 1250.55 | N27: 1256000 | O27: 8.05%
A28: 18 | B28: Banking | C28: BANDHANBNK | D28: 379.65 | E28: 385.05 | F28: 370.80 | G28: 361.95 | H28: 347.70 | I28: 393.90 | J28: 408.15 | K28: 417.00 | L28: 399.3 | M28: 376.2 | N28: 11406600 | O28: -2.73%
A29: 19 | B29: Banking | C29: BANKBARODA | D29: 52.95 | E29: 52.73 | F29: 51.12 | G29: 49.28 | H29: 47.67 | I29: 54.57 | J29: 56.18 | K29: 58.02 | L29: 54.35 | M29: 50.9 | N29: 40680200 | O29: -3.61%
A30: 20 | B30: FMCG | C30: BATAINDIA | D30: 1291.15 | E30: 1301.90 | F30: 1274.30 | G30: 1257.45 | H30: 1229.85 | I30: 1318.75 | J30: 1346.35 | K30: 1363.20 | L30: 1329.5 | M30: 1285.05 | N30: 1819950 | O30: -5.51%
A31: 21 | B31: Capital_Goods | C31: BEL | D31: 103.75 | E31: 103.38 | F31: 101.27 | G31: 98.78 | H31: 96.67 | I31: 105.87 | J31: 107.98 | K31: 110.47 | L31: 105.5 | M31: 100.9 | N31: 24190800 | O31: 2.64%
A32: 22 | B32: FMCG | C32: BERGEPAINT | D32: 499.80 | E32: 505.35 | F32: 493.05 | G32: 486.30 | H32: 474.00 | I32: 512.10 | J32: 524.40 | K32: 531.15 | L32: 517.65 | M32: 498.6 | N32: 4580400 | O32: 0.95%
A33: 23 | B33: Automobile | C33: BHARATFORG | D33: 362.75 | E33: 367.48 | F33: 356.52 | G33: 350.28 | H33: 339.32 | I33: 373.72 | J33: 384.68 | K33: 390.92 | L33: 378.45 | M33: 361.25 | N33: 6306000 | O33: 3.39%
A34: 24 | B34: Telecom | C34: BHARTIARTL | D34: 563.35 | E34: 566.27 | F34: 557.28 | G34: 551.22 | H34: 542.23 | I34: 572.33 | J34: 581.32 | K34: 587.38 | L34: 575.25 | M34: 560.2 | N34: 87791079 | O34: 0.24%
A35: 25 | B35: Capital_Goods | C35: BHEL | D35: 41.20 | E35: 41.73 | F35: 40.47 | G35: 39.73 | H35: 38.47 | I35: 42.47 | J35: 43.73 | K35: 44.47 | L35: 43 | M35: 41 | N35: 52584000 | O35: -9.93%
A36: 26 | B36: Pharma | C36: BIOCON | D36: 403.45 | E36: 405.97 | F36: 399.98 | G36: 396.52 | H36: 390.53 | I36: 409.43 | J36: 415.42 | K36: 418.88 | L36: 411.95 | M36: 402.5 | N36: 14858000 | O36: 0.02%
A37: 27 | B37: Automobile | C37: BOSCHLTD | D37: 13499.40 | E37: 13416.48 | F37: 13123.02 | G37: 12746.63 | H37: 12453.17 | I37: 13792.87 | J37: 14086.33 | K37: 14462.72 | L37: 13709.95 | M37: 13040.1 | N37: 117450 | O37: -0.93%
A38: 28 | B38: Oil_Gas | C38: BPCL | D38: 379.10 | E38: 381.85 | F38: 374.35 | G38: 369.60 | H38: 362.10 | I38: 386.60 | J38: 394.10 | K38: 398.85 | L38: 389.35 | M38: 377.1 | N38: 18106200 | O38: -0.95%
A39: 29 | B39: FMCG | C39: BRITANNIA | D39: 3694.00 | E39: 3682.27 | F39: 3648.63 | G39: 3603.27 | H39: 3569.63 | I39: 3727.63 | J39: 3761.27 | K39: 3806.63 | L39: 3715.9 | M39: 3636.9 | N39: 1577800 | O39: -2.05%
A40: 30 | B40: Pharma | C40: CADILAHC | D40: 361.20 | E40: 362.60 | F40: 357.90 | G40: 354.60 | H40: 349.90 | I40: 365.90 | J40: 370.60 | K40: 373.90 | L40: 367.3 | M40: 359.3 | N40: 6314000 | O40: -4.33%
A41: 31 | B41: Banking | C41: CANBK | D41: 109.45 | E41: 109.33 | F41: 104.67 | G41: 99.88 | H41: 95.22 | I41: 114.12 | J41: 118.78 | K41: 123.57 | L41: 114 | M41: 104.55 | N41: 13940000 | O41: 36.27%
A42: 32 | B42: Textile | C42: CENTURYTEX | D42: 309.95 | E42: 312.98 | F42: 306.22 | G42: 302.48 | H42: 295.72 | I42: 316.72 | J42: 323.48 | K42: 327.22 | L42: 319.75 | M42: 309.25 | N42: 2833600 | O42: 1.81%
A43: 33 | B43: Finance | C43: CHOLAFIN | D43: 204.10 | E43: 207.75 | F43: 198.50 | G43: 192.90 | H43: 183.65 | I43: 213.35 | J43: 222.60 | K43: 228.20 | L43: 217 | M43: 202.15 | N43: 7062500 | O43: -7.22%
A44: 34 | B44: Pharma | C44: CIPLA | D44: 637.10 | E44: 640.23 | F44: 632.47 | G44: 627.83 | H44: 620.07 | I44: 644.87 | J44: 652.63 | K44: 657.27 | L44: 648 | M44: 635.6 | N44: 11937900 | O44: 5.04%
A45: 35 | B45: Others | C45: COALINDIA | D45: 133.40 | E45: 133.47 | F45: 131.88 | G45: 130.37 | H45: 128.78 | I45: 134.98 | J45: 136.57 | K45: 138.08 | L45: 135.05 | M45: 131.95 | N45: 35009400 | O45: -1.20%
A46: 36 | B46: FMCG | C46: COLPAL | D46: 1392.00 | E46: 1392.77 | F46: 1377.63 | G46: 1363.27 | H46: 1348.13 | I46: 1407.13 | J46: 1422.27 | K46: 1436.63 | L46: 1407.9 | M46: 1378.4 | N46: 2752400 | O46: -2.21%
A47: 37 | B47: Others | C47: CONCOR | D47: 437.55 | E47: 435.18 | F47: 422.37 | G47: 407.18 | H47: 394.37 | I47: 450.37 | J47: 463.18 | K47: 478.37 | L47: 448 | M47: 420 | N47: 5647119 | O47: 9.09%
A48: 38 | B48: Capital_Goods | C48: CUMMINSIND | D48: 411.75 | E48: 415.22 | F48: 403.83 | G48: 395.92 | H48: 384.53 | I48: 423.13 | J48: 434.52 | K48: 442.43 | L48: 426.6 | M48: 407.3 | N48: 1839600 | O48: -4.90%
A49: 39 | B49: FMCG | C49: DABUR | D49: 474.40 | E49: 476.65 | F49: 470.75 | G49: 467.10 | H49: 461.20 | I49: 480.30 | J49: 486.20 | K49: 489.85 | L49: 482.55 | M49: 473 | N49: 13175000 | O49: 0.27%
A50: 40 | B50: Pharma | C50: DIVISLAB | D50: 2167.25 | E50: 2176.77 | F50: 2136.63 | G50: 2106.02 | H50: 2065.88 | I50: 2207.38 | J50: 2247.52 | K50: 2278.13 | L50: 2216.9 | M50: 2146.15 | N50: 4665600 | O50: -1.17%
A51: 41 | B51: Realty | C51: DLF | D51: 146.50 | E51: 148.90 | F51: 143.20 | G51: 139.90 | H51: 134.20 | I51: 152.20 | J51: 157.90 | K51: 161.20 | L51: 154.6 | M51: 145.6 | N51: 30571200 | O51: 5.69%
A52: 42 | B52: Pharma | C52: DRREDDY | D52: 3871.40 | E52: 3866.70 | F52: 3811.45 | G52: 3751.50 | H52: 3696.25 | I52: 3926.65 | J52: 3981.90 | K52: 4041.85 | L52: 3921.95 | M52: 3806.75 | N52: 3585250 | O52: -2.98%
A53: 43 | B53: Automobile | C53: EICHERMOT | D53: 19458.65 | E53: 19648.32 | F53: 19221.33 | G53: 18984.02 | H53: 18557.03 | I53: 19885.63 | J53: 20312.62 | K53: 20549.93 | L53: 20075.3 | M53: 19411 | N53: 283535 | O53: -0.05%
A54: 44 | B54: Finance | C54: EQUITAS | D54: 56.75 | E54: 57.73 | F54: 55.52 | G54: 54.28 | H54: 52.07 | I54: 58.97 | J54: 61.18 | K54: 62.42 | L54: 59.95 | M54: 56.5 | N54: 13809200 | O54: -17.97%
A55: 45 | B55: Automobile | C55: ESCORTS | D55: 1087.25 | E55: 1095.25 | F55: 1074.00 | G55: 1060.75 | H55: 1039.50 | I55: 1108.50 | J55: 1129.75 | K55: 1143.00 | L55: 1116.5 | M55: 1082 | N55: 2608100 | O55: -13.37%
A56: 46 | B56: Automobile | C56: EXIDEIND | D56: 155.05 | E56: 155.58 | F56: 153.92 | G56: 152.78 | H56: 151.12 | I56: 156.72 | J56: 158.38 | K56: 159.52 | L56: 157.25 | M56: 154.45 | N56: 11635200 | O56: -2.88%
A57: 47 | B57: Banking | C57: FEDERALBNK | D57: 54.55 | E57: 55.05 | F57: 53.70 | G57: 52.85 | H57: 51.50 | I57: 55.90 | J57: 57.25 | K57: 58.10 | L57: 56.4 | M57: 54.2 | N57: 59219500 | O57: 0.23%
A58: 48 | B58: Oil_Gas | C58: GAIL | D58: 103.00 | E58: 103.30 | F58: 101.95 | G58: 100.90 | H58: 99.55 | I58: 104.35 | J58: 105.70 | K58: 106.75 | L58: 104.65 | M58: 102.25 | N58: 33495100 | O58: 2.39%
A59: 49 | B59: Pharma | C59: GLENMARK | D59: 425.35 | E59: 424.45 | F59: 419.90 | G59: 414.45 | H59: 409.90 | I59: 429.90 | J59: 434.45 | K59: 439.90 | L59: 429 | M59: 419 | N59: 5526900 | O59: -2.40%
A60: 50 | B60: Infrastructure | C60: GMRINFRA | D60: 20.95 | E60: 21.17 | F60: 20.58 | G60: 20.22 | H60: 19.63 | I60: 21.53 | J60: 22.12 | K60: 22.48 | L60: 21.75 | M60: 20.8 | N60: 96570000 | O60: -2.28%
A61: 51 | B61: FMCG | C61: GODREJCP | D61: 698.00 | E61: 700.60 | F61: 692.80 | G61: 687.60 | H61: 679.80 | I61: 705.80 | J61: 713.60 | K61: 718.80 | L61: 708.4 | M61: 695.4 | N61: 7307000 | O61: -2.64%
A62: 52 | B62: Others | C62: GODREJPROP | D62: 873.00 | E62: 879.70 | F62: 864.35 | G62: 855.70 | H62: 840.35 | I62: 888.35 | J62: 903.70 | K62: 912.35 | L62: 895.05 | M62: 871.05 | N62: 336050 | O62: -4.08%
A63: 53 | B63: Cement | C63: GRASIM | D63: 610.75 | E63: 616.95 | F63: 601.75 | G63: 592.75 | H63: 577.55 | I63: 625.95 | J63: 641.15 | K63: 650.15 | L63: 632.15 | M63: 607.95 | N63: 18627600 | O63: 1.05%
A64: 54 | B64: Others | C64: HAVELLS | D64: 583.20 | E64: 590.03 | F64: 575.17 | G64: 567.13 | H64: 552.27 | I64: 598.07 | J64: 612.93 | K64: 620.97 | L64: 604.9 | M64: 582 | N64: 5355000 | O64: -1.02%
A65: 55 | B65: Technology | C65: HCLTECH | D65: 575.20 | E65: 579.95 | F65: 568.50 | G65: 561.80 | H65: 550.35 | I65: 586.65 | J65: 598.10 | K65: 604.80 | L65: 591.4 | M65: 573.25 | N65: 20847400 | O65: 0.41%
A66: 56 | B66: Finance | C66: HDFC | D66: 1867.75 | E66: 1871.13 | F66: 1853.82 | G66: 1839.88 | H66: 1822.57 | I66: 1885.07 | J66: 1902.38 | K66: 1916.32 | L66: 1888.45 | M66: 1857.2 | N66: 29429100 | O66: -0.46%
A67: 57 | B67: Banking | C67: HDFCBANK | D67: 1106.70 | E67: 1111.40 | F67: 1097.60 | G67: 1088.50 | H67: 1074.70 | I67: 1120.50 | J67: 1134.30 | K67: 1143.40 | L67: 1125.2 | M67: 1102.3 | N67: 43940600 | O67: 0.74%
A68: 58 | B68: Finance | C68: HDFCLIFE | D68: 583.25 | E68: 587.03 | F68: 576.47 | G68: 569.68 | H68: 559.12 | I68: 593.82 | J68: 604.38 | K68: 611.17 | L68: 597.6 | M68: 580.25 | N68: 12861200 | O68: 0.33%
A69: 59 | B69: Automobile | C69: HEROMOTOCO | D69: 2704.75 | E69: 2718.90 | F69: 2683.85 | G69: 2662.95 | H69: 2627.90 | I69: 2739.80 | J69: 2774.85 | K69: 2795.75 | L69: 2753.95 | M69: 2698 | N69: 2405400 | O69: -2.59%
A70: 60 | B70: Metals | C70: HINDALCO | D70: 155.55 | E70: 155.62 | F70: 152.48 | G70: 149.42 | H70: 146.28 | I70: 158.68 | J70: 161.82 | K70: 164.88 | L70: 158.75 | M70: 152.55 | N70: 37014400 | O70: 4.45%
A71: 61 | B71: Oil_Gas | C71: HINDPETRO | D71: 212.00 | E71: 213.17 | F71: 209.83 | G71: 207.67 | H71: 204.33 | I71: 215.33 | J71: 218.67 | K71: 220.83 | L71: 216.5 | M71: 211 | N71: 23827500 | O71: -0.56%
A72: 62 | B72: FMCG | C72: HINDUNILVR | D72: 2188.30 | E72: 2173.68 | F72: 2144.42 | G72: 2100.53 | H72: 2071.27 | I72: 2217.57 | J72: 2246.83 | K72: 2290.72 | L72: 2202.95 | M72: 2129.8 | N72: 16991700 | O72: -1.59%
A73: 63 | B73: Finance | C73: IBULHSGFIN | D73: 229.05 | E73: 230.55 | F73: 225.20 | G73: 221.35 | H73: 216.00 | I73: 234.40 | J73: 239.75 | K73: 243.60 | L73: 235.9 | M73: 226.7 | N73: 12006300 | O73: -4.44%
A74: 64 | B74: Banking | C74: ICICIBANK | D74: 370.20 | E74: 372.95 | F74: 366.10 | G74: 362.00 | H74: 355.15 | I74: 377.05 | J74: 383.90 | K74: 388.00 | L74: 379.8 | M74: 368.85 | N74: 109425250 | O74: 0.04%
A75: 65 | B75: Finance | C75: ICICIPRULI | D75: 427.70 | E75: 430.60 | F75: 423.80 | G75: 419.90 | H75: 413.10 | I75: 434.50 | J75: 441.30 | K75: 445.20 | L75: 437.4 | M75: 426.7 | N75: 7587000 | O75: 0.76%
A76: 66 | B76: Telecom | C76: IDEA | D76: 9.30 | E76: 9.47 | F76: 8.98 | G76: 8.67 | H76: 8.18 | I76: 9.78 | J76: 10.27 | K76: 10.58 | L76: 9.95 | M76: 9.15 | N76: 319060000 | O76: -0.91%
A77: 67 | B77: Banking | C77: IDFCFIRSTB | D77: 27.95 | E77: 28.27 | F77: 27.43 | G77: 26.92 | H77: 26.08 | I77: 28.78 | J77: 29.62 | K77: 30.13 | L77: 29.1 | M77: 27.75 | N77: 113848000 | O77: -1.22%
A78: 68 | B78: Oil_Gas | C78: IGL | D78: 412.70 | E78: 413.88 | F78: 407.82 | G78: 402.93 | H78: 396.87 | I78: 418.77 | J78: 424.83 | K78: 429.72 | L78: 419.95 | M78: 409 | N78: 9091500 | O78: -1.39%
A79: 69 | B79: Others | C79: INDIGO | D79: 1041.75 | E79: 1047.02 | F79: 1023.03 | G79: 1004.32 | H79: 980.33 | I79: 1065.73 | J79: 1089.72 | K79: 1108.43 | L79: 1071 | M79: 1028.3 | N79: 2859500 | O79: 2.27%
A80: 70 | B80: Banking | C80: INDUSINDBK | D80: 554.90 | E80: 556.08 | F80: 531.82 | G80: 508.73 | H80: 484.47 | I80: 579.17 | J80: 603.43 | K80: 626.52 | L80: 580.35 | M80: 533 | N80: 34120000 | O80: 0.19%
A81: 71 | B81: Telecom | C81: INFRATEL | D81: 219.85 | E81: 221.33 | F81: 217.62 | G81: 215.38 | H81: 211.67 | I81: 223.57 | J81: 227.28 | K81: 229.52 | L81: 225.05 | M81: 219.1 | N81: 10472000 | O81: 0.32%
A82: 72 | B82: Technology | C82: INFY | D82: 771.40 | E82: 774.03 | F82: 766.97 | G82: 762.53 | H82: 755.47 | I82: 778.47 | J82: 785.53 | K82: 789.97 | L82: 781.1 | M82: 769.6 | N82: 51444000 | O82: 1.09%
A83: 73 | B83: Oil_Gas | C83: IOC | D83: 87.20 | E83: 87.53 | F83: 85.67 | G83: 84.13 | H83: 82.27 | I83: 89.07 | J83: 90.93 | K83: 92.47 | L83: 89.4 | M83: 86 | N83: 54908100 | O83: -2.64%
A84: 74 | B84: FMCG | C84: ITC | D84: 196.75 | E84: 196.75 | F84: 194.60 | G84: 192.45 | H84: 190.30 | I84: 198.90 | J84: 201.05 | K84: 203.20 | L84: 198.9 | M84: 194.6 | N84: 87952000 | O84: -1.92%
A85: 75 | B85: Metals | C85: JINDALSTEL | D85: 156.95 | E85: 158.82 | F85: 153.88 | G85: 150.82 | H85: 145.88 | I85: 161.88 | J85: 166.82 | K85: 169.88 | L85: 163.75 | M85: 155.75 | N85: 18735000 | O85: 7.21%
A86: 76 | B86: Metals | C86: JSWSTEEL | D86: 195.85 | E86: 196.85 | F86: 190.80 | G86: 185.75 | H86: 179.70 | I86: 201.90 | J86: 207.95 | K86: 213.00 | L86: 202.9 | M86: 191.8 | N86: 45103500 | O86: -0.57%
A87: 77 | B87: Others | C87: JUBLFOOD | D87: 1693.10 | E87: 1708.35 | F87: 1657.20 | G87: 1621.30 | H87: 1570.15 | I87: 1744.25 | J87: 1795.40 | K87: 1831.30 | L87: 1759.5 | M87: 1672.45 | N87: 2403000 | O87: 2.60%
A88: 78 | B88: Others | C88: JUSTDIAL | D88: 374.00 | E88: 377.50 | F88: 369.50 | G88: 365.00 | H88: 357.00 | I88: 382.00 | J88: 390.00 | K88: 394.50 | L88: 385.5 | M88: 373 | N88: 1387400 | O88: -6.42%
A89: 79 | B89: Banking | C89: KOTAKBANK | D89: 1355.70 | E89: 1361.23 | F89: 1344.47 | G89: 1333.23 | H89: 1316.47 | I89: 1372.47 | J89: 1389.23 | K89: 1400.47 | L89: 1378 | M89: 1350 | N89: 8468400 | O89: -1.74%
A90: 80 | B90: Finance | C90: L&TFH | D90: 71.05 | E90: 72.28 | F90: 69.42 | G90: 67.78 | H90: 64.92 | I90: 73.92 | J90: 76.78 | K90: 78.42 | L90: 75.15 | M90: 70.65 | N90: 36053600 | O90: 5.87%
A91: 81 | B91: Finance | C91: LICHSGFIN | D91: 282.50 | E91: 284.38 | F91: 275.07 | G91: 267.63 | H91: 258.32 | I91: 291.82 | J91: 301.13 | K91: 308.57 | L91: 293.7 | M91: 276.95 | N91: 9016000 | O91: 9.05%
A92: 82 | B92: Capital_Goods | C92: LT | D92: 942.45 | E92: 949.48 | F92: 931.47 | G92: 920.48 | H92: 902.47 | I92: 960.47 | J92: 978.48 | K92: 989.47 | L92: 967.5 | M92: 938.5 | N92: 9955000 | O92: 1.74%
A93: 83 | B93: Pharma | C93: LUPIN | D93: 867.40 | E93: 874.00 | F93: 857.00 | G93: 846.60 | H93: 829.60 | I93: 884.40 | J93: 901.40 | K93: 911.80 | L93: 891 | M93: 863.6 | N93: 8468550 | O93: -3.64%
A94: 84 | B94: Automobile | C94: M&M | D94: 550.45 | E94: 554.98 | F94: 543.97 | G94: 537.48 | H94: 526.47 | I94: 561.47 | J94: 572.48 | K94: 578.97 | L94: 566 | M94: 548.5 | N94: 18758600 | O94: -2.71%
A95: 85 | B95: Finance | C95: M&MFIN | D95: 201.05 | E95: 204.35 | F95: 196.20 | G95: 191.35 | H95: 183.20 | I95: 209.20 | J95: 217.35 | K95: 222.20 | L95: 212.5 | M95: 199.5 | N95: 11917500 | O95: -14.37%
A96: 86 | B96: Finance | C96: MANAPPURAM | D96: 158.15 | E96: 159.98 | F96: 154.97 | G96: 151.78 | H96: 146.77 | I96: 163.17 | J96: 168.18 | K96: 171.37 | L96: 165 | M96: 156.8 | N96: 15576000 | O96: -3.67%
A97: 87 | B97: FMCG | C97: MARICO | D97: 350.30 | E97: 351.33 | F97: 348.12 | G97: 345.93 | H97: 342.72 | I97: 353.52 | J97: 356.73 | K97: 358.92 | L97: 354.55 | M97: 349.15 | N97: 11788000 | O97: -3.12%
A98: 88 | B98: Automobile | C98: MARUTI | D98: 6063.30 | E98: 6115.90 | F98: 5995.45 | G98: 5927.60 | H98: 5807.15 | I98: 6183.75 | J98: 6304.20 | K98: 6372.05 | L98: 6236.35 | M98: 6048.05 | N98: 2826700 | O98: -1.98%
A99: 89 | B99: FMCG | C99: MCDOWELL-N | D99: 615.65 | E99: 613.15 | F99: 597.55 | G99: 579.45 | H99: 563.85 | I99: 631.25 | J99: 646.85 | K99: 664.95 | L99: 628.75 | M99: 595.05 | N99: 16323750 | O99: 2.22%
A100: 90 | B100: Finance | C100: MFSL | D100: 548.75 | E100: 551.37 | F100: 543.73 | G100: 538.72 | H100: 531.08 | I100: 556.38 | J100: 564.02 | K100: 569.03 | L100: 559 | M100: 546.35 | N100: 1623700 | O100: -4.07%
A101: 91 | B101: Oil_Gas | C101: MGL | D101: 1009.05 | E101: 1013.68 | F101: 997.37 | G101: 985.68 | H101: 969.37 | I101: 1025.37 | J101: 1041.68 | K101: 1053.37 | L101: 1030 | M101: 1002 | N101: 856800 | O101: 1.49%
A102: 92 | B102: Technology | C102: MINDTREE | D102: 986.20 | E102: 986.05 | F102: 975.50 | G102: 964.80 | H102: 954.25 | I102: 996.75 | J102: 1007.30 | K102: 1018.00 | L102: 996.6 | M102: 975.35 | N102: 1504000 | O102: -5.72%
A103: 93 | B103: Automobile | C103: MOTHERSUMI | D103: 96.75 | E103: 97.55 | F103: 95.70 | G103: 94.65 | H103: 92.80 | I103: 98.60 | J103: 100.45 | K103: 101.50 | L103: 99.4 | M103: 96.5 | N103: 29806000 | O103: -0.70%
A104: 94 | B104: Automobile | C104: MRF | D104: 65484.75 | E104: 66108.42 | F104: 64649.33 | G104: 63813.92 | H104: 62354.83 | I104: 66943.83 | J104: 68402.92 | K104: 69238.33 | L104: 67567.5 | M104: 65273 | N104: 14900 | O104: -5.87%
A105: 95 | B105: Finance | C105: MUTHOOTFIN | D105: 1089.70 | E105: 1097.80 | F105: 1078.95 | G105: 1068.20 | H105: 1049.35 | I105: 1108.55 | J105: 1127.40 | K105: 1138.15 | L105: 1116.65 | M105: 1087.05 | N105: 3580500 | O105: 3.49%
A106: 96 | B106: Metals | C106: NATIONALUM | D106: 35.90 | E106: 35.48 | F106: 33.92 | G106: 31.93 | H106: 30.37 | I106: 37.47 | J106: 39.03 | K106: 41.02 | L106: 37.05 | M106: 33.5 | N106: 40732000 | O106: 9.31%
A107: 97 | B107: Others | C107: NAUKRI | D107: 2858.10 | E107: 2873.72 | F107: 2819.68 | G107: 2781.27 | H107: 2727.23 | I107: 2912.13 | J107: 2966.17 | K107: 3004.58 | L107: 2927.75 | M107: 2835.3 | N107: 729000 | O107: -1.29%
A108: 98 | B108: Infrastructure | C108: NCC | D108: 32.70 | E108: 33.18 | F108: 32.02 | G108: 31.33 | H108: 30.17 | I108: 33.87 | J108: 35.03 | K108: 35.72 | L108: 34.35 | M108: 32.5 | N108: 20748000 | O108: -5.54%
A109: 99 | B109: FMCG | C109: NESTLEIND | D109: 16874.80 | E109: 16948.27 | F109: 16726.53 | G109: 16578.27 | H109: 16356.53 | I109: 17096.53 | J109: 17318.27 | K109: 17466.53 | L109: 17170 | M109: 16800 | N109: 591250 | O109: 0.99%
A110: 100 | B110: Technology | C110: NIITTECH | D110: 1537.40 | E110: 1527.83 | F110: 1503.17 | G110: 1468.93 | H110: 1444.27 | I110: 1562.07 | J110: 1586.73 | K110: 1620.97 | L110: 1552.5 | M110: 1493.6 | N110: 540000 | O110: -6.68%
A111: 101 | B111: Metals | C111: NMDC | D111: 84.95 | E111: 85.07 | F111: 82.18 | G111: 79.42 | H111: 76.53 | I111: 87.83 | J111: 90.72 | K111: 93.48 | L111: 87.95 | M111: 82.3 | N111: 32307400 | O111: 1.11%
A112: 102 | B112: Power | C112: NTPC | D112: 91.45 | E112: 91.93 | F112: 90.77 | G112: 90.08 | H112: 88.92 | I112: 92.62 | J112: 93.78 | K112: 94.47 | L112: 93.1 | M112: 91.25 | N112: 67847100 | O112: 3.89%
A113: 103 | B113: Oil_Gas | C113: ONGC | D113: 81.50 | E113: 81.97 | F113: 80.68 | G113: 79.87 | H113: 78.58 | I113: 82.78 | J113: 84.07 | K113: 84.88 | L113: 83.25 | M113: 81.15 | N113: 62162100 | O113: -0.75%
A114: 104 | B114: Textile | C114: PAGEIND | D114: 20067.70 | E114: 20291.07 | F114: 19776.63 | G114: 19485.57 | H114: 18971.13 | I114: 20582.13 | J114: 21096.57 | K114: 21387.63 | L114: 20805.5 | M114: 20000 | N114: 112470 | O114: 3.19%
A115: 105 | B115: Pharma | C115: PEL | D115: 1421.30 | E115: 1432.00 | F115: 1399.30 | G115: 1377.30 | H115: 1344.60 | I115: 1454.00 | J115: 1486.70 | K115: 1508.70 | L115: 1464.7 | M115: 1410 | N115: 3555750 | O115: -1.36%
A116: 106 | B116: Oil_Gas | C116: PETRONET | D116: 257.65 | E116: 255.68 | F116: 252.47 | G116: 247.28 | H116: 244.07 | I116: 260.87 | J116: 264.08 | K116: 269.27 | L116: 258.9 | M116: 250.5 | N116: 15645000 | O116: 0.23%
A117: 107 | B117: Finance | C117: PFC | D117: 84.75 | E117: 85.38 | F117: 83.82 | G117: 82.88 | H117: 81.32 | I117: 86.32 | J117: 87.88 | K117: 88.82 | L117: 86.95 | M117: 84.45 | N117: 51094200 | O117: 2.69%
A118: 108 | B118: FMCG | C118: PIDILITIND | D118: 1388.70 | E118: 1395.07 | F118: 1374.18 | G118: 1359.67 | H118: 1338.78 | I118: 1409.58 | J118: 1430.47 | K118: 1444.98 | L118: 1415.95 | M118: 1380.55 | N118: 3347500 | O118: 0.03%
A119: 109 | B119: Banking | C119: PNB | D119: 37.40 | E119: 37.67 | F119: 36.38 | G119: 35.37 | H119: 34.08 | I119: 38.68 | J119: 39.97 | K119: 40.98 | L119: 38.95 | M119: 36.65 | N119: 59136000 | O119: 5.47%
A120: 110 | B120: Power | C120: POWERGRID | D120: 170.40 | E120: 171.43 | F120: 168.62 | G120: 166.83 | H120: 164.02 | I120: 173.22 | J120: 176.03 | K120: 177.82 | L120: 174.25 | M120: 169.65 | N120: 32804000 | O120: 0.96%
A121: 111 | B121: Media | C121: PVR | D121: 1041.55 | E121: 1047.85 | F121: 1029.75 | G121: 1017.95 | H121: 999.85 | I121: 1059.65 | J121: 1077.75 | K121: 1089.55 | L121: 1065.95 | M121: 1036.05 | N121: 1480800 | O121: 2.29%
A122: 112 | B122: Cement | C122: RAMCOCEM | D122: 642.95 | E122: 646.82 | F122: 637.63 | G122: 632.32 | H122: 623.13 | I122: 652.13 | J122: 661.32 | K122: 666.63 | L122: 656 | M122: 641.5 | N122: 995350 | O122: -3.38%
A123: 113 | B123: Banking | C123: RBLBANK | D123: 187.10 | E123: 190.25 | F123: 182.40 | G123: 177.70 | H123: 169.85 | I123: 194.95 | J123: 202.80 | K123: 207.50 | L123: 198.1 | M123: 185.55 | N123: 20540000 | O123: -1.63%
A124: 114 | B124: Power | C124: RECLTD | D124: 108.00 | E124: 108.82 | F124: 106.58 | G124: 105.17 | H124: 102.93 | I124: 110.23 | J124: 112.47 | K124: 113.88 | L124: 111.05 | M124: 107.4 | N124: 18012000 | O124: 7.02%
A125: 115 | B125: Oil_Gas | C125: RELIANCE | D125: 1804.45 | E125: 1812.90 | F125: 1788.70 | G125: 1772.95 | H125: 1748.75 | I125: 1828.65 | J125: 1852.85 | K125: 1868.60 | L125: 1837.1 | M125: 1797.15 | N125: 42232140 | O125: -1.42%
A126: 116 | B126: Metals | C126: SAIL | D126: 35.50 | E126: 35.45 | F126: 33.15 | G126: 30.80 | H126: 28.50 | I126: 37.80 | J126: 40.10 | K126: 42.45 | L126: 37.75 | M126: 33.1 | N126: 58064000 | O126: 27.28%
A127: 117 | B127: Finance | C127: SBILIFE | D127: 853.90 | E127: 858.07 | F127: 845.98 | G127: 838.07 | H127: 825.98 | I127: 865.98 | J127: 878.07 | K127: 885.98 | L127: 870.15 | M127: 850.15 | N127: 5991750 | O127: -0.62%
A128: 118 | B128: Banking | C128: SBIN | D128: 192.60 | E128: 193.32 | F128: 188.28 | G128: 183.97 | H128: 178.93 | I128: 197.63 | J128: 202.67 | K128: 206.98 | L128: 198.35 | M128: 189 | N128: 120543000 | O128: 8.86%
A129: 119 | B129: Cement | C129: SHREECEM | D129: 22536.90 | E129: 22666.35 | F129: 22352.80 | G129: 22168.70 | H129: 21855.15 | I129: 22850.45 | J129: 23164.00 | K129: 23348.10 | L129: 22979.9 | M129: 22482.25 | N129: 141150 | O129: -0.49%
A130: 120 | B130: Capital_Goods | C130: SIEMENS | D130: 1156.20 | E130: 1161.70 | F130: 1134.55 | G130: 1112.90 | H130: 1085.75 | I130: 1183.35 | J130: 1210.50 | K130: 1232.15 | L130: 1188.85 | M130: 1140.05 | N130: 2225850 | O130: -5.80%
A131: 121 | B131: Textile | C131: SRF | D131: 3917.40 | E131: 3947.82 | F131: 3841.63 | G131: 3765.87 | H131: 3659.68 | I131: 4023.58 | J131: 4129.77 | K131: 4205.53 | L131: 4054 | M131: 3872.05 | N131: 608500 | O131: 5.78%
A132: 122 | B132: Finance | C132: SRTRANSFIN | D132: 751.90 | E132: 754.97 | F132: 726.33 | G132: 700.77 | H132: 672.13 | I132: 780.53 | J132: 809.17 | K132: 834.73 | L132: 783.6 | M132: 729.4 | N132: 2490150 | O132: -12.37%
A133: 123 | B133: Pharma | C133: SUNPHARMA | D133: 484.15 | E133: 484.72 | F133: 480.43 | G133: 476.72 | H133: 472.43 | I133: 488.43 | J133: 492.72 | K133: 496.43 | L133: 489 | M133: 481 | N133: 29531600 | O133: -2.16%
A134: 124 | B134: Media | C134: SUNTV | D134: 391.55 | E134: 392.57 | F134: 386.68 | G134: 381.82 | H134: 375.93 | I134: 397.43 | J134: 403.32 | K134: 408.18 | L134: 398.45 | M134: 387.7 | N134: 5208000 | O134: -2.22%
A135: 125 | B135: Fertilisers | C135: TATACHEM | D135: 313.55 | E135: 315.50 | F135: 310.30 | G135: 307.05 | H135: 301.85 | I135: 318.75 | J135: 323.95 | K135: 327.20 | L135: 320.7 | M135: 312.25 | N135: 3576000 | O135: 29.57%
A136: 126 | B136: Others | C136: TATACONSUM | D136: 432.75 | E136: 428.52 | F136: 419.23 | G136: 405.72 | H136: 396.43 | I136: 442.03 | J136: 451.32 | K136: 464.83 | L136: 437.8 | M136: 415 | N136: 15387300 | O136: 4.51%
A137: 127 | B137: Automobile | C137: TATAMOTORS | D137: 105.60 | E137: 107.05 | F137: 103.15 | G137: 100.70 | H137: 96.80 | I137: 109.50 | J137: 113.40 | K137: 115.85 | L137: 110.95 | M137: 104.6 | N137: 92197500 | O137: -1.13%
A138: 128 | B138: Power | C138: TATAPOWER | D138: 50.70 | E138: 50.38 | F138: 49.62 | G138: 48.53 | H138: 47.77 | I138: 51.47 | J138: 52.23 | K138: 53.32 | L138: 51.15 | M138: 49.3 | N138: 50341500 | O138: -3.62%
A139: 129 | B139: Metals | C139: TATASTEEL | D139: 335.45 | E139: 338.30 | F139: 329.25 | G139: 323.05 | H139: 314.00 | I139: 344.50 | J139: 353.55 | K139: 359.75 | L139: 347.35 | M139: 332.1 | N139: 16136400 | O139: -6.54%
A140: 130 | B140: Technology | C140: TCS | D140: 2204.00 | E140: 2218.93 | F140: 2182.92 | G140: 2161.83 | H140: 2125.82 | I140: 2240.02 | J140: 2276.03 | K140: 2297.12 | L140: 2254.95 | M140: 2197.85 | N140: 9960000 | O140: 1.37%
A141: 131 | B141: Technology | C141: TECHM | D141: 579.15 | E141: 579.73 | F141: 570.97 | G141: 562.78 | H141: 554.02 | I141: 587.92 | J141: 596.68 | K141: 604.87 | L141: 588.5 | M141: 571.55 | N141: 17116800 | O141: -0.75%
A142: 132 | B142: FMCG | C142: TITAN | D142: 995.15 | E142: 1005.72 | F142: 980.48 | G142: 965.82 | H142: 940.58 | I142: 1020.38 | J142: 1045.62 | K142: 1060.28 | L142: 1030.95 | M142: 991.05 | N142: 7175250 | O142: -0.57%
A143: 133 | B143: Pharma | C143: TORNTPHARM | D143: 2351.40 | E143: 2360.65 | F143: 2336.90 | G143: 2322.40 | H143: 2298.65 | I143: 2375.15 | J143: 2398.90 | K143: 2413.40 | L143: 2384.4 | M143: 2346.15 | N143: 1501500 | O143: -0.36%
A144: 134 | B144: Power | C144: TORNTPOWER | D144: 333.10 | E144: 334.45 | F144: 330.35 | G144: 327.60 | H144: 323.50 | I144: 337.20 | J144: 341.30 | K144: 344.05 | L144: 338.55 | M144: 331.7 | N144: 1689000 | O144: 4.45%
A145: 135 | B145: Automobile | C145: TVSMOTOR | D145: 383.60 | E145: 387.08 | F145: 377.47 | G145: 371.33 | H145: 361.72 | I145: 393.22 | J145: 402.83 | K145: 408.97 | L145: 396.7 | M145: 380.95 | N145: 4743200 | O145: 6.34%
A146: 136 | B146: FMCG | C146: UBL | D146: 1060.35 | E146: 1060.78 | F146: 1044.57 | G146: 1028.78 | H146: 1012.57 | I146: 1076.57 | J146: 1092.78 | K146: 1108.57 | L146: 1077 | M146: 1045 | N146: 1003100 | O146: -2.32%
A147: 137 | B147: Finance | C147: UJJIVAN | D147: 254.80 | E147: 258.20 | F147: 249.90 | G147: 245.00 | H147: 236.70 | I147: 263.10 | J147: 271.40 | K147: 276.30 | L147: 266.5 | M147: 253.3 | N147: 3179000 | O147: -6.47%
A148: 138 | B148: Cement | C148: ULTRACEMCO | D148: 3791.40 | E148: 3814.10 | F148: 3760.30 | G148: 3729.20 | H148: 3675.40 | I148: 3845.20 | J148: 3899.00 | K148: 3930.10 | L148: 3867.9 | M148: 3783 | N148: 2272400 | O148: 0.21%
A149: 139 | B149: Fertilisers | C149: UPL | D149: 443.85 | E149: 449.48 | F149: 435.37 | G149: 426.88 | H149: 412.77 | I149: 457.97 | J149: 472.08 | K149: 480.57 | L149: 463.6 | M149: 441 | N149: 9677200 | O149: 8.01%
A150: 140 | B150: Metals | C150: VEDL | D150: 110.55 | E150: 111.02 | F150: 107.38 | G150: 104.22 | H150: 100.58 | I150: 114.18 | J150: 117.82 | K150: 120.98 | L150: 114.65 | M150: 107.85 | N150: 101909400 | O150: -2.26%
A151: 141 | B151: Capital_Goods | C151: VOLTAS | D151: 562.70 | E151: 567.20 | F151: 556.40 | G151: 550.10 | H151: 539.30 | I151: 573.50 | J151: 584.30 | K151: 590.60 | L151: 578 | M151: 560.9 | N151: 3081000 | O151: -8.03%
A152: 142 | B152: Technology | C152: WIPRO | D152: 224.05 | E152: 225.08 | F152: 222.12 | G152: 220.18 | H152: 217.22 | I152: 227.02 | J152: 229.98 | K152: 231.92 | L152: 228.05 | M152: 223.15 | N152: 25408000 | O152: -0.49%
A153: 143 | B153: Media | C153: ZEEL | D153: 171.60 | E153: 175.15 | F153: 166.95 | G153: 162.30 | H153: 154.10 | I153: 179.80 | J153: 188.00 | K153: 192.65 | L153: 183.35 | M153: 170.5 | N153: 20331000 | O153: -7.48%
A154: 144
A155: 145
A156: 146
A157: 147
A175: Pivot Point: This is trigger point for intra day buy/sell based on the price range of the previous day
A176: As per the tool,the trader should take BUY position just above Pivot and keep the stop loss of pivot point and the first target would be Resistance 1(R1)
A177: If R1 is crossed then R2 becomes the next target with stop loss of at R1
A178: Similarly if price goes below pivot point then the trader should sell and keep a stop loss of pivot point and the first target would be S1
A179: If S1 is crossed then S2 becomes the next target with stop loss of at S1
A181: Disclaimer:
A182: This document has been prepared by the Retail Research Desk of Asit C Mehta
A183: Investment Intermediates Ltd. and is meant for use of the recipient only
A184: and is not for circulation. This document is not to be reported or
A185: copied or made available to others. It should not be considered to be
A186: taken as an offer to sell or a solicitation to buy any security. The
A187: information contained herein is from sources believed reliable. We do
A188: not represent that it is accurate or complete and it should not be
A189: relied upon as such. We may from time to time have positions in and buy
A190: and sell securities referred to herein

Sheet Cash Intra
M5: Back to Main Page
A6: FOR INTRA DAY TRADING | K6: =Main!B10 -> 2020-07-09
A8: Sr.no | B8: Scrip | C8: CLOSE RATE | D8: Pivot Point | E8: Supports | H8: Resistances
C9: Point | E9: S1 | F9: S2 | G9: S3 | H9: R1 | I9: R2 | J9: R3 | K9: HIGH | L9: LOW | M9: Total Trade Quanity in Lakhs
A10: 1 | B10: Nifty 50 | C10: 10705.75 | D10: 10743.38 | E10: 10638.92 | F10: 10572.08 | G10: 10467.62 | H10: 10810.22 | I10: 10914.68 | J10: 10981.52 | K10: 10847.85 | L10: 10676.55
A11: 2 | B11: Nifty Bank | C11: 22584.65 | D11: 22721.58 | E11: 22362.57 | F11: 22140.48 | G11: 21781.47 | H11: 22943.67 | I11: 23302.68 | J11: 23524.77 | K11: 23080.6 | L11: 22499.5
A12: 3 | B12: Nifty CPSE | C12: 1444.15 | D12: 1449.75 | E12: 1434.65 | F12: 1425.15 | G12: 1410.05 | H12: 1459.25 | I12: 1474.35 | J12: 1483.85 | K12: 1464.85 | L12: 1440.25
A13: 4 | B13: Nifty Infra | C13: 3060.35 | D13: 3074.18 | E13: 3040.17 | F13: 3019.98 | G13: 2985.97 | H13: 3094.37 | I13: 3128.38 | J13: 3148.57 | K13: 3108.2 | L13: 3054
A14: 5 | B14: Nifty IT | C14: 15513.65 | D14: 15584.07 | E14: 15403.08 | F14: 15292.52 | G14: 15111.53 | H14: 15694.63 | I14: 15875.62 | J14: 15986.18 | K14: 15765.05 | L14: 15473.5
A15: 6 | B15: Nifty PSE | C15: 2507.25 | D15: 2516.88 | E15: 2489.47 | F15: 2471.68 | G15: 2444.27 | H15: 2534.67 | I15: 2562.08 | J15: 2579.87 | K15: 2544.3 | L15: 2499.1
A16: 7 | B16: Nifty Midcap 50 | C16: 4285.05 | D16: 4304.13 | E16: 4254.57 | F16: 4224.08 | G16: 4174.52 | H16: 4334.62 | I16: 4384.18 | J16: 4414.67 | K16: 4353.7 | L16: 4273.65
A17: 8 | B17: ACC | C17: 1312.9 | D17: 1308.07 | E17: 1295.43 | F17: 1277.97 | G17: 1265.33 | H17: 1325.53 | I17: 1338.17 | J17: 1355.63 | K17: 1320.7 | L17: 1290.6 | M17: 11.02284
A18: 9 | B18: AUBANK | C18: 646.3 | D18: 637.53 | E18: 618.82 | F18: 591.33 | G18: 572.62 | H18: 665.02 | I18: 683.73 | J18: 711.22 | K18: 656.25 | L18: 610.05 | M18: 13.89266
A19: 10 | B19: ADANIPORTS | C19: 340.6 | D19: 343.18 | E19: 336.72 | F19: 332.83 | G19: 326.37 | H19: 347.07 | I19: 353.53 | J19: 357.42 | K19: 349.65 | L19: 339.3 | M19: 39.88479
A20: 11 | B20: ADANIPOWER | C20: 35.7 | D20: 35.80 | E20: 35.50 | F20: 35.30 | G20: 35.00 | H20: 36.00 | I20: 36.30 | J20: 36.50 | K20: 36.1 | L20: 35.6 | M20: 26.37156
A21: 12 | B21: ABCAPITAL | C21: 64.45 | D21: 65.18 | E21: 63.42 | F21: 62.38 | G21: 60.62 | H21: 66.22 | I21: 67.98 | J21: 69.02 | K21: 66.95 | L21: 64.15 | M21: 28.01571
A22: 13 | B22: ABFRL | C22: 121.75 | D22: 123.57 | E22: 119.43 | F22: 117.12 | G22: 112.98 | H22: 125.88 | I22: 130.02 | J22: 132.33 | K22: 127.7 | L22: 121.25 | M22: 24.72865
A23: 14 | B23: AJANTPHARM | C23: 1425.55 | D23: 1423.58 | E23: 1412.67 | F23: 1399.78 | G23: 1388.87 | H23: 1436.47 | I23: 1447.38 | J23: 1460.27 | K23: 1434.5 | L23: 1410.7 | M23: 0.92292
A24: 15 | B24: ALKEM | C24: 2427.7 | D24: 2400.03 | E24: 2360.12 | F24: 2292.53 | G24: 2252.62 | H24: 2467.62 | I24: 2507.53 | J24: 2575.12 | K24: 2439.95 | L24: 2332.45 | M24: 2.71887
A25: 16 | B25: AMARAJABAT | C25: 698.35 | D25: 701.78 | E25: 689.57 | F25: 680.78 | G25: 668.57 | H25: 710.57 | I25: 722.78 | J25: 731.57 | K25: 714 | L25: 693 | M25: 7.55956
A26: 17 | B26: AMBUJACEM | C26: 195.55 | D26: 194.98 | E26: 193.37 | F26: 191.18 | G26: 189.57 | H26: 197.17 | I26: 198.78 | J26: 200.97 | K26: 196.6 | L26: 192.8 | M26: 32.53882
A27: 18 | B27: APOLLOHOSP | C27: 1393.85 | D27: 1404.02 | E27: 1377.03 | F27: 1360.22 | G27: 1333.23 | H27: 1420.83 | I27: 1447.82 | J27: 1464.63 | K27: 1431 | L27: 1387.2 | M27: 9.31697
A28: 19 | B28: APOLLOTYRE | C28: 116 | D28: 116.83 | E28: 114.07 | F28: 112.13 | G28: 109.37 | H28: 118.77 | I28: 121.53 | J28: 123.47 | K28: 119.6 | L28: 114.9 | M28: 65.95316
A29: 20 | B29: ASHOKLEY | C29: 51.95 | D29: 52.32 | E29: 51.23 | F29: 50.52 | G29: 49.43 | H29: 53.03 | I29: 54.12 | J29: 54.83 | K29: 53.4 | L29: 51.6 | M29: 550.43817
A30: 21 | B30: ASIANPAINT | C30: 1686.25 | D30: 1709.37 | E30: 1656.93 | F30: 1627.62 | G30: 1575.18 | H30: 1738.68 | I30: 1791.12 | J30: 1820.43 | K30: 1761.8 | L30: 1680.05 | M30: 27.25947
A31: 22 | B31: AUROPHARMA | C31: 801.9 | D31: 795.68 | E31: 783.92 | F31: 765.93 | G31: 754.17 | H31: 813.67 | I31: 825.43 | J31: 843.42 | K31: 807.45 | L31: 777.7 | M31: 43.08398
A32: 23 | B32: DMART | C32: 2319.55 | D32: 2335.10 | E32: 2284.90 | F32: 2250.25 | G32: 2200.05 | H32: 2369.75 | I32: 2419.95 | J32: 2454.60 | K32: 2385.3 | L32: 2300.45 | M32: 4.91069
A33: 24 | B33: AXISBANK | C33: 444.15 | D33: 448.85 | E33: 436.30 | F33: 428.45 | G33: 415.90 | H33: 456.70 | I33: 469.25 | J33: 477.10 | K33: 461.4 | L33: 441 | M33: 458.78605
A34: 25 | B34: BAJAJ-AUTO | C34: 2852.45 | D34: 2854.35 | E34: 2809.70 | F34: 2766.95 | G34: 2722.30 | H34: 2897.10 | I34: 2941.75 | J34: 2984.50 | K34: 2899 | L34: 2811.6 | M34: 13.4882
A35: 26 | B35: BAJFINANCE | C35: 3208.05 | D35: 3265.65 | E35: 3122.50 | F35: 3036.95 | G35: 2893.80 | H35: 3351.20 | I35: 3494.35 | J35: 3579.90 | K35: 3408.8 | L35: 3180.1 | M35: 191.26508
A36: 27 | B36: BAJAJFINSV | C36: 6405.4 | D36: 6485.10 | E36: 6290.20 | F36: 6175.00 | G36: 5980.10 | H36: 6600.30 | I36: 6795.20 | J36: 6910.40 | K36: 6680 | L36: 6369.9 | M36: 14.00367
A37: 28 | B37: BAJAJHLDNG | C37: 2799.85 | D37: 2820.03 | E37: 2742.12 | F37: 2684.38 | G37: 2606.47 | H37: 2877.77 | I37: 2955.68 | J37: 3013.42 | K37: 2897.95 | L37: 2762.3 | M37: 1.03002
A38: 29 | B38: BALKRISIND | C38: 1256.45 | D38: 1271.32 | E38: 1228.63 | F38: 1200.82 | G38: 1158.13 | H38: 1299.13 | I38: 1341.82 | J38: 1369.63 | K38: 1314 | L38: 1243.5 | M38: 9.28151
A39: 30 | B39: BANDHANBNK | C39: 379.3 | D39: 384.45 | E39: 370.35 | F39: 361.40 | G39: 347.30 | H39: 393.40 | I39: 407.50 | J39: 416.45 | K39: 398.55 | L39: 375.5 | M39: 210.24304
A40: 31 | B40: BANKBARODA | C40: 52.75 | D40: 52.53 | E40: 50.97 | F40: 49.18 | G40: 47.62 | H40: 54.32 | I40: 55.88 | J40: 57.67 | K40: 54.1 | L40: 50.75 | M40: 968.84916
A41: 32 | B41: BANKINDIA | C41: 49.9 | D41: 50.47 | E41: 48.93 | F41: 47.97 | G41: 46.43 | H41: 51.43 | I41: 52.97 | J41: 53.93 | K41: 52 | L41: 49.5 | M41: 78.08684
A42: 33 | B42: BATAINDIA | C42: 1294.3 | D42: 1304.10 | E42: 1278.20 | F42: 1262.10 | G42: 1236.20 | H42: 1320.20 | I42: 1346.10 | J42: 1362.20 | K42: 1330 | L42: 1288 | M42: 9.52132
A43: 34 | B43: BERGEPAINT | C43: 498.65 | D43: 504.35 | E43: 491.30 | F43: 483.95 | G43: 470.90 | H43: 511.70 | I43: 524.75 | J43: 532.10 | K43: 517.4 | L43: 497 | M43: 14.7449
A44: 35 | B44: BEL | C44: 103.55 | D44: 103.17 | E44: 100.93 | F44: 98.32 | G44: 96.08 | H44: 105.78 | I44: 108.02 | J44: 110.63 | K44: 105.4 | L44: 100.55 | M44: 227.16898
A45: 36 | B45: BHARATFORG | C45: 362.5 | D45: 367.15 | E45: 355.60 | F45: 348.70 | G45: 337.15 | H45: 374.05 | I45: 385.60 | J45: 392.50 | K45: 378.7 | L45: 360.25 | M45: 18.54406
A46: 37 | B46: BHEL | C46: 41.25 | D46: 41.77 | E46: 40.48 | F46: 39.72 | G46: 38.43 | H46: 42.53 | I46: 43.82 | J46: 44.58 | K46: 43.05 | L46: 41 | M46: 623.59715
A47: 38 | B47: BPCL | C47: 378.15 | D47: 380.58 | E47: 373.72 | F47: 369.28 | G47: 362.42 | H47: 385.02 | I47: 391.88 | J47: 396.32 | K47: 387.45 | L47: 376.15 | M47: 42.2342
A48: 39 | B48: BHARTIARTL | C48: 561.3 | D48: 564.77 | E48: 555.53 | F48: 549.77 | G48: 540.53 | H48: 570.53 | I48: 579.77 | J48: 585.53 | K48: 574 | L48: 559 | M48: 94.04763
A49: 40 | B49: INFRATEL | C49: 219.35 | D49: 220.82 | E49: 217.03 | F49: 214.72 | G49: 210.93 | H49: 223.13 | I49: 226.92 | J49: 229.23 | K49: 224.6 | L49: 218.5 | M49: 42.02411
A50: 41 | B50: BIOCON | C50: 401.75 | D50: 404.17 | E50: 397.98 | F50: 394.22 | G50: 388.03 | H50: 407.93 | I50: 414.12 | J50: 417.88 | K50: 410.35 | L50: 400.4 | M50: 47.45612
A51: 42 | B51: BBTC | C51: 1124.85 | D51: 1136.92 | E51: 1098.93 | F51: 1073.02 | G51: 1035.03 | H51: 1162.83 | I51: 1200.82 | J51: 1226.73 | K51: 1174.9 | L51: 1111 | M51: 4.6819
A52: 43 | B52: BOSCHLTD | C52: 13528.1 | D52: 13432.47 | E52: 13074.93 | F52: 12621.77 | G52: 12264.23 | H52: 13885.63 | I52: 14243.17 | J52: 14696.33 | K52: 13790 | L52: 12979.3 | M52: 2.13525
A53: 44 | B53: BRITANNIA | C53: 3685 | D53: 3675.83 | E53: 3639.17 | F53: 3593.33 | G53: 3556.67 | H53: 3721.67 | I53: 3758.33 | J53: 3804.17 | K53: 3712.5 | L53: 3630 | M53: 5.31417
A54: 45 | B54: CESC | C54: 668.05 | D54: 657.27 | E54: 638.78 | F54: 609.52 | G54: 591.03 | H54: 686.53 | I54: 705.02 | J54: 734.28 | K54: 675.75 | L54: 628 | M54: 11.02344
A55: 46 | B55: CADILAHC | C55: 359.7 | D55: 361.25 | E55: 356.15 | F55: 352.60 | G55: 347.50 | H55: 364.80 | I55: 369.90 | J55: 373.45 | K55: 366.35 | L55: 357.7 | M55: 26.06845
A56: 47 | B56: CANBK | C56: 109 | D56: 109.00 | E56: 104.50 | F56: 100.00 | G56: 95.50 | H56: 113.50 | I56: 118.00 | J56: 122.50 | K56: 113.5 | L56: 104.5 | M56: 485.69715
A57: 48 | B57: CASTROLIND | C57: 125.05 | D57: 125.35 | E57: 123.75 | F57: 122.45 | G57: 120.85 | H57: 126.65 | I57: 128.25 | J57: 129.55 | K57: 126.95 | L57: 124.05 | M57: 14.27792
A58: 49 | B58: CHOLAFIN | C58: 205.3 | D58: 208.93 | E58: 199.87 | F58: 194.43 | G58: 185.37 | H58: 214.37 | I58: 223.43 | J58: 228.87 | K58: 218 | L58: 203.5 | M58: 146.65711
A59: 50 | B59: CIPLA | C59: 634.4 | D59: 638.30 | E59: 628.60 | F59: 622.80 | G59: 613.10 | H59: 644.10 | I59: 653.80 | J59: 659.60 | K59: 648 | L59: 632.5 | M59: 69.5356
A60: 51 | B60: CUB | C60: 134.75 | D60: 134.18 | E60: 131.97 | F60: 129.18 | G60: 126.97 | H60: 136.97 | I60: 139.18 | J60: 141.97 | K60: 136.4 | L60: 131.4 | M60: 56.88563
A61: 52 | B61: COALINDIA | C61: 132.85 | D61: 132.97 | E61: 131.48 | F61: 130.12 | G61: 128.63 | H61: 134.33 | I61: 135.82 | J61: 137.18 | K61: 134.45 | L61: 131.6 | M61: 123.0884
A62: 53 | B62: COLPAL | C62: 1390.5 | D62: 1388.50 | E62: 1373.00 | F62: 1355.50 | G62: 1340.00 | H62: 1406.00 | I62: 1421.50 | J62: 1439.00 | K62: 1404 | L62: 1371 | M62: 7.63562
A63: 54 | B63: CONCOR | C63: 435.6 | D63: 433.50 | E63: 420.30 | F63: 405.00 | G63: 391.80 | H63: 448.80 | I63: 462.00 | J63: 477.30 | K63: 446.7 | L63: 418.2 | M63: 34.36605
A64: 55 | B64: COROMANDEL | C64: 745.8 | D64: 755.03 | E64: 731.17 | F64: 716.53 | G64: 692.67 | H64: 769.67 | I64: 793.53 | J64: 808.17 | K64: 778.9 | L64: 740.4 | M64: 5.77939
A65: 56 | B65: CROMPTON | C65: 239.65 | D65: 239.78 | E65: 236.17 | F65: 232.68 | G65: 229.07 | H65: 243.27 | I65: 246.88 | J65: 250.37 | K65: 243.4 | L65: 236.3 | M65: 10.86596
A66: 57 | B66: CUMMINSIND | C66: 411.05 | D66: 416.10 | E66: 403.50 | F66: 395.95 | G66: 383.35 | H66: 423.65 | I66: 436.25 | J66: 443.80 | K66: 428.7 | L66: 408.55 | M66: 28.37698
A67: 58 | B67: DLF | C67: 146.4 | D67: 148.83 | E67: 143.17 | F67: 139.93 | G67: 134.27 | H67: 152.07 | I67: 157.73 | J67: 160.97 | K67: 154.5 | L67: 145.6 | M67: 128.26654
A68: 59 | B68: DABUR | C68: 473.25 | D68: 476.07 | E68: 468.23 | F68: 463.22 | G68: 455.38 | H68: 481.08 | I68: 488.92 | J68: 493.93 | K68: 483.9 | L68: 471.05 | M68: 26.7081
A69: 60 | B69: DALBHARAT | C69: 710.65 | D69: 712.20 | E69: 699.45 | F69: 688.25 | G69: 675.50 | H69: 723.40 | I69: 736.15 | J69: 747.35 | K69: 724.95 | L69: 701 | M69: 0.65488
A70: 61 | B70: DIVISLAB | C70: 2163.5 | D70: 2172.52 | E70: 2132.03 | F70: 2100.57 | G70: 2060.08 | H70: 2203.98 | I70: 2244.47 | J70: 2275.93 | K70: 2213 | L70: 2141.05 | M70: 15.86377
A71: 62 | B71: DRREDDY | C71: 3886.7 | D71: 3887.47 | E71: 3830.23 | F71: 3773.77 | G71: 3716.53 | H71: 3943.93 | I71: 4001.17 | J71: 4057.63 | K71: 3944.7 | L71: 3831 | M71: 13.62258
A72: 63 | B72: EDELWEISS | C72: 57.3 | D72: 58.05 | E72: 56.35 | F72: 55.40 | G72: 53.70 | H72: 59.00 | I72: 60.70 | J72: 61.65 | K72: 59.75 | L72: 57.1 | M72: 11.8962
A73: 64 | B73: EICHERMOT | C73: 19391.7 | D73: 19601.02 | E73: 19102.03 | F73: 18812.37 | G73: 18313.38 | H73: 19890.68 | I73: 20389.67 | J73: 20679.33 | K73: 20100 | L73: 19311.35 | M73: 3.56865
A74: 65 | B74: EMAMILTD | C74: 234.55 | D74: 234.68 | E74: 232.07 | F74: 229.58 | G74: 226.97 | H74: 237.17 | I74: 239.78 | J74: 242.27 | K74: 237.3 | L74: 232.2 | M74: 13.66737
A75: 66 | B75: ENDURANCE | C75: 909.1 | D75: 919.00 | E75: 891.10 | F75: 873.10 | G75: 845.20 | H75: 937.00 | I75: 964.90 | J75: 982.90 | K75: 946.9 | L75: 901 | M75: 1.03633
A76: 67 | B76: ENGINERSIN | C76: 72.8 | D76: 73.33 | E76: 71.72 | F76: 70.63 | G76: 69.02 | H76: 74.42 | I76: 76.03 | J76: 77.12 | K76: 74.95 | L76: 72.25 | M76: 26.01159
A77: 68 | B77: ESCORTS | C77: 1088.1 | D77: 1095.97 | E77: 1073.23 | F77: 1058.37 | G77: 1035.63 | H77: 1110.83 | I77: 1133.57 | J77: 1148.43 | K77: 1118.7 | L77: 1081.1 | M77: 17.35342
A78: 69 | B78: EXIDEIND | C78: 154.95 | D78: 155.43 | E78: 153.67 | F78: 152.38 | G78: 150.62 | H78: 156.72 | I78: 158.48 | J78: 159.77 | K78: 157.2 | L78: 154.15 | M78: 20.59442
A79: 70 | B79: FEDERALBNK | C79: 54.4 | D79: 54.90 | E79: 53.60 | F79: 52.80 | G79: 51.50 | H79: 55.70 | I79: 57.00 | J79: 57.80 | K79: 56.2 | L79: 54.1 | M79: 369.08181
A80: 71 | B80: FORTIS | C80: 122.95 | D80: 123.43 | E80: 122.12 | F80: 121.28 | G80: 119.97 | H80: 124.27 | I80: 125.58 | J80: 126.42 | K80: 124.75 | L80: 122.6 | M80: 18.99425
A81: 72 | B81: FCONSUMER | C81: 12.35 | D81: 12.35 | E81: 12.35 | F81: 12.35 | G81: 12.35 | H81: 12.35 | I81: 12.35 | J81: 12.35 | K81: 12.35 | L81: 12.35 | M81: 8.20186
A82: 73 | B82: FRETAIL | C82: 117.2 | D82: 118.00 | E82: 116.40 | F82: 115.60 | G82: 114.00 | H82: 118.80 | I82: 120.40 | J82: 121.20 | K82: 119.6 | L82: 117.2 | M82: 17.19051
A83: 74 | B83: GAIL | C83: 102.7 | D83: 102.87 | E83: 101.53 | F83: 100.37 | G83: 99.03 | H83: 104.03 | I83: 105.37 | J83: 106.53 | K83: 104.2 | L83: 101.7 | M83: 151.39503
A84: 75 | B84: GMRINFRA | C84: 20.9 | D84: 21.12 | E84: 20.53 | F84: 20.17 | G84: 19.58 | H84: 21.48 | I84: 22.07 | J84: 22.43 | K84: 21.7 | L84: 20.75 | M84: 173.07951
A85: 76 | B85: GICRE | C85: 160.85 | D85: 158.92 | E85: 152.08 | F85: 143.32 | G85: 136.48 | H85: 167.68 | I85: 174.52 | J85: 183.28 | K85: 165.75 | L85: 150.15 | M85: 23.95442
A86: 77 | B86: GLENMARK | C86: 419.35 | D86: 419.83 | E86: 414.67 | F86: 409.98 | G86: 404.82 | H86: 424.52 | I86: 429.68 | J86: 434.37 | K86: 425 | L86: 415.15 | M86: 36.60105
A87: 78 | B87: GODREJAGRO | C87: 462.4 | D87: 458.98 | E87: 452.22 | F87: 442.03 | G87: 435.27 | H87: 469.17 | I87: 475.93 | J87: 486.12 | K87: 465.75 | L87: 448.8 | M87: 3.83917
A88: 79 | B88: GODREJCP | C88: 695.35 | D88: 699.05 | E88: 689.70 | F88: 684.05 | G88: 674.70 | H88: 704.70 | I88: 714.05 | J88: 719.70 | K88: 708.4 | L88: 693.4 | M88: 7.84395
A89: 80 | B89: GODREJIND | C89: 394.95 | D89: 396.98 | E89: 388.97 | F89: 382.98 | G89: 374.97 | H89: 402.97 | I89: 410.98 | J89: 416.97 | K89: 405 | L89: 391 | M89: 0.69665
A90: 81 | B90: GODREJPROP | C90: 876.25 | D90: 881.78 | E90: 864.57 | F90: 852.88 | G90: 835.67 | H90: 893.47 | I90: 910.68 | J90: 922.37 | K90: 899 | L90: 870.1 | M90: 2.53504
A91: 82 | B91: GRAPHITE | C91: 185.7 | D91: 187.53 | E91: 183.17 | F91: 180.63 | G91: 176.27 | H91: 190.07 | I91: 194.43 | J91: 196.97 | K91: 191.9 | L91: 185 | M91: 4.75917
A92: 83 | B92: GRASIM | C92: 608.5 | D92: 615.22 | E92: 598.58 | F92: 588.67 | G92: 572.03 | H92: 625.13 | I92: 641.77 | J92: 651.68 | K92: 631.85 | L92: 605.3 | M92: 23.91585
A93: 84 | B93: GSPL | C93: 214.25 | D93: 217.07 | E93: 209.68 | F93: 205.12 | G93: 197.73 | H93: 221.63 | I93: 229.02 | J93: 233.58 | K93: 224.45 | L93: 212.5 | M93: 5.08744
A94: 85 | B94: HEG | C94: 817.2 | D94: 829.05 | E94: 801.10 | F94: 785.00 | G94: 757.05 | H94: 845.15 | I94: 873.10 | J94: 889.20 | K94: 857 | L94: 812.95 | M94: 2.91339
A95: 86 | B95: HCLTECH | C95: 574.9 | D95: 580.88 | E95: 567.02 | F95: 559.13 | G95: 545.27 | H95: 588.77 | I95: 602.63 | J95: 610.52 | K95: 594.75 | L95: 573 | M95: 46.25061
A96: 87 | B96: HDFCAMC | C96: 2557 | D96: 2579.67 | E96: 2527.33 | F96: 2497.67 | G96: 2445.33 | H96: 2609.33 | I96: 2661.67 | J96: 2691.33 | K96: 2632 | L96: 2550 | M96: 3.53696
A97: 88 | B97: HDFCBANK | C97: 1110.35 | D97: 1113.42 | E97: 1101.93 | F97: 1093.52 | G97: 1082.03 | H97: 1121.83 | I97: 1133.32 | J97: 1141.73 | K97: 1124.9 | L97: 1105 | M97: 150.28412
A98: 89 | B98: HDFCLIFE | C98: 581.95 | D98: 585.62 | E98: 574.33 | F98: 566.72 | G98: 555.43 | H98: 593.23 | I98: 604.52 | J98: 612.13 | K98: 596.9 | L98: 578 | M98: 42.8087
A99: 90 | B99: HAVELLS | C99: 582 | D99: 589.22 | E99: 572.78 | F99: 563.57 | G99: 547.13 | H99: 598.43 | I99: 614.87 | J99: 624.08 | K99: 605.65 | L99: 580 | M99: 22.42772
A100: 91 | B100: HEROMOTOCO | C100: 2719.2 | D100: 2735.72 | E100: 2693.48 | F100: 2667.77 | G100: 2625.53 | H100: 2761.43 | I100: 2803.67 | J100: 2829.38 | K100: 2777.95 | L100: 2710 | M100: 9.74918
A101: 92 | B101: HEXAWARE | C101: 338.25 | D101: 340.58 | E101: 333.17 | F101: 328.08 | G101: 320.67 | H101: 345.67 | I101: 353.08 | J101: 358.17 | K101: 348 | L101: 335.5 | M101: 10.46474
A102: 93 | B102: HINDALCO | C102: 155 | D102: 155.13 | E102: 152.27 | F102: 149.53 | G102: 146.67 | H102: 157.87 | I102: 160.73 | J102: 163.47 | K102: 158 | L102: 152.4 | M102: 183.06904
A103: 94 | B103: HINDPETRO | C103: 211.8 | D103: 212.65 | E103: 209.50 | F103: 207.20 | G103: 204.05 | H103: 214.95 | I103: 218.10 | J103: 220.40 | K103: 215.8 | L103: 210.35 | M103: 44.90583
A104: 95 | B104: HINDUNILVR | C104: 2186.05 | D104: 2168.35 | E104: 2142.70 | F104: 2099.35 | G104: 2073.70 | H104: 2211.70 | I104: 2237.35 | J104: 2280.70 | K104: 2194 | L104: 2125 | M104: 33.50115
A105: 96 | B105: HINDZINC | C105: 190.85 | D105: 192.95 | E105: 187.90 | F105: 184.95 | G105: 179.90 | H105: 195.90 | I105: 200.95 | J105: 203.90 | K105: 198 | L105: 190 | M105: 17.95852
A106: 97 | B106: HUDCO | C106: 35.8 | D106: 36.18 | E106: 35.22 | F106: 34.63 | G106: 33.67 | H106: 36.77 | I106: 37.73 | J106: 38.32 | K106: 37.15 | L106: 35.6 | M106: 38.14003
A107: 98 | B107: HDFC | C107: 1886.05 | D107: 1888.02 | E107: 1869.03 | F107: 1852.02 | G107: 1833.03 | H107: 1905.03 | I107: 1924.02 | J107: 1941.03 | K107: 1907 | L107: 1871 | M107: 28.85754
A108: 99 | B108: ICICIBANK | C108: 368.95 | D108: 371.83 | E108: 364.67 | F108: 360.38 | G108: 353.22 | H108: 376.12 | I108: 383.28 | J108: 387.57 | K108: 379 | L108: 367.55 | M108: 463.17703
A109: 100 | B109: ICICIGI | C109: 1288.4 | D109: 1281.63 | E109: 1272.92 | F109: 1257.43 | G109: 1248.72 | H109: 1297.12 | I109: 1305.83 | J109: 1321.32 | K109: 1290.35 | L109: 1266.15 | M109: 5.9841
A110: 101 | B110: ICICIPRULI | C110: 427.5 | D110: 430.52 | E110: 422.03 | F110: 416.57 | G110: 408.08 | H110: 435.98 | I110: 444.47 | J110: 449.93 | K110: 439 | L110: 425.05 | M110: 11.13679
A111: 102 | B111: IDBI | C111: 48.4 | D111: 48.40 | E111: 48.40 | F111: 48.40 | G111: 48.40 | H111: 48.40 | I111: 48.40 | J111: 48.40 | K111: 48.4 | L111: 48.4 | M111: 4.09777
A112: 103 | B112: IDFCFIRSTB | C112: 27.9 | D112: 28.23 | E112: 27.47 | F112: 27.03 | G112: 26.27 | H112: 28.67 | I112: 29.43 | J112: 29.87 | K112: 29 | L112: 27.8 | M112: 467.66437
A113: 104 | B113: ITC | C113: 196.3 | D113: 196.17 | E113: 194.38 | F113: 192.47 | G113: 190.68 | H113: 198.08 | I113: 199.87 | J113: 201.78 | K113: 197.95 | L113: 194.25 | M113: 212.76389
A114: 105 | B114: IBULHSGFIN | C114: 228.3 | D114: 230.00 | E114: 224.00 | F114: 219.70 | G114: 213.70 | H114: 234.30 | I114: 240.30 | J114: 244.60 | K114: 236 | L114: 225.7 | M114: 143.63251
A115: 106 | B115: IBVENTURES | C115: 125.15 | D115: 124.12 | E115: 123.03 | F115: 120.92 | G115: 119.83 | H115: 126.23 | I115: 127.32 | J115: 129.43 | K115: 125.2 | L115: 122 | M115: 19.62144
A116: 107 | B116: INDIANB | C116: 65.95 | D116: 66.58 | E116: 64.17 | F116: 62.38 | G116: 59.97 | H116: 68.37 | I116: 70.78 | J116: 72.57 | K116: 69 | L116: 64.8 | M116: 80.95257
A117: 108 | B117: INDHOTEL | C117: 83.65 | D117: 84.57 | E117: 82.33 | F117: 81.02 | G117: 78.78 | H117: 85.88 | I117: 88.12 | J117: 89.43 | K117: 86.8 | L117: 83.25 | M117: 37.30505
A118: 109 | B118: IOC | C118: 86.95 | D118: 87.30 | E118: 85.70 | F118: 84.45 | G118: 82.85 | H118: 88.55 | I118: 90.15 | J118: 91.40 | K118: 88.9 | L118: 86.05 | M118: 166.78756
A119: 110 | B119: IGL | C119: 410.95 | D119: 412.22 | E119: 406.13 | F119: 401.32 | G119: 395.23 | H119: 417.03 | I119: 423.12 | J119: 427.93 | K119: 418.3 | L119: 407.4 | M119: 73.56426
A120: 111 | B120: INDUSINDBK | C120: 552.6 | D120: 554.03 | E120: 530.57 | F120: 508.53 | G120: 485.07 | H120: 576.07 | I120: 599.53 | J120: 621.57 | K120: 577.5 | L120: 532 | M120: 813.3645
A121: 112 | B121: NAUKRI | C121: 2856.65 | D121: 2872.28 | E121: 2816.22 | F121: 2775.78 | G121: 2719.72 | H121: 2912.72 | I121: 2968.78 | J121: 3009.22 | K121: 2928.35 | L121: 2831.85 | M121: 1.80244
A122: 113 | B122: INFY | C122: 774.7 | D122: 777.27 | E122: 769.63 | F122: 764.57 | G122: 756.93 | H122: 782.33 | I122: 789.97 | J122: 795.03 | K122: 784.9 | L122: 772.2 | M122: 84.76675
A123: 114 | B123: INDIGO | C123: 1040.75 | D123: 1043.93 | E123: 1024.02 | F123: 1007.28 | G123: 987.37 | H123: 1060.67 | I123: 1080.58 | J123: 1097.32 | K123: 1063.85 | L123: 1027.2 | M123: 13.19165
A124: 115 | B124: IPCALAB | C124: 1636.25 | D124: 1640.52 | E124: 1625.93 | F124: 1615.62 | G124: 1601.03 | H124: 1650.83 | I124: 1665.42 | J124: 1675.73 | K124: 1655.1 | L124: 1630.2 | M124: 2.54348
A125: 116 | B125: JSWENERGY | C125: 47.05 | D125: 47.62 | E125: 46.13 | F125: 45.22 | G125: 43.73 | H125: 48.53 | I125: 50.02 | J125: 50.93 | K125: 49.1 | L125: 46.7 | M125: 10.1191
A126: 117 | B126: JSWSTEEL | C126: 195.35 | D126: 196.12 | E126: 190.23 | F126: 185.12 | G126: 179.23 | H126: 201.23 | I126: 207.12 | J126: 212.23 | K126: 202 | L126: 191 | M126: 226.09621
A127: 118 | B127: JINDALSTEL | C127: 156.25 | D127: 158.18 | E127: 153.57 | F127: 150.88 | G127: 146.27 | H127: 160.87 | I127: 165.48 | J127: 168.17 | K127: 162.8 | L127: 155.5 | M127: 190.83768
A128: 119 | B128: JUBLFOOD | C128: 1692.15 | D128: 1706.05 | E128: 1652.10 | F128: 1612.05 | G128: 1558.10 | H128: 1746.10 | I128: 1800.05 | J128: 1840.10 | K128: 1760 | L128: 1666 | M128: 5.96361
A129: 120 | B129: JUBILANT | C129: 702.5 | D129: 699.52 | E129: 674.03 | F129: 645.57 | G129: 620.08 | H129: 727.98 | I129: 753.47 | J129: 781.93 | K129: 725 | L129: 671.05 | M129: 11.20805
A130: 121 | B130: KOTAKBANK | C130: 1352.75 | D130: 1359.87 | E130: 1340.88 | F130: 1329.02 | G130: 1310.03 | H130: 1371.73 | I130: 1390.72 | J130: 1402.58 | K130: 1378.85 | L130: 1348 | M130: 33.83105
A131: 122 | B131: L&TFH | C131: 70.9 | D131: 72.08 | E131: 69.42 | F131: 67.93 | G131: 65.27 | H131: 73.57 | I131: 76.23 | J131: 77.72 | K131: 74.75 | L131: 70.6 | M131: 620.51746
A132: 123 | B132: LTTS | C132: 1390.05 | D132: 1373.35 | E132: 1352.70 | F132: 1315.35 | G132: 1294.70 | H132: 1410.70 | I132: 1431.35 | J132: 1468.70 | K132: 1394 | L132: 1336 | M132: 2.97262
A133: 124 | B133: LICHSGFIN | C133: 281.75 | D133: 283.87 | E133: 275.23 | F133: 268.72 | G133: 260.08 | H133: 290.38 | I133: 299.02 | J133: 305.53 | K133: 292.5 | L133: 277.35 | M133: 133.20091
A134: 125 | B134: LTI | C134: 2053.75 | D134: 2045.00 | E134: 2020.00 | F134: 1986.25 | G134: 1961.25 | H134: 2078.75 | I134: 2103.75 | J134: 2137.50 | K134: 2070 | L134: 2011.25 | M134: 2.19843
A135: 126 | B135: LT | C135: 941.25 | D135: 947.88 | E135: 931.37 | F135: 921.48 | G135: 904.97 | H135: 957.77 | I135: 974.28 | J135: 984.17 | K135: 964.4 | L135: 938 | M135: 52.2715
A136: 127 | B136: LUPIN | C136: 865.4 | D136: 872.35 | E136: 855.05 | F136: 844.70 | G136: 827.40 | H136: 882.70 | I136: 900.00 | J136: 910.35 | K136: 889.65 | L136: 862 | M136: 35.1742
A137: 128 | B137: MRF | C137: 65287.2 | D137: 65912.18 | E137: 64375.72 | F137: 63464.23 | G137: 61927.77 | H137: 66823.67 | I137: 68360.13 | J137: 69271.62 | K137: 67448.65 | L137: 65000.7 | M137: 0.16872
A138: 129 | B138: MGL | C138: 1007.35 | D138: 1013.45 | E138: 994.90 | F138: 982.45 | G138: 963.90 | H138: 1025.90 | I138: 1044.45 | J138: 1056.90 | K138: 1032 | L138: 1001 | M138: 15.76167
A139: 130 | B139: M&MFIN | C139: 201.7 | D139: 204.85 | E139: 197.00 | F139: 192.30 | G139: 184.45 | H139: 209.55 | I139: 217.40 | J139: 222.10 | K139: 212.7 | L139: 200.15 | M139: 332.54889
A140: 131 | B140: M&M | C140: 551.25 | D140: 556.17 | E140: 544.08 | F140: 536.92 | G140: 524.83 | H140: 563.33 | I140: 575.42 | J140: 582.58 | K140: 568.25 | L140: 549 | M140: 51.73213
A141: 132 | B141: MANAPPURAM | C141: 157.45 | D141: 159.43 | E141: 153.92 | F141: 150.38 | G141: 144.87 | H141: 162.97 | I141: 168.48 | J141: 172.02 | K141: 164.95 | L141: 155.9 | M141: 80.56453
A142: 133 | B142: MRPL | C142: 37.3 | D142: 37.98 | E142: 36.37 | F142: 35.43 | G142: 33.82 | H142: 38.92 | I142: 40.53 | J142: 41.47 | K142: 39.6 | L142: 37.05 | M142: 30.21287
A143: 134 | B143: MARICO | C143: 349.4 | D143: 350.53 | E143: 346.67 | F143: 343.93 | G143: 340.07 | H143: 353.27 | I143: 357.13 | J143: 359.87 | K143: 354.4 | L143: 347.8 | M143: 19.19724
A144: 135 | B144: MARUTI | C144: 6044.4 | D144: 6100.67 | E144: 5966.33 | F144: 5888.27 | G144: 5753.93 | H144: 6178.73 | I144: 6313.07 | J144: 6391.13 | K144: 6235 | L144: 6022.6 | M144: 12.04104
A145: 136 | B145: MFSL | C145: 547.1 | D145: 550.85 | E145: 541.35 | F145: 535.60 | G145: 526.10 | H145: 556.60 | I145: 566.10 | J145: 571.85 | K145: 560.35 | L145: 545.1 | M145: 9.84162
A146: 137 | B146: MINDTREE | C146: 988.3 | D146: 986.35 | E146: 975.10 | F146: 961.90 | G146: 950.65 | H146: 999.55 | I146: 1010.80 | J146: 1024.00 | K146: 997.6 | L146: 973.15 | M146: 6.87823
A147: 138 | B147: MOTHERSUMI | C147: 96.6 | D147: 97.38 | E147: 95.52 | F147: 94.43 | G147: 92.57 | H147: 98.47 | I147: 100.33 | J147: 101.42 | K147: 99.25 | L147: 96.3 | M147: 92.99086
A148: 139 | B148: MPHASIS | C148: 921.4 | D148: 918.43 | E148: 912.02 | F148: 902.63 | G148: 896.22 | H148: 927.82 | I148: 934.23 | J148: 943.62 | K148: 924.85 | L148: 909.05 | M148: 2.23364
A149: 140 | B149: MUTHOOTFIN | C149: 1085.2 | D149: 1094.02 | E149: 1074.18 | F149: 1063.17 | G149: 1043.33 | H149: 1105.03 | I149: 1124.87 | J149: 1135.88 | K149: 1113.85 | L149: 1083 | M149: 15.24806
A150: 141 | B150: NATCOPHARM | C150: 684.55 | D150: 685.42 | E150: 671.53 | F150: 658.52 | G150: 644.63 | H150: 698.43 | I150: 712.32 | J150: 725.33 | K150: 699.3 | L150: 672.4 | M150: 2.94046
A151: 142 | B151: NBCC | C151: 27.3 | D151: 27.57 | E151: 26.78 | F151: 26.27 | G151: 25.48 | H151: 28.08 | I151: 28.87 | J151: 29.38 | K151: 28.35 | L151: 27.05 | M151: 310.4028
A152: 143 | B152: NHPC | C152: 20.25 | D152: 20.33 | E152: 20.12 | F152: 19.98 | G152: 19.77 | H152: 20.47 | I152: 20.68 | J152: 20.82 | K152: 20.55 | L152: 20.2 | M152: 46.57569
A153: 144 | B153: NMDC | C153: 84.75 | D153: 84.78 | E153: 82.07 | F153: 79.38 | G153: 76.67 | H153: 87.47 | I153: 90.18 | J153: 92.87 | K153: 87.5 | L153: 82.1 | M153: 170.01105
A154: 145 | B154: NTPC | C154: 91 | D154: 91.57 | E154: 90.28 | F154: 89.57 | G154: 88.28 | H154: 92.28 | I154: 93.57 | J154: 94.28 | K154: 92.85 | L154: 90.85 | M154: 262.57436
A155: 146 | B155: NATIONALUM | C155: 35.75 | D155: 35.37 | E155: 33.88 | F155: 32.02 | G155: 30.53 | H155: 37.23 | I155: 38.72 | J155: 40.58 | K155: 36.85 | L155: 33.5 | M155: 726.53821
A156: 147 | B156: NESTLEIND | C156: 16802.05 | D156: 16896.35 | E156: 16642.70 | F156: 16483.35 | G156: 16229.70 | H156: 17055.70 | I156: 17309.35 | J156: 17468.70 | K156: 17150 | L156: 16737 | M156: 2.18721
A157: 148 | B157: NAM-INDIA | C157: 303.2 | D157: 304.23 | E157: 292.22 | F157: 281.23 | G157: 269.22 | H157: 315.22 | I157: 327.23 | J157: 338.22 | K157: 316.25 | L157: 293.25 | M157: 11.57541
A158: 149 | B158: OBEROIRLTY | C158: 367.1 | D158: 369.53 | E158: 363.07 | F158: 359.03 | G158: 352.57 | H158: 373.57 | I158: 380.03 | J158: 384.07 | K158: 376 | L158: 365.5 | M158: 1.81206
A159: 150 | B159: ONGC | C159: 81.3 | D159: 81.73 | E159: 80.57 | F159: 79.83 | G159: 78.67 | H159: 82.47 | I159: 83.63 | J159: 84.37 | K159: 82.9 | L159: 81 | M159: 186.26982
A160: 151 | B160: OIL | C160: 100.5 | D160: 100.12 | E160: 98.73 | F160: 96.97 | G160: 95.58 | H160: 101.88 | I160: 103.27 | J160: 105.03 | K160: 101.5 | L160: 98.35 | M160: 12.58585
A161: 152 | B161: OFSS | C161: 2849.55 | D161: 2859.87 | E161: 2820.73 | F161: 2791.92 | G161: 2752.78 | H161: 2888.68 | I161: 2927.82 | J161: 2956.63 | K161: 2899 | L161: 2831.05 | M161: 0.29559
A162: 153 | B162: PIIND | C162: 1662.75 | D162: 1681.92 | E162: 1633.83 | F162: 1604.92 | G162: 1556.83 | H162: 1710.83 | I162: 1758.92 | J162: 1787.83 | K162: 1730 | L162: 1653 | M162: 2.84646
A163: 154 | B163: PNBHOUSING | C163: 216.65 | D163: 218.15 | E163: 212.80 | F163: 208.95 | G163: 203.60 | H163: 222.00 | I163: 227.35 | J163: 231.20 | K163: 223.5 | L163: 214.3 | M163: 14.04035
A164: 155 | B164: PAGEIND | C164: 20103.85 | D164: 20298.52 | E164: 19812.33 | F164: 19520.82 | G164: 19034.63 | H164: 20590.03 | I164: 21076.22 | J164: 21367.73 | K164: 20784.7 | L164: 20007 | M164: 0.58743
A165: 156 | B165: PETRONET | C165: 264.15 | D165: 261.82 | E165: 258.73 | F165: 253.32 | G165: 250.23 | H165: 267.23 | I165: 270.32 | J165: 275.73 | K165: 264.9 | L165: 256.4 | M165: 42.6355
A166: 157 | B166: PFIZER | C166: 4091.5 | D166: 4099.50 | E166: 4074.00 | F166: 4056.50 | G166: 4031.00 | H166: 4117.00 | I166: 4142.50 | J166: 4160.00 | K166: 4125 | L166: 4082 | M166: 0.28668
A167: 158 | B167: PIDILITIND | C167: 1386.55 | D167: 1393.72 | E167: 1373.43 | F167: 1360.32 | G167: 1340.03 | H167: 1406.83 | I167: 1427.12 | J167: 1440.23 | K167: 1414 | L167: 1380.6 | M167: 4.83074
A168: 159 | B168: PEL | C168: 1433.65 | D168: 1441.55 | E168: 1410.15 | F168: 1386.65 | G168: 1355.25 | H168: 1465.05 | I168: 1496.45 | J168: 1519.95 | K168: 1472.95 | L168: 1418.05 | M168: 16.7562
A169: 160 | B169: PFC | C169: 84.5 | D169: 85.17 | E169: 83.63 | F169: 82.77 | G169: 81.23 | H169: 86.03 | I169: 87.57 | J169: 88.43 | K169: 86.7 | L169: 84.3 | M169: 95.13916
A170: 161 | B170: POWERGRID | C170: 169.75 | D170: 171.07 | E170: 167.48 | F170: 165.22 | G170: 161.63 | H170: 173.33 | I170: 176.92 | J170: 179.18 | K170: 174.65 | L170: 168.8 | M170: 94.60438
A171: 162 | B171: PRESTIGE | C171: 200 | D171: 203.48 | E171: 195.02 | F171: 190.03 | G171: 181.57 | H171: 208.47 | I171: 216.93 | J171: 221.92 | K171: 211.95 | L171: 198.5 | M171: 7.59761
A172: 163 | B172: PGHH | C172: 10970.5 | D172: 10788.08 | E172: 10223.42 | F172: 9476.33 | G172: 8911.67 | H172: 11535.17 | I172: 12099.83 | J172: 12846.92 | K172: 11352.75 | L172: 10041 | M172: 0.29829
A173: 164 | B173: PNB | C173: 37.25 | D173: 37.53 | E173: 36.32 | F173: 35.38 | G173: 34.17 | H173: 38.47 | I173: 39.68 | J173: 40.62 | K173: 38.75 | L173: 36.6 | M173: 815.36986
A174: 165 | B174: QUESS | C174: 338.95 | D174: 343.98 | E174: 332.97 | F174: 326.98 | G174: 315.97 | H174: 349.97 | I174: 360.98 | J174: 366.97 | K174: 355 | L174: 338 | M174: 1.71863
A175: 166 | B175: RBLBANK | C175: 186.6 | D175: 189.67 | E175: 181.93 | F175: 177.27 | G175: 169.53 | H175: 194.33 | I175: 202.07 | J175: 206.73 | K175: 197.4 | L175: 185 | M175: 549.82247
A176: 167 | B176: RECLTD | C176: 107.75 | D176: 108.57 | E176: 106.38 | F176: 105.02 | G176: 102.83 | H176: 109.93 | I176: 112.12 | J176: 113.48 | K176: 110.75 | L176: 107.2 | M176: 68.85386
A177: 168 | B177: RAJESHEXPO | C177: 483.9 | D177: 483.78 | E177: 478.67 | F177: 473.43 | G177: 468.32 | H177: 489.02 | I177: 494.13 | J177: 499.37 | K177: 488.9 | L177: 478.55 | M177: 1.14245
A178: 169 | B178: RELIANCE | C178: 1798 | D178: 1807.65 | E178: 1780.35 | F178: 1762.70 | G178: 1735.40 | H178: 1825.30 | I178: 1852.60 | J178: 1870.25 | K178: 1834.95 | L178: 1790 | M178: 120.93523
A179: 170 | B179: SBILIFE | C179: 850.75 | D179: 856.25 | E179: 840.60 | F179: 830.45 | G179: 814.80 | H179: 866.40 | I179: 882.05 | J179: 892.20 | K179: 871.9 | L179: 846.1 | M179: 16.88304
A180: 171 | B180: SRF | C180: 3900.6 | D180: 3934.75 | E180: 3825.95 | F180: 3751.30 | G180: 3642.50 | H180: 4009.40 | I180: 4118.20 | J180: 4192.85 | K180: 4043.55 | L180: 3860.1 | M180: 9.21868
A181: 172 | B181: SHREECEM | C181: 22439.8 | D181: 22611.92 | E181: 22173.83 | F181: 21907.87 | G181: 21469.78 | H181: 22877.88 | I181: 23315.97 | J181: 23581.93 | K181: 23050 | L181: 22345.95 | M181: 0.57101
A182: 173 | B182: SRTRANSFIN | C182: 757.9 | D182: 757.42 | E182: 730.48 | F182: 703.07 | G182: 676.13 | H182: 784.83 | I182: 811.77 | J182: 839.18 | K182: 784.35 | L182: 730 | M182: 136.2084
A183: 174 | B183: SIEMENS | C183: 1156.5 | D183: 1161.02 | E183: 1134.23 | F183: 1111.97 | G183: 1085.18 | H183: 1183.28 | I183: 1210.07 | J183: 1232.33 | K183: 1187.8 | L183: 1138.75 | M183: 9.57322
A184: 175 | B184: SBIN | C184: 191.9 | D184: 192.58 | E184: 187.72 | F184: 183.53 | G184: 178.67 | H184: 196.77 | I184: 201.63 | J184: 205.82 | K184: 197.45 | L184: 188.4 | M184: 1430.83196
A185: 176 | B185: SAIL | C185: 35.35 | D185: 35.32 | E185: 32.98 | F185: 30.62 | G185: 28.28 | H185: 37.68 | I185: 40.02 | J185: 42.38 | K185: 37.65 | L185: 32.95 | M185: 2125.615
A186: 177 | B186: STRTECH | C186: 134.5 | D186: 135.13 | E186: 132.37 | F186: 130.23 | G186: 127.47 | H186: 137.27 | I186: 140.03 | J186: 142.17 | K186: 137.9 | L186: 133 | M186: 20.6774
A187: 178 | B187: SUNPHARMA | C187: 482.5 | D187: 483.48 | E187: 478.97 | F187: 475.43 | G187: 470.92 | H187: 487.02 | I187: 491.53 | J187: 495.07 | K187: 488 | L187: 479.95 | M187: 62.79478
A188: 179 | B188: SUNTV | C188: 390.5 | D188: 391.33 | E188: 385.92 | F188: 381.33 | G188: 375.92 | H188: 395.92 | I188: 401.33 | J188: 405.92 | K188: 396.75 | L188: 386.75 | M188: 36.69411
A189: 180 | B189: SYNGENE | C189: 427.75 | D189: 432.75 | E189: 419.05 | F189: 410.35 | G189: 396.65 | H189: 441.45 | I189: 455.15 | J189: 463.85 | K189: 446.45 | L189: 424.05 | M189: 3.67926
A190: 181 | B190: TVSMOTOR | C190: 384.95 | D190: 390.13 | E190: 377.82 | F190: 370.68 | G190: 358.37 | H190: 397.27 | I190: 409.58 | J190: 416.72 | K190: 402.45 | L190: 383 | M190: 33.19452
A191: 182 | B191: TCS | C191: 2218.9 | D191: 2233.63 | E191: 2192.87 | F191: 2166.83 | G191: 2126.07 | H191: 2259.67 | I191: 2300.43 | J191: 2326.47 | K191: 2274.4 | L191: 2207.6 | M191: 27.93674
A192: 183 | B192: TATACONSUM | C192: 432.4 | D192: 427.85 | E192: 419.40 | F192: 406.40 | G192: 397.95 | H192: 440.85 | I192: 449.30 | J192: 462.30 | K192: 436.3 | L192: 414.85 | M192: 69.78409
A193: 184 | B193: TATAMTRDVR | C193: 42.05 | D193: 42.47 | E193: 41.38 | F193: 40.72 | G193: 39.63 | H193: 43.13 | I193: 44.22 | J193: 44.88 | K193: 43.55 | L193: 41.8 | M193: 40.13268
A194: 185 | B194: TATAMOTORS | C194: 105.35 | D194: 106.80 | E194: 102.75 | F194: 100.15 | G194: 96.10 | H194: 109.40 | I194: 113.45 | J194: 116.05 | K194: 110.85 | L194: 104.2 | M194: 558.90628
A195: 186 | B195: TATAPOWER | C195: 52.2 | D195: 51.87 | E195: 51.03 | F195: 49.87 | G195: 49.03 | H195: 53.03 | I195: 53.87 | J195: 55.03 | K195: 52.7 | L195: 50.7 | M195: 419.27852
A196: 187 | B196: TATASTEEL | C196: 334.2 | D196: 337.53 | E196: 328.67 | F196: 323.13 | G196: 314.27 | H196: 343.07 | I196: 351.93 | J196: 357.47 | K196: 346.4 | L196: 332 | M196: 215.61168
A197: 188 | B197: TECHM | C197: 583.45 | D197: 584.48 | E197: 575.07 | F197: 566.68 | G197: 557.27 | H197: 592.87 | I197: 602.28 | J197: 610.67 | K197: 593.9 | L197: 576.1 | M197: 33.91025
A198: 189 | B198: NIACL | C198: 118.15 | D198: 117.97 | E198: 116.23 | F198: 114.32 | G198: 112.58 | H198: 119.88 | I198: 121.62 | J198: 123.53 | K198: 119.7 | L198: 116.05 | M198: 6.39598
A199: 190 | B199: RAMCOCEM | C199: 645.95 | D199: 650.60 | E199: 637.85 | F199: 629.75 | G199: 617.00 | H199: 658.70 | I199: 671.45 | J199: 679.55 | K199: 663.35 | L199: 642.5 | M199: 5.60028
A200: 191 | B200: TITAN | C200: 991.15 | D200: 1002.40 | E200: 975.80 | F200: 960.45 | G200: 933.85 | H200: 1017.75 | I200: 1044.35 | J200: 1059.70 | K200: 1029 | L200: 987.05 | M200: 42.72857
A201: 192 | B201: TORNTPHARM | C201: 2342.8 | D201: 2352.03 | E201: 2329.07 | F201: 2315.33 | G201: 2292.37 | H201: 2365.77 | I201: 2388.73 | J201: 2402.47 | K201: 2375 | L201: 2338.3 | M201: 2.72354
A202: 193 | B202: TORNTPOWER | C202: 332.85 | D202: 333.92 | E202: 330.03 | F202: 327.22 | G202: 323.33 | H202: 336.73 | I202: 340.62 | J202: 343.43 | K202: 337.8 | L202: 331.1 | M202: 11.84586
A203: 194 | B203: UPL | C203: 444 | D203: 449.75 | E203: 435.50 | F203: 427.00 | G203: 412.75 | H203: 458.25 | I203: 472.50 | J203: 481.00 | K203: 464 | L203: 441.25 | M203: 86.86831
A204: 195 | B204: ULTRACEMCO | C204: 3786.65 | D204: 3816.13 | E204: 3747.32 | F204: 3707.98 | G204: 3639.17 | H204: 3855.47 | I204: 3924.28 | J204: 3963.62 | K204: 3884.95 | L204: 3776.8 | M204: 6.35619
A205: 196 | B205: UNIONBANK | C205: 32.5 | D205: 32.88 | E205: 31.77 | F205: 31.03 | G205: 29.92 | H205: 33.62 | I205: 34.73 | J205: 35.47 | K205: 34 | L205: 32.15 | M205: 135.32163
... 30 more rows

Sheet MidCap Intra
L5: Back To Main Page
A6: FOR INTRA DAY TRADING | K6: =Main!B10 -> 2020-07-09
A9: Sr.no | B9: Scrip | C9: CLOSE RATE | D9: Pivot Point | E9: Supports | H9: Resistances
C10: Point | E10: S1 | F10: S2 | G10: S3 | H10: R1 | I10: R2 | J10: R3 | K10: HIGH | L10: LOW | M10: Total Trade Quanity in Lakhs
A11: 1 | B11: 3MINDIA | C11: 19256.05 | D11: 19351.68 | E11: 19104.37 | F11: 18952.68 | G11: 18705.37 | H11: 19503.37 | I11: 19750.68 | J11: 19902.37 | K11: 19599 | L11: 19200 | M11: 0.02261
A12: 2 | B12: AARTIIND | C12: 941.05 | D12: 945.98 | E12: 932.07 | F12: 923.08 | G12: 909.17 | H12: 954.97 | I12: 968.88 | J12: 977.87 | K12: 959.9 | L12: 937 | M12: 6.7418
A13: 3 | B13: AAVAS | C13: 1344.6 | D13: 1354.20 | E13: 1328.40 | F13: 1312.20 | G13: 1286.40 | H13: 1370.40 | I13: 1396.20 | J13: 1412.40 | K13: 1380 | L13: 1338 | M13: 0.26789
A14: 4 | B14: ABBOTINDIA | C14: 15634.5 | D14: 15678.17 | E14: 15566.33 | F14: 15498.17 | G14: 15386.33 | H14: 15746.33 | I14: 15858.17 | J14: 15926.33 | K14: 15790 | L14: 15610 | M14: 0.08802
A15: 5 | B15: ABCAPITAL | C15: 64.45 | D15: 65.18 | E15: 63.42 | F15: 62.38 | G15: 60.62 | H15: 66.22 | I15: 67.98 | J15: 69.02 | K15: 66.95 | L15: 64.15 | M15: 28.01571
A16: 6 | B16: ABFRL | C16: 121.75 | D16: 123.57 | E16: 119.43 | F16: 117.12 | G16: 112.98 | H16: 125.88 | I16: 130.02 | J16: 132.33 | K16: 127.7 | L16: 121.25 | M16: 24.72865
A17: 7 | B17: ACC | C17: 1312.9 | D17: 1308.07 | E17: 1295.43 | F17: 1277.97 | G17: 1265.33 | H17: 1325.53 | I17: 1338.17 | J17: 1355.63 | K17: 1320.7 | L17: 1290.6 | M17: 11.02284
A18: 8 | B18: ADANIGAS | C18: 154.35 | D18: 156.28 | E18: 152.07 | F18: 149.78 | G18: 145.57 | H18: 158.57 | I18: 162.78 | J18: 165.07 | K18: 160.5 | L18: 154 | M18: 10.61996
A19: 9 | B19: ADANIGREEN | C19: 393.1 | D19: 403.68 | E19: 382.52 | F19: 371.93 | G19: 350.77 | H19: 414.27 | I19: 435.43 | J19: 446.02 | K19: 424.85 | L19: 393.1 | M19: 29.43194
A20: 10 | B20: ADANIPORTS | C20: 340.6 | D20: 343.18 | E20: 336.72 | F20: 332.83 | G20: 326.37 | H20: 347.07 | I20: 353.53 | J20: 357.42 | K20: 349.65 | L20: 339.3 | M20: 39.88479
A21: 11 | B21: ADANIPOWER | C21: 35.7 | D21: 35.80 | E21: 35.50 | F21: 35.30 | G21: 35.00 | H21: 36.00 | I21: 36.30 | J21: 36.50 | K21: 36.1 | L21: 35.6 | M21: 26.37156
A22: 12 | B22: ADANITRANS | C22: 249.75 | D22: 250.92 | E22: 246.83 | F22: 243.92 | G22: 239.83 | H22: 253.83 | I22: 257.92 | J22: 260.83 | K22: 255 | L22: 248 | M22: 3.24967
A23: 13 | B23: ADVENZYMES | C23: 169.75 | D23: 171.37 | E23: 167.38 | F23: 165.02 | G23: 161.03 | H23: 173.73 | I23: 177.72 | J23: 180.08 | K23: 175.35 | L23: 169 | M23: 1.96974
A24: 14 | B24: AEGISCHEM | C24: 178.9 | D24: 180.33 | E24: 175.67 | F24: 172.43 | G24: 167.77 | H24: 183.57 | I24: 188.23 | J24: 191.47 | K24: 185 | L24: 177.1 | M24: 4.0241
A25: 15 | B25: AFFLE | C25: 1764.5 | D25: 1736.33 | E25: 1708.17 | F25: 1651.83 | G25: 1623.67 | H25: 1792.67 | I25: 1820.83 | J25: 1877.17 | K25: 1764.5 | L25: 1680 | M25: 1.36157
A26: 16 | B26: AIAENG | C26: 1645.8 | D26: 1643.13 | E26: 1618.27 | F26: 1590.73 | G26: 1565.87 | H26: 1670.67 | I26: 1695.53 | J26: 1723.07 | K26: 1668 | L26: 1615.6 | M26: 0.33956
A27: 17 | B27: AJANTPHARM | C27: 1425.55 | D27: 1423.58 | E27: 1412.67 | F27: 1399.78 | G27: 1388.87 | H27: 1436.47 | I27: 1447.38 | J27: 1460.27 | K27: 1434.5 | L27: 1410.7 | M27: 0.92292
A28: 18 | B28: AKZOINDIA | C28: 1852.2 | D28: 1862.07 | E28: 1830.13 | F28: 1808.07 | G28: 1776.13 | H28: 1884.13 | I28: 1916.07 | J28: 1938.13 | K28: 1894 | L28: 1840 | M28: 0.11289
A29: 19 | B29: ALKEM | C29: 2427.7 | D29: 2400.03 | E29: 2360.12 | F29: 2292.53 | G29: 2252.62 | H29: 2467.62 | I29: 2507.53 | J29: 2575.12 | K29: 2439.95 | L29: 2332.45 | M29: 2.71887
A30: 20 | B30: ALLCARGO | C30: 93.55 | D30: 94.92 | E30: 91.13 | F30: 88.72 | G30: 84.93 | H30: 97.33 | I30: 101.12 | J30: 103.53 | K30: 98.7 | L30: 92.5 | M30: 4.41959
A31: 21 | B31: AMARAJABAT | C31: 698.35 | D31: 701.78 | E31: 689.57 | F31: 680.78 | G31: 668.57 | H31: 710.57 | I31: 722.78 | J31: 731.57 | K31: 714 | L31: 693 | M31: 7.55956
A32: 22 | B32: AMBER | C32: 1510.25 | D32: 1514.48 | E32: 1464.37 | F32: 1418.48 | G32: 1368.37 | H32: 1560.37 | I32: 1610.48 | J32: 1656.37 | K32: 1564.6 | L32: 1468.6 | M32: 0.98124
A33: 23 | B33: AMBUJACEM | C33: 195.55 | D33: 194.98 | E33: 193.37 | F33: 191.18 | G33: 189.57 | H33: 197.17 | I33: 198.78 | J33: 200.97 | K33: 196.6 | L33: 192.8 | M33: 32.53882
A34: 24 | B34: APLAPOLLO | C34: 1714.2 | D34: 1726.90 | E34: 1673.80 | F34: 1633.40 | G34: 1580.30 | H34: 1767.30 | I34: 1820.40 | J34: 1860.80 | K34: 1780 | L34: 1686.5 | M34: 0.65282
A35: 25 | B35: APLLTD | C35: 931.1 | D35: 930.17 | E35: 916.43 | F35: 901.77 | G35: 888.03 | H35: 944.83 | I35: 958.57 | J35: 973.23 | K35: 943.9 | L35: 915.5 | M35: 4.20737
A36: 26 | B36: APOLLOHOSP | C36: 1393.85 | D36: 1404.02 | E36: 1377.03 | F36: 1360.22 | G36: 1333.23 | H36: 1420.83 | I36: 1447.82 | J36: 1464.63 | K36: 1431 | L36: 1387.2 | M36: 9.31697
A37: 27 | B37: APOLLOTYRE | C37: 116 | D37: 116.83 | E37: 114.07 | F37: 112.13 | G37: 109.37 | H37: 118.77 | I37: 121.53 | J37: 123.47 | K37: 119.6 | L37: 114.9 | M37: 65.95316
A38: 28 | B38: ARVINDFASN | C38: 169.65 | D38: 172.05 | E38: 166.25 | F38: 162.85 | G38: 157.05 | H38: 175.45 | I38: 181.25 | J38: 184.65 | K38: 177.85 | L38: 168.65 | M38: 1.01188
A39: 29 | B39: ASAHIINDIA | C39: 173.4 | D39: 174.63 | E39: 170.32 | F39: 167.23 | G39: 162.92 | H39: 177.72 | I39: 182.03 | J39: 185.12 | K39: 178.95 | L39: 171.55 | M39: 0.326
A40: 30 | B40: ASHOKA | C40: 64 | D40: 64.68 | E40: 62.92 | F40: 61.83 | G40: 60.07 | H40: 65.77 | I40: 67.53 | J40: 68.62 | K40: 66.45 | L40: 63.6 | M40: 29.20455
A41: 31 | B41: ASHOKLEY | C41: 51.95 | D41: 52.32 | E41: 51.23 | F41: 50.52 | G41: 49.43 | H41: 53.03 | I41: 54.12 | J41: 54.83 | K41: 53.4 | L41: 51.6 | M41: 550.43817
A42: 32 | B42: ASIANPAINT | C42: 1686.25 | D42: 1709.37 | E42: 1656.93 | F42: 1627.62 | G42: 1575.18 | H42: 1738.68 | I42: 1791.12 | J42: 1820.43 | K42: 1761.8 | L42: 1680.05 | M42: 27.25947
A43: 33 | B43: ASTERDM | C43: 123.2 | D43: 123.27 | E43: 121.78 | F43: 120.37 | G43: 118.88 | H43: 124.68 | I43: 126.17 | J43: 127.58 | K43: 124.75 | L43: 121.85 | M43: 7.45621
A44: 34 | B44: ASTRAL | C44: 964.25 | D44: 972.08 | E44: 946.97 | F44: 929.68 | G44: 904.57 | H44: 989.37 | I44: 1014.48 | J44: 1031.77 | K44: 997.2 | L44: 954.8 | M44: 2.46788
A45: 35 | B45: ASTRAZEN | C45: 3463.95 | D45: 3484.98 | E45: 3430.97 | F45: 3397.98 | G45: 3343.97 | H45: 3517.97 | I45: 3571.98 | J45: 3604.97 | K45: 3539 | L45: 3452 | M45: 0.23259
A46: 36 | B46: ATUL | C46: 4619.55 | D46: 4670.15 | E46: 4540.40 | F46: 4461.25 | G46: 4331.50 | H46: 4749.30 | I46: 4879.05 | J46: 4958.20 | K46: 4799.9 | L46: 4591 | M46: 0.36745
A47: 37 | B47: AUBANK | C47: 646.3 | D47: 637.53 | E47: 618.82 | F47: 591.33 | G47: 572.62 | H47: 665.02 | I47: 683.73 | J47: 711.22 | K47: 656.25 | L47: 610.05 | M47: 13.89266
A48: 38 | B48: AUROPHARMA | C48: 801.9 | D48: 795.68 | E48: 783.92 | F48: 765.93 | G48: 754.17 | H48: 813.67 | I48: 825.43 | J48: 843.42 | K48: 807.45 | L48: 777.7 | M48: 43.08398
A49: 39 | B49: AVANTIFEED | C49: 480.85 | D49: 485.13 | E49: 473.77 | F49: 466.68 | G49: 455.32 | H49: 492.22 | I49: 503.58 | J49: 510.67 | K49: 496.5 | L49: 478.05 | M49: 6.68293
A50: 40 | B50: AXISBANK | C50: 444.15 | D50: 448.85 | E50: 436.30 | F50: 428.45 | G50: 415.90 | H50: 456.70 | I50: 469.25 | J50: 477.10 | K50: 461.4 | L50: 441 | M50: 458.78605
A51: 41 | B51: BAJAJ-AUTO | C51: 2852.45 | D51: 2854.35 | E51: 2809.70 | F51: 2766.95 | G51: 2722.30 | H51: 2897.10 | I51: 2941.75 | J51: 2984.50 | K51: 2899 | L51: 2811.6 | M51: 13.4882
A52: 42 | B52: BAJAJCON | C52: 145.2 | D52: 146.35 | E52: 143.75 | F52: 142.30 | G52: 139.70 | H52: 147.80 | I52: 150.40 | J52: 151.85 | K52: 148.95 | L52: 144.9 | M52: 5.00684
A53: 43 | B53: BAJAJELEC | C53: 394.25 | D53: 395.78 | E53: 389.67 | F53: 385.08 | G53: 378.97 | H53: 400.37 | I53: 406.48 | J53: 411.07 | K53: 401.9 | L53: 391.2 | M53: 2.64998
A54: 44 | B54: BAJAJFINSV | C54: 6405.4 | D54: 6485.10 | E54: 6290.20 | F54: 6175.00 | G54: 5980.10 | H54: 6600.30 | I54: 6795.20 | J54: 6910.40 | K54: 6680 | L54: 6369.9 | M54: 14.00367
A55: 45 | B55: BAJAJHLDNG | C55: 2799.85 | D55: 2820.03 | E55: 2742.12 | F55: 2684.38 | G55: 2606.47 | H55: 2877.77 | I55: 2955.68 | J55: 3013.42 | K55: 2897.95 | L55: 2762.3 | M55: 1.03002
A56: 46 | B56: BAJFINANCE | C56: 3208.05 | D56: 3265.65 | E56: 3122.50 | F56: 3036.95 | G56: 2893.80 | H56: 3351.20 | I56: 3494.35 | J56: 3579.90 | K56: 3408.8 | L56: 3180.1 | M56: 191.26508
A57: 47 | B57: BALKRISIND | C57: 1256.45 | D57: 1271.32 | E57: 1228.63 | F57: 1200.82 | G57: 1158.13 | H57: 1299.13 | I57: 1341.82 | J57: 1369.63 | K57: 1314 | L57: 1243.5 | M57: 9.28151
A58: 48 | B58: BALMLAWRIE | C58: 112.95 | D58: 113.90 | E58: 111.35 | F58: 109.75 | G58: 107.20 | H58: 115.50 | I58: 118.05 | J58: 119.65 | K58: 116.45 | L58: 112.3 | M58: 4.44407
A59: 49 | B59: BALRAMCHIN | C59: 129.85 | D59: 131.57 | E59: 127.68 | F59: 125.52 | G59: 121.63 | H59: 133.73 | I59: 137.62 | J59: 139.78 | K59: 135.45 | L59: 129.4 | M59: 25.02638
A60: 50 | B60: BANDHANBNK | C60: 379.3 | D60: 384.45 | E60: 370.35 | F60: 361.40 | G60: 347.30 | H60: 393.40 | I60: 407.50 | J60: 416.45 | K60: 398.55 | L60: 375.5 | M60: 210.24304
A61: 51 | B61: BANKBARODA | C61: 52.75 | D61: 52.53 | E61: 50.97 | F61: 49.18 | G61: 47.62 | H61: 54.32 | I61: 55.88 | J61: 57.67 | K61: 54.1 | L61: 50.75 | M61: 968.84916
A62: 52 | B62: BANKINDIA | C62: 49.9 | D62: 50.47 | E62: 48.93 | F62: 47.97 | G62: 46.43 | H62: 51.43 | I62: 52.97 | J62: 53.93 | K62: 52 | L62: 49.5 | M62: 78.08684
A63: 53 | B63: BASF | C63: 1243.05 | D63: 1252.58 | E63: 1225.47 | F63: 1207.88 | G63: 1180.77 | H63: 1270.17 | I63: 1297.28 | J63: 1314.87 | K63: 1279.7 | L63: 1235 | M63: 0.30148
A64: 54 | B64: BATAINDIA | C64: 1294.3 | D64: 1304.10 | E64: 1278.20 | F64: 1262.10 | G64: 1236.20 | H64: 1320.20 | I64: 1346.10 | J64: 1362.20 | K64: 1330 | L64: 1288 | M64: 9.52132
A65: 55 | B65: BAYERCROP | C65: 5850.5 | D65: 5884.82 | E65: 5735.63 | F65: 5620.77 | G65: 5471.58 | H65: 5999.68 | I65: 6148.87 | J65: 6263.73 | K65: 6034 | L65: 5769.95 | M65: 0.26714
A66: 56 | B66: BBTC | C66: 1124.85 | D66: 1136.92 | E66: 1098.93 | F66: 1073.02 | G66: 1035.03 | H66: 1162.83 | I66: 1200.82 | J66: 1226.73 | K66: 1174.9 | L66: 1111 | M66: 4.6819
A67: 57 | B67: BDL | C67: 397.8 | D67: 407.83 | E67: 381.97 | F67: 366.13 | G67: 340.27 | H67: 423.67 | I67: 449.53 | J67: 465.37 | K67: 433.7 | L67: 392 | M67: 30.86963
A68: 58 | B68: BEL | C68: 103.55 | D68: 103.17 | E68: 100.93 | F68: 98.32 | G68: 96.08 | H68: 105.78 | I68: 108.02 | J68: 110.63 | K68: 105.4 | L68: 100.55 | M68: 227.16898
A69: 59 | B69: BEML | C69: 644.7 | D69: 648.60 | E69: 638.20 | F69: 631.70 | G69: 621.30 | H69: 655.10 | I69: 665.50 | J69: 672.00 | K69: 659 | L69: 642.1 | M69: 6.01302
A70: 60 | B70: BERGEPAINT | C70: 498.65 | D70: 504.35 | E70: 491.30 | F70: 483.95 | G70: 470.90 | H70: 511.70 | I70: 524.75 | J70: 532.10 | K70: 517.4 | L70: 497 | M70: 14.7449
A71: 61 | B71: BHARATFORG | C71: 362.5 | D71: 367.15 | E71: 355.60 | F71: 348.70 | G71: 337.15 | H71: 374.05 | I71: 385.60 | J71: 392.50 | K71: 378.7 | L71: 360.25 | M71: 18.54406
A72: 62 | B72: BHARTIARTL | C72: 561.3 | D72: 564.77 | E72: 555.53 | F72: 549.77 | G72: 540.53 | H72: 570.53 | I72: 579.77 | J72: 585.53 | K72: 574 | L72: 559 | M72: 94.04763
A73: 63 | B73: BHEL | C73: 41.25 | D73: 41.77 | E73: 40.48 | F73: 39.72 | G73: 38.43 | H73: 42.53 | I73: 43.82 | J73: 44.58 | K73: 43.05 | L73: 41 | M73: 623.59715
A74: 64 | B74: BIOCON | C74: 401.75 | D74: 404.17 | E74: 397.98 | F74: 394.22 | G74: 388.03 | H74: 407.93 | I74: 414.12 | J74: 417.88 | K74: 410.35 | L74: 400.4 | M74: 47.45612
A75: 65 | B75: BIRLACORPN | C75: 591.65 | D75: 596.77 | E75: 584.93 | F75: 578.22 | G75: 566.38 | H75: 603.48 | I75: 615.32 | J75: 622.03 | K75: 608.6 | L75: 590.05 | M75: 1.33016
A76: 66 | B76: BLISSGVS | C76: 99.65 | D76: 100.05 | E76: 98.10 | F76: 96.55 | G76: 94.60 | H76: 101.60 | I76: 103.55 | J76: 105.10 | K76: 102 | L76: 98.5 | M76: 4.62879
A77: 67 | B77: BLUEDART | C77: 2012.5 | D77: 2024.13 | E77: 1988.27 | F77: 1964.03 | G77: 1928.17 | H77: 2048.37 | I77: 2084.23 | J77: 2108.47 | K77: 2060 | L77: 1999.9 | M77: 0.16746
A78: 68 | B78: BLUESTARCO | C78: 489.3 | D78: 491.57 | E78: 483.48 | F78: 477.67 | G78: 469.58 | H78: 497.38 | I78: 505.47 | J78: 511.28 | K78: 499.65 | L78: 485.75 | M78: 0.43121
A79: 69 | B79: BOMDYEING | C79: 75.2 | D79: 75.90 | E79: 73.80 | F79: 72.40 | G79: 70.30 | H79: 77.30 | I79: 79.40 | J79: 80.80 | K79: 78 | L79: 74.5 | M79: 22.42147
A80: 70 | B80: BOSCHLTD | C80: 13528.1 | D80: 13432.47 | E80: 13074.93 | F80: 12621.77 | G80: 12264.23 | H80: 13885.63 | I80: 14243.17 | J80: 14696.33 | K80: 13790 | L80: 12979.3 | M80: 2.13525
A81: 71 | B81: BPCL | C81: 378.15 | D81: 380.58 | E81: 373.72 | F81: 369.28 | G81: 362.42 | H81: 385.02 | I81: 391.88 | J81: 396.32 | K81: 387.45 | L81: 376.15 | M81: 42.2342
A82: 72 | B82: BRIGADE | C82: 139.65 | D82: 141.25 | E82: 136.40 | F82: 133.15 | G82: 128.30 | H82: 144.50 | I82: 149.35 | J82: 152.60 | K82: 146.1 | L82: 138 | M82: 2.90673
A83: 73 | B83: BRITANNIA | C83: 3685 | D83: 3675.83 | E83: 3639.17 | F83: 3593.33 | G83: 3556.67 | H83: 3721.67 | I83: 3758.33 | J83: 3804.17 | K83: 3712.5 | L83: 3630 | M83: 5.31417
A84: 74 | B84: BSE | C84: 499.9 | D84: 502.42 | E84: 494.88 | F84: 489.87 | G84: 482.33 | H84: 507.43 | I84: 514.97 | J84: 519.98 | K84: 509.95 | L84: 497.4 | M84: 4.14748
A85: 75 | B85: BSOFT | C85: 99.3 | D85: 97.93 | E85: 94.87 | F85: 90.43 | G85: 87.37 | H85: 102.37 | I85: 105.43 | J85: 109.87 | K85: 101 | L85: 93.5 | M85: 51.87381
A86: 76 | B86: CADILAHC | C86: 359.7 | D86: 361.25 | E86: 356.15 | F86: 352.60 | G86: 347.50 | H86: 364.80 | I86: 369.90 | J86: 373.45 | K86: 366.35 | L86: 357.7 | M86: 26.06845
A87: 77 | B87: CANBK | C87: 109 | D87: 109.00 | E87: 104.50 | F87: 100.00 | G87: 95.50 | H87: 113.50 | I87: 118.00 | J87: 122.50 | K87: 113.5 | L87: 104.5 | M87: 485.69715
A88: 78 | B88: CANFINHOME | C88: 362.8 | D88: 366.13 | E88: 354.77 | F88: 346.73 | G88: 335.37 | H88: 374.17 | I88: 385.53 | J88: 393.57 | K88: 377.5 | L88: 358.1 | M88: 3.36731
A89: 79 | B89: CAPLIPOINT | C89: 351.3 | D89: 350.58 | E89: 343.72 | F89: 336.13 | G89: 329.27 | H89: 358.17 | I89: 365.03 | J89: 372.62 | K89: 357.45 | L89: 343 | M89: 4.03703
A90: 80 | B90: CARBORUNIV | C90: 257.35 | D90: 259.48 | E90: 254.12 | F90: 250.88 | G90: 245.52 | H90: 262.72 | I90: 268.08 | J90: 271.32 | K90: 264.85 | L90: 256.25 | M90: 0.46657
A91: 81 | B91: CARERATING | C91: 424.85 | D91: 428.13 | E91: 412.27 | F91: 399.68 | G91: 383.82 | H91: 440.72 | I91: 456.58 | J91: 469.17 | K91: 444 | L91: 415.55 | M91: 2.0434
A92: 82 | B92: CASTROLIND | C92: 125.05 | D92: 125.35 | E92: 123.75 | F92: 122.45 | G92: 120.85 | H92: 126.65 | I92: 128.25 | J92: 129.55 | K92: 126.95 | L92: 124.05 | M92: 14.27792
A93: 83 | B93: CCL | C93: 248.25 | D93: 248.75 | E93: 245.10 | F93: 241.95 | G93: 238.30 | H93: 251.90 | I93: 255.55 | J93: 258.70 | K93: 252.4 | L93: 245.6 | M93: 1.86166
A94: 84 | B94: CDSL | C94: 297.8 | D94: 296.27 | E94: 281.53 | F94: 265.27 | G94: 250.53 | H94: 312.53 | I94: 327.27 | J94: 343.53 | K94: 311 | L94: 280 | M94: 21.0629
A95: 85 | B95: CEATLTD | C95: 905.95 | D95: 910.47 | E95: 897.98 | F95: 890.02 | G95: 877.53 | H95: 918.43 | I95: 930.92 | J95: 938.88 | K95: 922.95 | L95: 902.5 | M95: 2.26969
A96: 86 | B96: CENTRALBK | C96: 17.6 | D96: 17.75 | E96: 17.15 | F96: 16.70 | G96: 16.10 | H96: 18.20 | I96: 18.80 | J96: 19.25 | K96: 18.35 | L96: 17.3 | M96: 40.05644
A97: 87 | B97: CENTURYPLY | C97: 142.85 | D97: 139.00 | E97: 134.00 | F97: 125.15 | G97: 120.15 | H97: 147.85 | I97: 152.85 | J97: 161.70 | K97: 144 | L97: 130.15 | M97: 35.69401
A98: 88 | B98: CERA | C98: 2217.3 | D98: 2206.60 | E98: 2186.25 | F98: 2155.20 | G98: 2134.85 | H98: 2237.65 | I98: 2258.00 | J98: 2289.05 | K98: 2226.95 | L98: 2175.55 | M98: 0.0362
A99: 89 | B99: CESC | C99: 668.05 | D99: 657.27 | E99: 638.78 | F99: 609.52 | G99: 591.03 | H99: 686.53 | I99: 705.02 | J99: 734.28 | K99: 675.75 | L99: 628 | M99: 11.02344
A100: 90 | B100: CGCL | C100: 172 | D100: 173.03 | E100: 169.22 | F100: 166.43 | G100: 162.62 | H100: 175.82 | I100: 179.63 | J100: 182.42 | K100: 176.85 | L100: 170.25 | M100: 1.19345
A101: 91 | B101: CHALET | C101: 143.35 | D101: 147.30 | E101: 137.60 | F101: 131.85 | G101: 122.15 | H101: 153.05 | I101: 162.75 | J101: 168.50 | K101: 157 | L101: 141.55 | M101: 4.37883
A102: 92 | B102: CHAMBLFERT | C102: 153.95 | D102: 154.13 | E102: 152.37 | F102: 150.78 | G102: 149.02 | H102: 155.72 | I102: 157.48 | J102: 159.07 | K102: 155.9 | L102: 152.55 | M102: 9.09069
A103: 93 | B103: CHENNPETRO | C103: 82.15 | D103: 82.57 | E103: 80.33 | F103: 78.52 | G103: 76.28 | H103: 84.38 | I103: 86.62 | J103: 88.43 | K103: 84.8 | L103: 80.75 | M103: 19.99232
A104: 94 | B104: CHOLAFIN | C104: 205.3 | D104: 208.93 | E104: 199.87 | F104: 194.43 | G104: 185.37 | H104: 214.37 | I104: 223.43 | J104: 228.87 | K104: 218 | L104: 203.5 | M104: 146.65711
A105: 95 | B105: CHOLAHLDNG | C105: 324.7 | D105: 327.70 | E105: 318.00 | F105: 311.30 | G105: 301.60 | H105: 334.40 | I105: 344.10 | J105: 350.80 | K105: 337.4 | L105: 321 | M105: 0.87022
A106: 96 | B106: CIPLA | C106: 634.4 | D106: 638.30 | E106: 628.60 | F106: 622.80 | G106: 613.10 | H106: 644.10 | I106: 653.80 | J106: 659.60 | K106: 648 | L106: 632.5 | M106: 69.5356
A107: 97 | B107: COALINDIA | C107: 132.85 | D107: 132.97 | E107: 131.48 | F107: 130.12 | G107: 128.63 | H107: 134.33 | I107: 135.82 | J107: 137.18 | K107: 134.45 | L107: 131.6 | M107: 123.0884
A108: 98 | B108: COCHINSHIP | C108: 318.9 | D108: 321.08 | E108: 314.82 | F108: 310.73 | G108: 304.47 | H108: 325.17 | I108: 331.43 | J108: 335.52 | K108: 327.35 | L108: 317 | M108: 5.04906
A109: 99 | B109: COLPAL | C109: 1390.5 | D109: 1388.50 | E109: 1373.00 | F109: 1355.50 | G109: 1340.00 | H109: 1406.00 | I109: 1421.50 | J109: 1439.00 | K109: 1404 | L109: 1371 | M109: 7.63562
A110: 100 | B110: CONCOR | C110: 435.6 | D110: 433.50 | E110: 420.30 | F110: 405.00 | G110: 391.80 | H110: 448.80 | I110: 462.00 | J110: 477.30 | K110: 446.7 | L110: 418.2 | M110: 34.36605
A111: 101 | B111: COROMANDEL | C111: 745.8 | D111: 755.03 | E111: 731.17 | F111: 716.53 | G111: 692.67 | H111: 769.67 | I111: 793.53 | J111: 808.17 | K111: 778.9 | L111: 740.4 | M111: 5.77939
A112: 102 | B112: CREDITACC | C112: 619.3 | D112: 619.30 | E112: 619.30 | F112: 619.30 | G112: 619.30 | H112: 619.30 | I112: 619.30 | J112: 619.30 | K112: 619.3 | L112: 619.3 | M112: 0.77139
A113: 103 | B113: CRISIL | C113: 1731.15 | D113: 1730.03 | E113: 1716.17 | F113: 1701.18 | G113: 1687.32 | H113: 1745.02 | I113: 1758.88 | J113: 1773.87 | K113: 1743.9 | L113: 1715.05 | M113: 0.18356
A114: 104 | B114: CROMPTON | C114: 239.65 | D114: 239.78 | E114: 236.17 | F114: 232.68 | G114: 229.07 | H114: 243.27 | I114: 246.88 | J114: 250.37 | K114: 243.4 | L114: 236.3 | M114: 10.86596
A115: 105 | B115: CUB | C115: 134.75 | D115: 134.18 | E115: 131.97 | F115: 129.18 | G115: 126.97 | H115: 136.97 | I115: 139.18 | J115: 141.97 | K115: 136.4 | L115: 131.4 | M115: 56.88563
A116: 106 | B116: CUMMINSIND | C116: 411.05 | D116: 416.10 | E116: 403.50 | F116: 395.95 | G116: 383.35 | H116: 423.65 | I116: 436.25 | J116: 443.80 | K116: 428.7 | L116: 408.55 | M116: 28.37698
A117: 107 | B117: CYIENT | C117: 261 | D117: 263.47 | E117: 254.93 | F117: 248.87 | G117: 240.33 | H117: 269.53 | I117: 278.07 | J117: 284.13 | K117: 272 | L117: 257.4 | M117: 3.80404
A118: 108 | B118: DABUR | C118: 473.25 | D118: 476.07 | E118: 468.23 | F118: 463.22 | G118: 455.38 | H118: 481.08 | I118: 488.92 | J118: 493.93 | K118: 483.9 | L118: 471.05 | M118: 26.7081
A119: 109 | B119: DALBHARAT | C119: 710.65 | D119: 712.20 | E119: 699.45 | F119: 688.25 | G119: 675.50 | H119: 723.40 | I119: 736.15 | J119: 747.35 | K119: 724.95 | L119: 701 | M119: 0.65488
A120: 110 | B120: DBCORP | C120: 77.6 | D120: 77.52 | E120: 76.33 | F120: 75.07 | G120: 73.88 | H120: 78.78 | I120: 79.97 | J120: 81.23 | K120: 78.7 | L120: 76.25 | M120: 4.31506
A121: 111 | B121: DBL | C121: 286 | D121: 288.60 | E121: 282.40 | F121: 278.80 | G121: 272.60 | H121: 292.20 | I121: 298.40 | J121: 302.00 | K121: 294.8 | L121: 285 | M121: 2.65571
A122: 112 | B122: DCAL | C122: 134.6 | D122: 137.70 | E122: 128.40 | F122: 122.20 | G122: 112.90 | H122: 143.90 | I122: 153.20 | J122: 159.40 | K122: 147 | L122: 131.5 | M122: 5.54454
A123: 113 | B123: DCBBANK | C123: 84.5 | D123: 85.60 | E123: 82.70 | F123: 80.90 | G123: 78.00 | H123: 87.40 | I123: 90.30 | J123: 92.10 | K123: 88.5 | L123: 83.8 | M123: 46.02176
A124: 114 | B124: DCMSHRIRAM | C124: 316.2 | D124: 318.65 | E124: 310.35 | F124: 304.50 | G124: 296.20 | H124: 324.50 | I124: 332.80 | J124: 338.65 | K124: 326.95 | L124: 312.8 | M124: 1.01866
A125: 115 | B125: DEEPAKNTR | C125: 513.9 | D125: 519.78 | E125: 504.77 | F125: 495.63 | G125: 480.62 | H125: 528.92 | I125: 543.93 | J125: 553.07 | K125: 534.8 | L125: 510.65 | M125: 8.11944
A126: 116 | B126: DELTACORP | C126: 92.1 | D126: 92.07 | E126: 90.23 | F126: 88.37 | G126: 86.53 | H126: 93.93 | I126: 95.77 | J126: 97.63 | K126: 93.9 | L126: 90.2 | M126: 16.01109
A127: 117 | B127: DHFL | C127: 15.65 | D127: 15.67 | E127: 15.53 | F127: 15.42 | G127: 15.28 | H127: 15.78 | I127: 15.92 | J127: 16.03 | K127: 15.8 | L127: 15.55 | M127: 10.30153
A128: 118 | B128: DISHTV | C128: 8.1 | D128: 8.08 | E128: 7.82 | F128: 7.53 | G128: 7.27 | H128: 8.37 | I128: 8.63 | J128: 8.92 | K128: 8.35 | L128: 7.8 | M128: 102.58159
A129: 119 | B129: DIVISLAB | C129: 2163.5 | D129: 2172.52 | E129: 2132.03 | F129: 2100.57 | G129: 2060.08 | H129: 2203.98 | I129: 2244.47 | J129: 2275.93 | K129: 2213 | L129: 2141.05 | M129: 15.86377
A130: 120 | B130: DIXON | C130: 6086.4 | D130: 6045.45 | E130: 5940.90 | F130: 5795.40 | G130: 5690.85 | H130: 6190.95 | I130: 6295.50 | J130: 6441.00 | K130: 6150 | L130: 5899.95 | M130: 0.89254
A131: 121 | B131: DLF | C131: 146.4 | D131: 148.83 | E131: 143.17 | F131: 139.93 | G131: 134.27 | H131: 152.07 | I131: 157.73 | J131: 160.97 | K131: 154.5 | L131: 145.6 | M131: 128.26654
A132: 122 | B132: DMART | C132: 2319.55 | D132: 2335.10 | E132: 2284.90 | F132: 2250.25 | G132: 2200.05 | H132: 2369.75 | I132: 2419.95 | J132: 2454.60 | K132: 2385.3 | L132: 2300.45 | M132: 4.91069
A133: 123 | B133: DRREDDY | C133: 3886.7 | D133: 3887.47 | E133: 3830.23 | F133: 3773.77 | G133: 3716.53 | H133: 3943.93 | I133: 4001.17 | J133: 4057.63 | K133: 3944.7 | L133: 3831 | M133: 13.62258
A134: 124 | B134: ECLERX | C134: 463.5 | D134: 467.42 | E134: 456.08 | F134: 448.67 | G134: 437.33 | H134: 474.83 | I134: 486.17 | J134: 493.58 | K134: 478.75 | L134: 460 | M134: 1.74213
A135: 125 | B135: EDELWEISS | C135: 57.3 | D135: 58.05 | E135: 56.35 | F135: 55.40 | G135: 53.70 | H135: 59.00 | I135: 60.70 | J135: 61.65 | K135: 59.75 | L135: 57.1 | M135: 11.8962
A136: 126 | B136: EICHERMOT | C136: 19391.7 | D136: 19601.02 | E136: 19102.03 | F136: 18812.37 | G136: 18313.38 | H136: 19890.68 | I136: 20389.67 | J136: 20679.33 | K136: 20100 | L136: 19311.35 | M136: 3.56865
A137: 127 | B137: EIDPARRY | C137: 259.3 | D137: 261.72 | E137: 254.93 | F137: 250.57 | G137: 243.78 | H137: 266.08 | I137: 272.87 | J137: 277.23 | K137: 268.5 | L137: 257.35 | M137: 9.18021
A138: 128 | B138: EIHOTEL | C138: 67.15 | D138: 68.05 | E138: 65.60 | F138: 64.05 | G138: 61.60 | H138: 69.60 | I138: 72.05 | J138: 73.60 | K138: 70.5 | L138: 66.5 | M138: 26.98775
A139: 129 | B139: ELGIEQUIP | C139: 153 | D139: 154.20 | E139: 151.20 | F139: 149.40 | G139: 146.40 | H139: 156.00 | I139: 159.00 | J139: 160.80 | K139: 157.2 | L139: 152.4 | M139: 0.69039
A140: 130 | B140: EMAMILTD | C140: 234.55 | D140: 234.68 | E140: 232.07 | F140: 229.58 | G140: 226.97 | H140: 237.17 | I140: 239.78 | J140: 242.27 | K140: 237.3 | L140: 232.2 | M140: 13.66737
A141: 131 | B141: ENDURANCE | C141: 909.1 | D141: 919.00 | E141: 891.10 | F141: 873.10 | G141: 845.20 | H141: 937.00 | I141: 964.90 | J141: 982.90 | K141: 946.9 | L141: 901 | M141: 1.03633
A142: 132 | B142: ENGINERSIN | C142: 72.8 | D142: 73.33 | E142: 71.72 | F142: 70.63 | G142: 69.02 | H142: 74.42 | I142: 76.03 | J142: 77.12 | K142: 74.95 | L142: 72.25 | M142: 26.01159
A143: 133 | B143: EQUITAS | C143: 56.8 | D143: 57.77 | E143: 55.53 | F143: 54.27 | G143: 52.03 | H143: 59.03 | I143: 61.27 | J143: 62.53 | K143: 60 | L143: 56.5 | M143: 186.54529
A144: 134 | B144: ERIS | C144: 447 | D144: 450.63 | E144: 442.37 | F144: 437.73 | G144: 429.47 | H144: 455.27 | I144: 463.53 | J144: 468.17 | K144: 458.9 | L144: 446 | M144: 0.54318
A145: 135 | B145: ESCORTS | C145: 1088.1 | D145: 1095.97 | E145: 1073.23 | F145: 1058.37 | G145: 1035.63 | H145: 1110.83 | I145: 1133.57 | J145: 1148.43 | K145: 1118.7 | L145: 1081.1 | M145: 17.35342
A146: 136 | B146: ESSELPACK | C146: 184.2 | D146: 184.62 | E146: 180.23 | F146: 176.27 | G146: 171.88 | H146: 188.58 | I146: 192.97 | J146: 196.93 | K146: 189 | L146: 180.65 | M146: 1.31499
A147: 137 | B147: EXIDEIND | C147: 154.95 | D147: 155.43 | E147: 153.67 | F147: 152.38 | G147: 150.62 | H147: 156.72 | I147: 158.48 | J147: 159.77 | K147: 157.2 | L147: 154.15 | M147: 20.59442
A148: 138 | B148: FCONSUMER | C148: 12.35 | D148: 12.35 | E148: 12.35 | F148: 12.35 | G148: 12.35 | H148: 12.35 | I148: 12.35 | J148: 12.35 | K148: 12.35 | L148: 12.35 | M148: 8.20186
A149: 139 | B149: FDC | C149: 248 | D149: 250.33 | E149: 244.67 | F149: 241.33 | G149: 235.67 | H149: 253.67 | I149: 259.33 | J149: 262.67 | K149: 256 | L149: 247 | M149: 8.53381
A150: 140 | B150: FEDERALBNK | C150: 54.4 | D150: 54.90 | E150: 53.60 | F150: 52.80 | G150: 51.50 | H150: 55.70 | I150: 57.00 | J150: 57.80 | K150: 56.2 | L150: 54.1 | M150: 369.08181
A151: 141 | B151: FINCABLES | C151: 307.1 | D151: 304.25 | E151: 296.05 | F151: 285.00 | G151: 276.80 | H151: 315.30 | I151: 323.50 | J151: 334.55 | K151: 312.45 | L151: 293.2 | M151: 5.01781
A152: 142 | B152: FINEORG | C152: 1925.1 | D152: 1926.55 | E152: 1893.10 | F152: 1861.10 | G152: 1827.65 | H152: 1958.55 | I152: 1992.00 | J152: 2024.00 | K152: 1960 | L152: 1894.55 | M152: 1.55602
A153: 143 | B153: FINPIPE | C153: 490 | D153: 491.37 | E153: 484.23 | F153: 478.47 | G153: 471.33 | H153: 497.13 | I153: 504.27 | J153: 510.03 | K153: 498.5 | L153: 485.6 | M153: 0.53227
A154: 144 | B154: FLFL | C154: 133.55 | D154: 135.60 | E154: 131.50 | F154: 129.45 | G154: 125.35 | H154: 137.65 | I154: 141.75 | J154: 143.80 | K154: 139.7 | L154: 133.55 | M154: 3.46723
A155: 145 | B155: FMGOETZE | C155: 385.45 | D155: 389.15 | E155: 378.30 | F155: 371.15 | G155: 360.30 | H155: 396.30 | I155: 407.15 | J155: 414.30 | K155: 400 | L155: 382 | M155: 0.01624
A156: 146 | B156: FORTIS | C156: 122.95 | D156: 123.43 | E156: 122.12 | F156: 121.28 | G156: 119.97 | H156: 124.27 | I156: 125.58 | J156: 126.42 | K156: 124.75 | L156: 122.6 | M156: 18.99425
A157: 147 | B157: FRETAIL | C157: 117.2 | D157: 118.00 | E157: 116.40 | F157: 115.60 | G157: 114.00 | H157: 118.80 | I157: 120.40 | J157: 121.20 | K157: 119.6 | L157: 117.2 | M157: 17.19051
A158: 148 | B158: FSL | C158: 39.1 | D158: 38.92 | E158: 37.68 | F158: 36.27 | G158: 35.03 | H158: 40.33 | I158: 41.57 | J158: 42.98 | K158: 40.15 | L158: 37.5 | M158: 43.57998
A159: 149 | B159: GAIL | C159: 102.7 | D159: 102.87 | E159: 101.53 | F159: 100.37 | G159: 99.03 | H159: 104.03 | I159: 105.37 | J159: 106.53 | K159: 104.2 | L159: 101.7 | M159: 151.39503
A160: 150 | B160: GALAXYSURF | C160: 1588.95 | D160: 1596.05 | E160: 1578.90 | F160: 1568.85 | G160: 1551.70 | H160: 1606.10 | I160: 1623.25 | J160: 1633.30 | K160: 1613.2 | L160: 1586 | M160: 0.1837
A161: 151 | B161: GARFIBRES | C161: 1501.15 | D161: 1503.75 | E161: 1457.50 | F161: 1413.85 | G161: 1367.60 | H161: 1547.40 | I161: 1593.65 | J161: 1637.30 | K161: 1550 | L161: 1460.1 | M161: 0.10097
A162: 152 | B162: GAYAPROJ | C162: 16.65 | D162: 16.23 | E162: 15.82 | F162: 14.98 | G162: 14.57 | H162: 17.07 | I162: 17.48 | J162: 18.32 | K162: 16.65 | L162: 15.4 | M162: 29.7144
A163: 153 | B163: GEPIL | C163: 520.4 | D163: 522.80 | E163: 515.60 | F163: 510.80 | G163: 503.60 | H163: 527.60 | I163: 534.80 | J163: 539.60 | K163: 530 | L163: 518 | M163: 0.51555
A164: 154 | B164: GESHIP | C164: 211.3 | D164: 212.47 | E164: 208.98 | F164: 206.67 | G164: 203.18 | H164: 214.78 | I164: 218.27 | J164: 220.58 | K164: 215.95 | L164: 210.15 | M164: 0.60661
A165: 155 | B165: GET&D | C165: 82.35 | D165: 82.28 | E165: 81.17 | F165: 79.98 | G165: 78.87 | H165: 83.47 | I165: 84.58 | J165: 85.77 | K165: 83.4 | L165: 81.1 | M165: 1.31728
A166: 156 | B166: GHCL | C166: 169.4 | D166: 172.27 | E166: 164.53 | F166: 159.67 | G166: 151.93 | H166: 177.13 | I166: 184.87 | J166: 189.73 | K166: 180 | L166: 167.4 | M166: 16.462
A167: 157 | B167: GICRE | C167: 160.85 | D167: 158.92 | E167: 152.08 | F167: 143.32 | G167: 136.48 | H167: 167.68 | I167: 174.52 | J167: 183.28 | K167: 165.75 | L167: 150.15 | M167: 23.95442
A168: 158 | B168: GILLETTE | C168: 5092.25 | D168: 5091.10 | E168: 5057.20 | F168: 5022.15 | G168: 4988.25 | H168: 5126.15 | I168: 5160.05 | J168: 5195.10 | K168: 5125 | L168: 5056.05 | M168: 0.56985
A169: 159 | B169: GLAXO | C169: 1462.45 | D169: 1472.00 | E169: 1448.95 | F169: 1435.45 | G169: 1412.40 | H169: 1485.50 | I169: 1508.55 | J169: 1522.05 | K169: 1495.05 | L169: 1458.5 | M169: 0.21658
A170: 160 | B170: GLENMARK | C170: 419.35 | D170: 419.83 | E170: 414.67 | F170: 409.98 | G170: 404.82 | H170: 424.52 | I170: 429.68 | J170: 434.37 | K170: 425 | L170: 415.15 | M170: 36.60105
A171: 161 | B171: GMDCLTD | C171: 41.85 | D171: 42.13 | E171: 40.77 | F171: 39.68 | G171: 38.32 | H171: 43.22 | I171: 44.58 | J171: 45.67 | K171: 43.5 | L171: 41.05 | M171: 28.60571
A172: 162 | B172: GMRINFRA | C172: 20.9 | D172: 21.12 | E172: 20.53 | F172: 20.17 | G172: 19.58 | H172: 21.48 | I172: 22.07 | J172: 22.43 | K172: 21.7 | L172: 20.75 | M172: 173.07951
A173: 163 | B173: GNFC | C173: 163.45 | D173: 164.72 | E173: 160.63 | F173: 157.82 | G173: 153.73 | H173: 167.53 | I173: 171.62 | J173: 174.43 | K173: 168.8 | L173: 161.9 | M173: 25.15175
A174: 164 | B174: GODFRYPHLP | C174: 973.9 | D174: 976.67 | E174: 968.33 | F174: 962.77 | G174: 954.43 | H174: 982.23 | I174: 990.57 | J174: 996.13 | K174: 985 | L174: 971.1 | M174: 0.36733
A175: 165 | B175: GODREJAGRO | C175: 462.4 | D175: 458.98 | E175: 452.22 | F175: 442.03 | G175: 435.27 | H175: 469.17 | I175: 475.93 | J175: 486.12 | K175: 465.75 | L175: 448.8 | M175: 3.83917
A176: 166 | B176: GODREJCP | C176: 695.35 | D176: 699.05 | E176: 689.70 | F176: 684.05 | G176: 674.70 | H176: 704.70 | I176: 714.05 | J176: 719.70 | K176: 708.4 | L176: 693.4 | M176: 7.84395
A177: 167 | B177: GODREJIND | C177: 394.95 | D177: 396.98 | E177: 388.97 | F177: 382.98 | G177: 374.97 | H177: 402.97 | I177: 410.98 | J177: 416.97 | K177: 405 | L177: 391 | M177: 0.69665
A178: 168 | B178: GODREJPROP | C178: 876.25 | D178: 881.78 | E178: 864.57 | F178: 852.88 | G178: 835.67 | H178: 893.47 | I178: 910.68 | J178: 922.37 | K178: 899 | L178: 870.1 | M178: 2.53504
A179: 169 | B179: GPPL | C179: 81.3 | D179: 82.82 | E179: 78.98 | F179: 76.67 | G179: 72.83 | H179: 85.13 | I179: 88.97 | J179: 91.28 | K179: 86.65 | L179: 80.5 | M179: 5.09906
A180: 170 | B180: GRANULES | C180: 209.7 | D180: 210.23 | E180: 206.57 | F180: 203.43 | G180: 199.77 | H180: 213.37 | I180: 217.03 | J180: 220.17 | K180: 213.9 | L180: 207.1 | M180: 16.51058
A181: 171 | B181: GRAPHITE | C181: 185.7 | D181: 187.53 | E181: 183.17 | F181: 180.63 | G181: 176.27 | H181: 190.07 | I181: 194.43 | J181: 196.97 | K181: 191.9 | L181: 185 | M181: 4.75917
A182: 172 | B182: GRASIM | C182: 608.5 | D182: 615.22 | E182: 598.58 | F182: 588.67 | G182: 572.03 | H182: 625.13 | I182: 641.77 | J182: 651.68 | K182: 631.85 | L182: 605.3 | M182: 23.91585
A183: 173 | B183: GREAVESCOT | C183: 89.15 | D183: 89.93 | E183: 87.87 | F183: 86.58 | G183: 84.52 | H183: 91.22 | I183: 93.28 | J183: 94.57 | K183: 92 | L183: 88.65 | M183: 6.59878
A184: 174 | B184: GRINDWELL | C184: 486.65 | D184: 487.85 | E184: 481.80 | F184: 476.95 | G184: 470.90 | H184: 492.70 | I184: 498.75 | J184: 503.60 | K184: 493.9 | L184: 483 | M184: 0.14886
A185: 175 | B185: GSFC | C185: 58.5 | D185: 59.08 | E185: 57.42 | F185: 56.33 | G185: 54.67 | H185: 60.17 | I185: 61.83 | J185: 62.92 | K185: 60.75 | L185: 58 | M185: 22.35381
A186: 176 | B186: GSPL | C186: 214.25 | D186: 217.07 | E186: 209.68 | F186: 205.12 | G186: 197.73 | H186: 221.63 | I186: 229.02 | J186: 233.58 | K186: 224.45 | L186: 212.5 | M186: 5.08744
A187: 177 | B187: GUJALKALI | C187: 344.6 | D187: 347.53 | E187: 339.07 | F187: 333.53 | G187: 325.07 | H187: 353.07 | I187: 361.53 | J187: 367.07 | K187: 356 | L187: 342 | M187: 1.70206
A188: 178 | B188: GUJGASLTD | C188: 294.9 | D188: 299.37 | E188: 287.53 | F188: 280.17 | G188: 268.33 | H188: 306.73 | I188: 318.57 | J188: 325.93 | K188: 311.2 | L188: 292 | M188: 16.00024
A189: 179 | B189: GULFOILLUB | C189: 569.7 | D189: 571.88 | E189: 565.82 | F189: 561.93 | G189: 555.87 | H189: 575.77 | I189: 581.83 | J189: 585.72 | K189: 577.95 | L189: 568 | M189: 6.5672
A190: 180 | B190: HAL | C190: 945.3 | D190: 966.10 | E190: 917.20 | F190: 889.10 | G190: 840.20 | H190: 994.20 | I190: 1043.10 | J190: 1071.20 | K190: 1015 | L190: 938 | M190: 12.32999
A191: 181 | B191: HATSUN | C191: 661.45 | D191: 662.95 | E191: 651.00 | F191: 640.55 | G191: 628.60 | H191: 673.40 | I191: 685.35 | J191: 695.80 | K191: 674.9 | L191: 652.5 | M191: 0.10952
A192: 182 | B192: HAVELLS | C192: 582 | D192: 589.22 | E192: 572.78 | F192: 563.57 | G192: 547.13 | H192: 598.43 | I192: 614.87 | J192: 624.08 | K192: 605.65 | L192: 580 | M192: 22.42772
A193: 183 | B193: HCLTECH | C193: 574.9 | D193: 580.88 | E193: 567.02 | F193: 559.13 | G193: 545.27 | H193: 588.77 | I193: 602.63 | J193: 610.52 | K193: 594.75 | L193: 573 | M193: 46.25061
A194: 184 | B194: HDFC | C194: 1886.05 | D194: 1888.02 | E194: 1869.03 | F194: 1852.02 | G194: 1833.03 | H194: 1905.03 | I194: 1924.02 | J194: 1941.03 | K194: 1907 | L194: 1871 | M194: 28.85754
A195: 185 | B195: HDFCAMC | C195: 2557 | D195: 2579.67 | E195: 2527.33 | F195: 2497.67 | G195: 2445.33 | H195: 2609.33 | I195: 2661.67 | J195: 2691.33 | K195: 2632 | L195: 2550 | M195: 3.53696
A196: 186 | B196: HDFCBANK | C196: 1110.35 | D196: 1113.42 | E196: 1101.93 | F196: 1093.52 | G196: 1082.03 | H196: 1121.83 | I196: 1133.32 | J196: 1141.73 | K196: 1124.9 | L196: 1105 | M196: 150.28412
A197: 187 | B197: HDFCLIFE | C197: 581.95 | D197: 585.62 | E197: 574.33 | F197: 566.72 | G197: 555.43 | H197: 593.23 | I197: 604.52 | J197: 612.13 | K197: 596.9 | L197: 578 | M197: 42.8087
A198: 188 | B198: HEG | C198: 817.2 | D198: 829.05 | E198: 801.10 | F198: 785.00 | G198: 757.05 | H198: 845.15 | I198: 873.10 | J198: 889.20 | K198: 857 | L198: 812.95 | M198: 2.91339
A199: 189 | B199: HEIDELBERG | C199: 180.35 | D199: 181.08 | E199: 178.27 | F199: 176.18 | G199: 173.37 | H199: 183.17 | I199: 185.98 | J199: 188.07 | K199: 183.9 | L199: 179 | M199: 2.70669
A200: 190 | B200: HERITGFOOD | C200: 258.95 | D200: 259.78 | E200: 256.07 | F200: 253.18 | G200: 249.47 | H200: 262.67 | I200: 266.38 | J200: 269.27 | K200: 263.5 | L200: 256.9 | M200: 0.162
A201: 191 | B201: HEROMOTOCO | C201: 2719.2 | D201: 2735.72 | E201: 2693.48 | F201: 2667.77 | G201: 2625.53 | H201: 2761.43 | I201: 2803.67 | J201: 2829.38 | K201: 2777.95 | L201: 2710 | M201: 9.74918
A202: 192 | B202: HEXAWARE | C202: 338.25 | D202: 340.58 | E202: 333.17 | F202: 328.08 | G202: 320.67 | H202: 345.67 | I202: 353.08 | J202: 358.17 | K202: 348 | L202: 335.5 | M202: 10.46474
A203: 193 | B203: HFCL | C203: 14.25 | D203: 14.37 | E203: 13.93 | F203: 13.62 | G203: 13.18 | H203: 14.68 | I203: 15.12 | J203: 15.43 | K203: 14.8 | L203: 14.05 | M203: 33.83507
A204: 194 | B204: HIMATSEIDE | C204: 59.7 | D204: 59.90 | E204: 58.90 | F204: 58.10 | G204: 57.10 | H204: 60.70 | I204: 61.70 | J204: 62.50 | K204: 60.9 | L204: 59.1 | M204: 2.38719
A205: 195 | B205: HINDALCO | C205: 155 | D205: 155.13 | E205: 152.27 | F205: 149.53 | G205: 146.67 | H205: 157.87 | I205: 160.73 | J205: 163.47 | K205: 158 | L205: 152.4 | M205: 183.06904
A206: 196 | B206: HINDCOPPER | C206: 39.9 | D206: 39.43 | E206: 36.07 | F206: 32.23 | G206: 28.87 | H206: 43.27 | I206: 46.63 | J206: 50.47 | K206: 42.8 | L206: 35.6 | M206: 129.9358
... 321 more rows

Sheet Bulk Deals
E6: Back To Main Page
A7: Subject : | B7: BULK DEAL | D7: =Main!B10 -> 2020-07-09
A9: Date | B9: Scrip code | C9: Scrip Name | D9: Client Name | E9: Buy / Sell | F9: Quantity Traded | G9: Trade Price / Wt.Avg.trade price | H9: Exchange
A10: 2020-07-08 | B10: 530109 | C10: ANUPAM | D10: KISHOR DHIRAJLAL SHAH | E10: SELL | F10: 87,472 | G10: 15.95 | H10: BSE
A11: 2020-07-08 | B11: 530109 | C11: ANUPAM | D11: BHARATI ARVIND SHAH | E11: BUY | F11: 100,000 | G11: 15.95 | H11: BSE
A12: 2020-07-08 | B12: 540024 | C12: ASHARI | D12: MANOJKUMAR GUNVANTRAI SOMANI | E12: BUY | F12: 48,704 | G12: 9 | H12: BSE
A13: 2020-07-08 | B13: 540024 | C13: ASHARI | D13: MANOJKUMAR GUNVANTRAI SOMANI | E13: SELL | F13: 1 | G13: 8.9 | H13: BSE
A14: 2020-07-08 | B14: 540024 | C14: ASHARI | D14: SABAH TAIYAB NOORANI | E14: SELL | F14: 44,444 | G14: 9 | H14: BSE
A15: 2020-07-08 | B15: 542248 | C15: DECCAN | D15: HITESH MOHANBHAI PATEL | E15: SELL | F15: 199,200 | G15: 37 | H15: BSE
A16: 2020-07-08 | B16: 542248 | C16: DECCAN | D16: DHARA TECHNOSYSTEM LLP | E16: BUY | F16: 199,200 | G16: 37 | H16: BSE
A17: 2020-07-08 | B17: 533176 | C17: DQE | D17: UNO METALS LIMITED | E17: BUY | F17: 772,000 | G17: 1.63 | H17: BSE
A18: 2020-07-08 | B18: 533176 | C18: DQE | D18: AKG FINVEST LIMITED | E18: BUY | F18: 780,000 | G18: 1.63 | H18: BSE
A19: 2020-07-08 | B19: 533176 | C19: DQE | D19: VARSHA GOENKA | E19: SELL | F19: 1,072,000 | G19: 1.63 | H19: BSE
A20: 2020-07-08 | B20: 531346 | C20: EASTRED | D20: NINJA SECURITIES PRIVATE LIMITED | E20: BUY | F20: 47,763 | G20: 20.99 | H20: BSE
A21: 2020-07-08 | B21: 531346 | C21: EASTRED | D21: NINJA SECURITIES PRIVATE LIMITED | E21: SELL | F21: 150 | G21: 22.48 | H21: BSE
A22: 2020-07-08 | B22: 531346 | C22: EASTRED | D22: RITU GARG | E22: SELL | F22: 49,823 | G22: 21.05 | H22: BSE
A23: 2020-07-08 | B23: 531813 | C23: GANGAPA | D23: UMA DEVI GARODIA | E23: SELL | F23: 100,000 | G23: 20 | H23: BSE
A24: 2020-07-08 | B24: 531813 | C24: GANGAPA | D24: BHARATI VIJAY BHANDARI | E24: BUY | F24: 99,999 | G24: 20 | H24: BSE
A25: 2020-07-08 | B25: 540266 | C25: GLCL | D25: RAJESH JOSHI | E25: BUY | F25: 36,000 | G25: 5.5 | H25: BSE
A26: 2020-07-08 | B26: 540266 | C26: GLCL | D26: RAJESH JOSHI | E26: BUY | F26: 36,000 | G26: 5.5 | H26: BSE
A27: 2020-07-08 | B27: 540266 | C27: GLCL | D27: VENKATA KRUPAKAR RAO GUMMADAPU | E27: SELL | F27: 60,000 | G27: 5.5 | H27: BSE
A28: 2020-07-08 | B28: 542935 | C28: ICLORGANIC | D28: WEALTH CAPITAL ADVISORS | E28: SELL | F28: 48,000 | G28: 22.5 | H28: BSE
A29: 2020-07-08 | B29: 542935 | C29: ICLORGANIC | D29: GIRIRAJ FINANCIAL SERVICES PVT LTD | E29: BUY | F29: 72,000 | G29: 22.48 | H29: BSE
A30: 2020-07-08 | B30: 540134 | C30: IISL | D30: NILESH KISHANBHAI PANDYA | E30: SELL | F30: 100,000 | G30: 11.3 | H30: BSE
A31: 2020-07-08 | B31: 542446 | C31: JONJUA | D31: USHA BAID | E31: SELL | F31: 46,800 | G31: 39.9 | H31: BSE
A32: 2020-07-08 | B32: 542446 | C32: JONJUA | D32: SAURABH JAIN | E32: SELL | F32: 156,000 | G32: 39.8 | H32: BSE
A33: 2020-07-08 | B33: 542446 | C33: JONJUA | D33: LIFETIME SOLUTIONS | E33: BUY | F33: 202,800 | G33: 39.82 | H33: BSE
A34: 2020-07-08 | B34: 530219 | C34: NUTRICIRCLE | D34: HITESH MOHANLAL PATEL . | E34: BUY | F34: 3,640 | G34: 49.85 | H34: BSE
A35: 2020-07-08 | B35: 512217 | C35: PRISMMEDI | D35: MANISH NITIN THAKUR | E35: BUY | F35: 3,937 | G35: 13.46 | H35: BSE
A36: 2020-07-08 | B36: 512217 | C36: PRISMMEDI | D36: MANISH NITIN THAKUR | E36: SELL | F36: 44,000 | G36: 13.36 | H36: BSE
A37: 2020-07-08 | B37: 539673 | C37: RCL | D37: NAIN SINGH | E37: SELL | F37: 9,000 | G37: 26.4 | H37: BSE
A38: 2020-07-08 | B38: 539673 | C38: RCL | D38: ANURODH INFRASTRUCTURE LIMITED | E38: BUY | F38: 14,004 | G38: 27.08 | H38: BSE
A39: 2020-07-08 | B39: 539673 | C39: RCL | D39: ANURODH INFRASTRUCTURE LIMITED | E39: SELL | F39: 4,500 | G39: 26.4 | H39: BSE
A40: 2020-07-08 | B40: 531952 | C40: RIBATEX | D40: KABIR SHRAN DAGAR | E40: BUY | F40: 67,000 | G40: 47.66 | H40: BSE
A41: 2020-07-08 | B41: 531952 | C41: RIBATEX | D41: KABIR SHRAN DAGAR | E41: SELL | F41: 74,950 | G41: 47.9 | H41: BSE
A42: 2020-07-08 | B42: 539526 | C42: SCTL | D42: SAIANAND COMMERCIAL LIMITED | E42: SELL | F42: 1,386,626 | G42: 1.05 | H42: BSE
A43: 2020-07-08 | B43: 512529 | C43: SEQUENT | D43: AGNUS HOLDINGS PRIVATE LIMITED | E43: BUY | F43: 1,868,256 | G43: 93.6 | H43: BSE
A44: 2020-07-08 | B44: 512529 | C44: SEQUENT | D44: PRONOMZ VENTURES LLP | E44: SELL | F44: 1,868,256 | G44: 93.6 | H44: BSE
A45: 2020-07-08 | B45: 540393 | C45: SMLT | D45: SIDDHARTH SANJAY SHAH | E45: BUY | F45: 74,000 | G45: 13.4 | H45: BSE
A46: 2020-07-08 | B46: 540393 | C46: SMLT | D46: SAGAR SANJAY SHAH | E46: BUY | F46: 74,000 | G46: 13.42 | H46: BSE
A47: 2020-07-08 | B47: 540393 | C47: SMLT | D47: SUMAN SIDDHARTH SHAH | E47: BUY | F47: 74,000 | G47: 13.4 | H47: BSE
A48: 2020-07-08 | B48: 540393 | C48: SMLT | D48: CHAMANLAL KHUSHALJI SHAH HUF | E48: BUY | F48: 148,000 | G48: 13.4 | H48: BSE
A49: 2020-07-08 | B49: 540393 | C49: SMLT | D49: METAL GRACE INJECTION ALLOYS PRIVATE LIMITED | E49: SELL | F49: 372,000 | G49: 13.4 | H49: BSE
A50: 2020-07-08 | B50: 539310 | C50: THINKINK | D50: PARAG BABULAL KHALASI | E50: BUY | F50: 221,300 | G50: 32.68 | H50: BSE
A51: 2020-07-08 | B51: 539310 | C51: THINKINK | D51: PARAG BABULAL KHALASI | E51: SELL | F51: 1,300 | G51: 32.65 | H51: BSE
A52: 2020-07-08 | B52: 536672 | C52: VCU | D52: SHASHIKANTBHAI JAMNADAS SONI HUF | E52: BUY | F52: 188,099 | G52: 1.96 | H52: BSE
A53: 2020-07-08 | B53: ABFRL-RE | C53: Aditya Birla Fashion RE | D53: MS PARAM VALUE INVESTMENTS | E53: BUY | F53: 500,000 | G53: 23 | H53: NSE
A54: 2020-07-08 | B54: ALCHEM | C54: Alchemist Ltd | D54: MANOJ L SHAH HUF | E54: BUY | F54: 100,000 | G54: 4.95 | H54: NSE
A55: 2020-07-08 | B55: EQUITAS | C55: Equitas Holdings Limited | D55: HRTI PRIVATE LIMITED | E55: BUY | F55: 2,266,226 | G55: 58.18 | H55: NSE
A56: 2020-07-08 | B56: GAYAPROJ | C56: Gayatri Projects Ltd | D56: SILVERTOSS SHOPPERS PVT LTD | E56: BUY | F56: 3,032 | G56: 15.8 | H56: NSE
A57: 2020-07-08 | B57: GICHSGFIN | C57: Gic Housing Finance Ltd | D57: HRTI PRIVATE LIMITED | E57: BUY | F57: 290,963 | G57: 97.79 | H57: NSE
A58: 2020-07-08 | B58: GICHSGFIN | C58: Gic Housing Finance Ltd | D58: ADROIT FINANCIAL SERVICES PVT LTD | E58: BUY | F58: 263,274 | G58: 97.18 | H58: NSE
A59: 2020-07-08 | B59: GLOBE | C59: Globe Textiles (I) Ltd. | D59: VORA PRANAV PRAFULCHANDRA | E59: BUY | F59: 66,000 | G59: 45.25 | H59: NSE
A60: 2020-07-08 | B60: GVKPIL | C60: GVK Power & Infrastructur | D60: ALPHA LEON ENTERPRISES LLP | E60: BUY | F60: 8,379,520 | G60: 2.7 | H60: NSE
A61: 2020-07-08 | B61: INSECTICID | C61: Insecticides (India) Limi | D61: HRTI PRIVATE LIMITED | E61: BUY | F61: 157,629 | G61: 421.58 | H61: NSE
A62: 2020-07-08 | B62: INSECTICID | C62: Insecticides (India) Limi | D62: MBL & CO. LIMITED | E62: BUY | F62: 147,443 | G62: 420.5 | H62: NSE
A63: 2020-07-08 | B63: KAMATHOTEL | C63: Kamat Hotels (I) Ltd | D63: RS SECURITIES | E63: BUY | F63: 138,690 | G63: 39.8 | H63: NSE
A64: 2020-07-08 | B64: KSOLVES | C64: Ksolves India Limited | D64: SANDEEP SINGH | E64: BUY | F64: 8,400 | G64: 103.46 | H64: NSE
A65: 2020-07-08 | B65: LAMBODHARA | C65: Lambodhara Textiles Ltd. | D65: MANMOHAN CHAUHAN | E65: BUY | F65: 63,064 | G65: 32.96 | H65: NSE
A66: 2020-07-08 | B66: NCC | C66: NCC Limited | D66: HRTI PRIVATE LIMITED | E66: BUY | F66: 4,232,096 | G66: 32.94 | H66: NSE
A67: 2020-07-08 | B67: NCC | C67: NCC Limited | D67: TOWER RESEARCH CAPITAL MARKETS INDIA PRIVATE LIMITED | E67: BUY | F67: 3,993,868 | G67: 32.99 | H67: NSE
A68: 2020-07-08 | B68: RBLBANK | C68: RBL Bank Limited | D68: GRAVITON RESEARCH CAPITAL LLP | E68: BUY | F68: 2,878,799 | G68: 192.57 | H68: NSE
A69: 2020-07-08 | B69: RBLBANK | C69: RBL Bank Limited | D69: TOWER RESEARCH CAPITAL MARKETS INDIA PRIVATE LIMITED | E69: BUY | F69: 2,279,550 | G69: 192.38 | H69: NSE
A70: 2020-07-08 | B70: RBLBANK | C70: RBL Bank Limited | D70: ALPHAGREP SECURITIES PRIVATE LIMITED | E70: BUY | F70: 3,302,758 | G70: 191.81 | H70: NSE
A71: 2020-07-08 | B71: REFEX | C71: Refex Industries Limited | D71: ALPHA LEON ENTERPRISES LLP | E71: BUY | F71: 225,006 | G71: 50.1 | H71: NSE
A72: 2020-07-08 | B72: TEJASNET | C72: Tejas Networks Limited | D72: KEDIA SECURITIES PRIVATE LTD | E72: BUY | F72: 753,925 | G72: 49.13 | H72: NSE
A73: 2020-07-08 | B73: UNITEDPOLY | C73: United Polyfab Guj. Ltd. | D73: VISHWAKARMA TRADING HOUSE | E73: BUY | F73: 90,000 | G73: 8.85 | H73: NSE
A74: 2020-07-08 | B74: VERTOZ | C74: Vertoz Advertising Ltd | D74: MARFATIA NISHIL SURENDRA | E74: BUY | F74: 187,126 | G74: 109.73 | H74: NSE
A75: 2020-07-08 | B75: VERTOZ | C75: Vertoz Advertising Ltd | D75: SHREE SHIVSHAKTI PROJECT CONSULTANT PRIVATE LIMITE | E75: BUY | F75: 84,744 | G75: 109.7 | H75: NSE
A76: 2020-07-08 | B76: ABFRL-RE | C76: Aditya Birla Fashion RE | D76: INVESCO MUTUAL FUND - A/C INVESCO INDIA CONTRA FUND | E76: SELL | F76: 474,202 | G76: 23 | H76: NSE
A77: 2020-07-08 | B77: ALCHEM | C77: Alchemist Ltd | D77: MANOJ L SHAH HUF | E77: SELL | F77: 22,131 | G77: 5.43 | H77: NSE
A78: 2020-07-08 | B78: EQUITAS | C78: Equitas Holdings Limited | D78: HRTI PRIVATE LIMITED | E78: SELL | F78: 2,266,226 | G78: 58.3 | H78: NSE
A79: 2020-07-08 | B79: GAYAPROJ | C79: Gayatri Projects Ltd | D79: SILVERTOSS SHOPPERS PVT LTD | E79: SELL | F79: 2,386,381 | G79: 16.01 | H79: NSE
A80: 2020-07-08 | B80: GICHSGFIN | C80: Gic Housing Finance Ltd | D80: HRTI PRIVATE LIMITED | E80: SELL | F80: 290,963 | G80: 97.91 | H80: NSE
A81: 2020-07-08 | B81: GICHSGFIN | C81: Gic Housing Finance Ltd | D81: ADROIT FINANCIAL SERVICES PVT LTD | E81: SELL | F81: 270,555 | G81: 97.11 | H81: NSE
A82: 2020-07-08 | B82: GVKPIL | C82: GVK Power & Infrastructur | D82: ALPHA LEON ENTERPRISES LLP | E82: SELL | F82: 8,364,568 | G82: 2.72 | H82: NSE
A83: 2020-07-08 | B83: INSECTICID | C83: Insecticides (India) Limi | D83: HRTI PRIVATE LIMITED | E83: SELL | F83: 157,629 | G83: 420.38 | H83: NSE
A84: 2020-07-08 | B84: INSECTICID | C84: Insecticides (India) Limi | D84: MBL & CO. LIMITED | E84: SELL | F84: 147,443 | G84: 421.4 | H84: NSE
A85: 2020-07-08 | B85: KAMATHOTEL | C85: Kamat Hotels (I) Ltd | D85: RS SECURITIES | E85: SELL | F85: 138,690 | G85: 39.89 | H85: NSE
A86: 2020-07-08 | B86: LAMBODHARA | C86: Lambodhara Textiles Ltd. | D86: MANMOHAN CHAUHAN | E86: SELL | F86: 62,364 | G86: 33.34 | H86: NSE
A87: 2020-07-08 | B87: MANGCHEFER | C87: Mangalore Chemicals & Fer | D87: RECOVERY OFFICER I DRT II | E87: SELL | F87: 794,192 | G87: 42.67 | H87: NSE
A88: 2020-07-08 | B88: NCC | C88: NCC Limited | D88: TOWER RESEARCH CAPITAL MARKETS INDIA PRIVATE LIMITED | E88: SELL | F88: 3,757,208 | G88: 32.98 | H88: NSE
A89: 2020-07-08 | B89: NCC | C89: NCC Limited | D89: HRTI PRIVATE LIMITED | E89: SELL | F89: 4,232,096 | G89: 32.98 | H89: NSE
A90: 2020-07-08 | B90: OILCOUNTUB | C90: Oil Country Tubular Ltd | D90: UMW INDIA VENTURES (L) LTD | E90: SELL | F90: 302,743 | G90: 4.85 | H90: NSE
A91: 2020-07-08 | B91: PROLIFE | C91: Prolife Industries Ltd | D91: SIDHARTH SAMYAK GADHAIYA HUF | E91: SELL | F91: 39,000 | G91: 31.21 | H91: NSE
A92: 2020-07-08 | B92: RBLBANK | C92: RBL Bank Limited | D92: ALPHAGREP SECURITIES PRIVATE LIMITED | E92: SELL | F92: 3,302,758 | G92: 191.88 | H92: NSE
A93: 2020-07-08 | B93: RBLBANK | C93: RBL Bank Limited | D93: TOWER RESEARCH CAPITAL MARKETS INDIA PRIVATE LIMITED | E93: SELL | F93: 2,649,753 | G93: 192.53 | H93: NSE
A94: 2020-07-08 | B94: RBLBANK | C94: RBL Bank Limited | D94: GRAVITON RESEARCH CAPITAL LLP | E94: SELL | F94: 2,878,799 | G94: 192.67 | H94: NSE
A95: 2020-07-08 | B95: REFEX | C95: Refex Industries Limited | D95: ALPHA LEON ENTERPRISES LLP | E95: SELL | F95: 225,006 | G95: 50.98 | H95: NSE
A96: 2020-07-08 | B96: TRANSWIND | C96: Transwind Infra Limited | D96: KAIVAN JITENDRAKUMAR SHAH | E96: SELL | F96: 56,000 | G96: 11.75 | H96: NSE
A97: 2020-07-08 | B97: TREJHARA | C97: TREJHARA SOLUTIONS LIMITE | D97: ADESH VENTURES LLP | E97: SELL | F97: 65,570 | G97: 11.45 | H97: NSE
A98: 2020-07-08 | B98: VERTOZ | C98: Vertoz Advertising Ltd | D98: MARFATIA NISHIL SURENDRA | E98: SELL | F98: 137,126 | G98: 109.47 | H98: NSE
A99: 2020-07-08 | B99: VERTOZ | C99: Vertoz Advertising Ltd | D99: SHREE SHIVSHAKTI PROJECT CONSULTANT PRIVATE LIMITE | E99: SELL | F99: 79,910 | G99: 109.36 | H99: NSE

Sheet Call Tracker (Equity & F&O)
Q1: +
M5: Back To Main Page
A6: Retail Research Technical Calls & Fundamental Performance Report for the month of July-2020
M7: =Main!B10 -> 2020-07-09
B8: Positional Call
A9: Sr.no | B9: Date | D9: Company | E9: Rec | F9: Rec Price | G9: Stop Loss*** | H9: Call Closed At | I9: Target | J9: Remark | K9: Profit / Loss per Share | L9: Gain / Loss % | M9: Status | N9: Closed Date | O9: NSE Closed Price
A10: 1 | B10: 2020-05-29 | D10: PGHH | E10: Buy | F10: 9,900.00 | G10: 9400 | H10: 10,440.00 | I10: 10700-10800 | J10: Profit of Rs.540/- | K10: =H10-F10 -> 540 | L10: =K10/F10 -> 5.45% | M10: Successful | N10: 2020-07-08 | R10: H
A11: 2 | B11: 2020-06-08 | D11: CROMPTON | E11: Buy | F11: 229.00 | G11: 217 | H11: 241.50 | I11: 250-255 | J11: Profit of Rs.12.5/- | K11: 12.5 | L11: 5.46% | M11: Successful | N11: 2020-07-03 | R11: N
A12: 3 | B12: 2020-06-19 | D12: EXIDEIND | E12: Buy | F12: 150 | G12: 140.00 | H12: 159.00 | I12: 165-170 | J12: Profit of Rs.9/- | K12: =H12-F12 -> 9 | L12: =K12/F12 -> 6.00% | M12: Successful | N12: 2020-07-07 | R12: N
A13: 4 | B13: 2020-06-22 | D13: CADILAHC | E13: Buy | F13: 358.50 | G13: 335 | H13: 378.50 | I13: 400-410 | J13: Profit of Rs.20/- | K13: =H13-F13 -> 20 | L13: =K13/F13 -> 5.58% | M13: Successful | N13: 2020-07-03 | R13: N
A14: 5 | B14: 2020-06-25 | D14: DIVISLAB | E14: Buy | F14: 2,340.00 | G14: 2200 | H14: 2,195.00 | I14: 2500-2550 | J14: Loss of Rs.145/- | K14: =H14-F14 -> -145 | L14: =K14/F14 -> -6.20% | M14: Unsuccessful | N14: 2020-07-02 | R14: N
A15: 6 | B15: 2020-06-25 | D15: ADANIPORTS | E15: Buy | F15: 342.50 | G15: 322 | H15: 365.00 | I15: 380 | J15: Profit of Rs.22.5/- | K15: 22.5 | L15: 6.57% | M15: Successful | N15: 2020-07-03 | R15: N
A16: 7 | B16: 2020-06-26 | D16: BALKRISIND | E16: Sell | F16: 1,245.00 | G16: 1310 | H16: 1,310.00 | I16: 1160-1140 | J16: Loss of Rs.65/- | K16: =F16-H16 -> -65 | L16: =K16/F16 -> -5.22% | M16: Unsuccessful | N16: 2020-07-03 | R16: H
A17: 8 | B17: 2020-06-26 | D17: CDSL | E17: Buy | F17: 277 | G17: 261.00 | H17: 296.00 | I17: 310-315 | J17: Profit of Rs.19/- | K17: =H17-F17 -> 19 | L17: 6.86% | M17: Successful | N17: 2020-07-07 | R17: N
A18: 9 | B18: 2020-06-26 | D18: GODREJPROP | E18: Buy | F18: 863.00 | G18: 815 | H18: 898.50 | I18: 930-950 | J18: Profit of Rs.35.5/- | K18: =H18-F18 -> 35.5 | L18: =K18/F18 -> 4.11% | M18: Successful | N18: 2020-07-08 | R18: H
A19: 10 | B19: 2020-06-29 | D19: BATAINDIA | E19: Buy | F19: 1300 | G19: 1,235.00 | H19: 1,346.00 | I19: 1400-1450 | J19: Part Profit of Rs.46/- | K19: =H19-F19 -> 46 | L19: =K19/F19 -> 3.54% | M19: Successful | N19: 2020-07-06 | R19: H
A20: 11 | B20: 2020-06-30 | D20: UPL | E20: Buy | F20: 426.5 | G20: 400.00 | H20: 452.5 | I20: 470-480 | J20: Profit of Rs.26/- | K20: =H20-F20 -> 26 | L20: =K20/F20 -> 6.10% | M20: Successful | N20: 2020-07-03 | R20: N
A21: 12 | B21: 2020-07-02 | D21: LT | E21: Buy | F21: 935-945 | G21: 874 | I21: 1030-1070 | J21: Open | R21: H
A22: 13 | B22: 2020-07-03 | D22: NESTLEIND | E22: Buy | F22: 16770-16800 | G22: 15900 | I22: 18000-18500 | J22: Open | R22: N
A23: 14 | B23: 2020-07-06 | D23: CADILAHC | E23: Buy | F23: 365-368 | G23: 344 | I23: 400-410 | J23: Open | R23: N
A24: 15 | B24: 2020-07-06 | D24: AKZOINDIA | E24: Buy | F24: 1810 | G24: 1,670.00 | H24: 1,875.00 | I24: 2000-2100 | J24: Part Profit of Rs.65/- | K24: =H24-F24 -> 65 | L24: =K24/F24 -> 3.59% | M24: Successful | N24: 2020-07-07 | R24: H
A25: 16 | B25: 2020-07-06 | D25: VINATIORGA | E25: Buy | F25: 1000 | G25: 935.00 | H25: 1,040.00 | I25: 1080-1120 | J25: Part Profit of Rs.40/- | K25: =H25-F25 -> 40 | L25: =K25/F25 -> 4.00% | M25: Successful | N25: 2020-07-08 | R25: N
A26: 17 | B26: 2020-07-06 | D26: TORNTPHARM | E26: Buy | F26: 2340-2350 | G26: 2210 | I26: 2550-2600 | J26: Open | R26: H
A27: 18 | B27: 2020-07-08 | D27: AARTIIND | E27: Buy | F27: 935-943 | G27: 880 | I27: 1020-1050 | J27: Open | R27: H
A28: 19 | B28: 2020-07-08 | D28: IRCON | E28: Buy | F28: 98.5-99.5 | G28: 92 | I28: 112-115 | J28: Open | R28: H
A29: 20 | B29: 2020-07-08 | D29: MARUTI | E29: Sell | F29: 6150-6200 | G29: 6550 | I29: 5700-5500 | J29: Open | R29: H
A30: 21 | B30: 2020-07-08 | D30: CROMPTON | E30: Buy | F30: 236-238 | G30: 222 | I30: 260-265 | J30: Open | R30: N
A31: 22 | B31: 2020-07-08 | D31: SUPREMEIND | E31: Buy | F31: 1130-1140 | G31: 1065 | I31: 1250-1270 | J31: Open | R31: N
A35: CLBS = Closing Basis ***
A36: Dividend adjusted <> | F36: Reinitiated $
A37: Part book {} | F37: Revised stoploss #
B39: Momentum Call
A40: Sr.no | B40: Date | D40: Company | E40: Rec | F40: Rec Price | G40: Stop Loss | H40: Call Closed At | I40: Target | J40: Remark | K40: Profit / Loss per Share/Lot | L40: Gain / Loss % | M40: Gain / Loss per Lot | N40: Lot | O40: Status | P40: Closed Date
A41: 1 | B41: 2020-06-24 | D41: CIPLA | E41: Buy | F41: 646 | G41: 629 | H41: 625.5 | I41: 680-690 | J41: Loss of Rs.20.5/- | K41: =H41-F41 -> -20.5 | L41: =K41/F41 -> -3.17% | M41: Unsuccessful | P41: 2020-07-01 | R41: H
A42: 2 | B42: 2020-06-24 | D42: LT | E42: Buy | F42: 957 | G42: 925 | H42: 925.5 | I42: 1025 | J42: Loss of Rs.31.5/- | K42: -31.5 | L42: -3.29% | M42: Unsuccessful | P42: 2020-07-01 | R42: N
A43: 3 | B43: 2020-06-26 | D43: AUROPHARMA | E43: Buy | F43: 782 | G43: 758 | H43: 803 | I43: 825 | J43: Profit of Rs.21/- | K43: 21 | L43: 2.69% | M43: Successful | P43: 2020-07-08 | R43: N
A44: 4 | B44: 2020-06-29 | D44: EXIDEIND | E44: Buy | F44: 147 | G44: 142.5 | H44: 151 | I44: 156-158 | J44: Profit of Rs.4/- | K44: =H44-F44 -> 4 | L44: =K44/F44 -> 2.72% | M44: Successful | P44: 2020-07-02 | R44: H
A45: 5 | B45: 2020-06-30 | D45: ACC | E45: Sell | F45: 1305-1315 | G45: 1352 | I45: 1260-1240 | J45: Open | R45: H
A46: 6 | B46: 2020-06-30 | D46: INFY | E46: Buy | F46: 726.5 | G46: 714 | H46: 744.5 | I46: 750-760 | J46: Profit of Rs.18/- | K46: =H46-F46 -> 18 | L46: =K46/F46 -> 2.48% | M46: Successful | P46: 2020-07-02 | R46: H
A47: 7 | B47: 2020-07-01 | D47: DIVISLAB | E47: Buy | F47: 2255 | G47: 2200 | H47: 2195 | I47: 2350 | J47: Loss of Rs.60/- | K47: =H47-F47 -> -60 | L47: =K47/F47 -> -2.66% | M47: Unsuccessful | P47: 2020-07-02 | R47: H
A48: 8 | B48: 2020-07-02 | D48: AMBUJACEM | E48: Sell | F48: 194 | G48: 200 | H48: 194 | I48: 185-182 | J48: Neutral | K48: 0 | L48: 0.00% | M48: Neutral | P48: 2020-07-03 | R48: H
A49: 9 | B49: 2020-07-03 | D49: CIPLA | E49: Buy | F49: 640-643 | G49: 615 | I49: 670-680 | J49: Open | R49: H
A50: 10 | B50: 2020-07-08 | D50: BHARTIARTL | E50: Buy | F50: 565-569 | G50: 549 | I50: 600-610 | J50: Open | R50: H
A51: 11
A54: CLBS = Closing Basis ***
A55: Dividend adjusted <> | F55: Reinitiated $
F56: Revised stoploss #
A58: Master Trade High Risk
A59: Sr.no | B59: Date | D59: Company | E59: Rec | F59: Rec Price | G59: Stop Loss | H59: Call Closed At | I59: Target | J59: Remark | K59: Profit / Loss per share | L59: Gain / Loss per Lot | M59: Lot | N59: Status | O59: Closed Date
A60: 1 | B60: 2020-07-01 | D60: NIFTY JUL FUT | E60: Sell | F60: 10395 | G60: 10555 | H60: 10555 | I60: 10200 | J60: Loss of Rs.108/- | K60: -160 | L60: -8100 | M60: 75 | N60: Unsuccessful | O60: 2020-07-02 | R60: H
D61: NIFTY 9-JUL 10200 PE | E61: Sell | F61: 88 | H61: 36 | K61: 52
A67: Master Trade Medium Risk
A68: Sr.no | B68: Date | D68: Company | E68: Rec | F68: Rec Price | G68: Stop Loss | H68: Call Closed At | I68: Target | J68: Remark | K68: Profit/ Loss per lot | L68: Gain / Loss per Lot | M68: Lot | N68: Status | O68: Closed Date
A69: 1 | B69: 2020-07-06 | D69: NIFTY 10600 PE 09-JUL | E69: Buy | F69: 58 | G69: 18 | H69: 18 | I69: 100-120 | J69: Loss of Rs.40/- | K69: =H69-F69 -> -40 | L69: =M69*K69 -> -3000 | M69: 75 | N69: Unsuccessful | O69: 2020-07-08 | R69: H
A70: 2 | B70: 2020-07-06 | D70: HINDUNILVR JULY 2180 CE | E70: Buy | F70: 55-57 | J70: Open | R70: H
D71: HINDUNILVR JULY 2220 CE | E71: Sell | F71: 40-42
A72: 3 | B72: 2020-07-07 | D72: BANKNIFTY 21500 PE 16-JUL | E72: Buy | F72: 290-310 | G72: 60 | I72: 600-700 | J72: Open
A75: Techno -Funda (positional)
A76: Sr.no | B76: Date | D76: Company | E76: Rec | F76: Rec Price | G76: Stop Loss*** | H76: Call Closed At | I76: Target | J76: Remark | K76: Profit / Loss per Share | L76: Gain / Loss % | M76: Status | N76: Closed Date | O76: NSE Closed Price
A78: CLBS = Closing Basis *** | F78: Reinitiated $
A79: Dividend adjusted <> | F79: Revised stoploss #
B84: Investment Idea
A85: Sr.no | B85: Date | D85: Company | E85: Rec | F85: Rec Price | G85: Point of Review | H85: Close Rate | I85: Target | J85: Remark | K85: Profit / Loss per Share | L85: Gain / Loss % | M85: Status | N85: Closed Date
A86: 1 | B86: 2013-11-01 | D86: L&T Finance Holding | E86: Accu | F86: 82.00 | G86: - | H86: 100 | I86: 100.00 | J86: Target Achieved | K86: =H86-F86 -> 18.00 | L86: =K86/F86 -> 21.95% | M86: Successful | N86: 2016-10-14
A87: 2 | B87: 2014-06-04 | D87: Finolex Inds | E87: Buy | F87: 257.00 | G87: - | H87: 300 | I87: 300.00 | J87: Target Achieved | K87: 43.00 | L87: 16.73% | M87: Successful | N87: 2014-07-02
A88: 3 | B88: 2014-07-08 | D88: JK Cement | E88: Buy | F88: 393.00 | G88: - | H88: 468 | I88: 468.00 | J88: Target Achieved | K88: 75.00 | L88: 19.08% | M88: Successful | N88: 2014-08-12
A89: 4 | B89: 2014-08-06 | D89: Finolex Cables | E89: Buy | F89: 205.00 | G89: - | H89: 275 | I89: 250.00 | J89: Target Achieved | K89: 70.00 | L89: 34.15% | M89: Successful | N89: 2014-11-19
A90: 5 | B90: 2014-09-04 | D90: Exide Inds | E90: Buy | F90: 162.00 | G90: - | H90: 190 | I90: 190.00 | J90: Target Achieved | K90: 28.00 | L90: 17.28% | M90: Successful | N90: 2015-01-02
A91: 6 | B91: 2014-09-04 | D91: Deepak Nitrite | E91: Buy | F91: 75.00 | G91: - | H91: 91.5 | I91: 95-100 | J91: Profit of Rs.16.50/- | K91: 16.50 | L91: 22.00% | M91: Successful | N91: 2014-11-11
A92: 7 | B92: 2014-10-01 | D92: Mercks | E92: Buy | F92: 850.00 | G92: - | H92: 982.5 | I92: 1050.00 | J92: Profit of Rs.132.50/- | K92: 132.50 | L92: 15.59% | M92: Successful | N92: 2015-02-04
A93: 8 | B93: 2014-10-01 | D93: Grindwell Norton | E93: Buy | F93: 475.00 | G93: - | H93: 515 | I93: 600.00 | J93: Profit of Rs.40/- | K93: 40.00 | L93: 8.42% | M93: Successful | N93: 2014-10-27
A94: 9 | B94: 2014-10-01 | D94: Snowman Logistics | E94: Buy | F94: 86.00 | G94: - | H94: 99 | I94: 140.00 | J94: Profit of Rs.13.00/- | K94: 13.00 | L94: 15.12% | M94: Successful | N94: 2014-10-27
A95: 10 | B95: 2014-10-14 | D95: Birla Corp | E95: Buy | F95: 496.60 | G95: - | H95: 621 | I95: 580.00 | J95: Target Achieved | K95: 124.40 | L95: 25.05% | M95: Successful | N95: 2016-08-23
A96: 11 | B96: 2014-10-14 | D96: Ultratech Cem | E96: Buy | F96: 2481.90 | G96: - | H96: 2840 | I96: 2870.00 | J96: Profit of Rs.358.10/- | K96: 358.10 | L96: 14.43% | M96: Successful | N96: 2015-01-13
A97: 12 | B97: 2014-10-16 | D97: Sintex Inds | E97: Buy | F97: 84.50 | G97: - | H97: 93 | I97: 110.00 | J97: Profit of Rs.8.50/- | K97: 8.50 | L97: 10.06% | M97: Successful | N97: 2014-10-27
A98: 13 | B98: 2014-10-16 | D98: HSIL | E98: Buy | F98: 401.00 | G98: - | H98: 428 | I98: 450.00 | J98: Profit of Rs.27.00/- | K98: 27.00 | L98: 6.73% | M98: Successful | N98: 2015-01-16
A99: 14 | B99: 2014-10-16 | D99: Eveready Inds | E99: Buy | F99: 101.00 | G99: - | H99: 112 | I99: 120.00 | J99: Profit of Rs.11.00/- | K99: 11.00 | L99: 10.89% | M99: Successful | N99: 2014-10-27
A100: 15 | B100: 2014-11-11 | D100: Pennar Inds | E100: Buy | F100: 59.00 | G100: - | H100: 76 | I100: 76.00 | J100: Target Achieved | K100: 17.00 | L100: 28.81% | M100: Successful | N100: 2017-10-24
A101: 16 | B101: 2014-11-11 | D101: Snowman Logistics | E101: Buy | F101: 99.00 | G101: - | H101: 120 | I101: 120.00 | J101: Profit of Rs.21/- | K101: 21.00 | L101: 21.21% | M101: Successful | N101: 2014-11-17
A102: 17 | B102: 2014-11-13 | D102: Dharamsi Morarji Chem | E102: Buy | F102: 22.00 | G102: - | H102: 33.55 | I102: 32.00 | J102: Profit of Rs 11.55/- | K102: 11.55 | L102: 52.50% | M102: Successful | N102: 2015-07-03
A103: 18 | B103: 2014-12-03 | D103: Tatachem | E103: Buy | F103: 440.00 | G103: - | H103: 520 | I103: 520.00 | J103: Profit of Rs 80.00/- | K103: 80.00 | L103: 18.18% | M103: Successful | N103: 2015-07-23
A104: 19 | B104: 2014-12-03 | D104: Advanta | E104: Buy | F104: 360.00 | G104: - | H104: 427 | I104: 425.00 | J104: Profit of Rs.67.00/- | K104: 67.00 | L104: 18.61% | M104: Successful | N104: 2015-02-23
A105: 20 | B105: 2015-01-08 | D105: GDL | E105: Buy | F105: 360.00 | G105: - | H105: 455 | I105: 420.00 | J105: Profit of Rs.95.00/- | K105: 95.00 | L105: 26.39% | M105: Successful | N105: 2015-01-20
A106: 21 | B106: 2015-01-08 | D106: NRB Bearing | E106: Buy | F106: 130.00 | H106: 175.5 | I106: 165.00 | J106: Profit of Rs 45.50/- | K106: 45.50 | L106: 35.00% | M106: Successful | N106: 2017-12-19
A107: 22 | B107: 2015-02-05 | D107: GSFC | E107: Accu | F107: 98.00 | H107: 120 | I107: 120.00 | J107: Target Achieved | K107: 22.00 | L107: 22.45% | M107: Successful | N107: 2017-01-18
A108: 23 | B108: 2015-02-05 | D108: Sundrmfast | E108: Accu | F108: 196.00 | H108: 262 | I108: 255.00 | J108: Target Achieved | K108: 66.00 | L108: 33.67% | M108: Successful | N108: 2016-08-17
A109: 24 | B109: 2015-03-04 | D109: GPPL | E109: Accu | F109: 235 | H109: 77.00 | I109: 280-285 | J109: Loss of Rs.158/- | K109: -158.00 | L109: -67.23% | M109: Unsuccessful | N109: 2019-02-26
A110: 25 | B110: 2015-03-04 | D110: ORIENTCEM | E110: Accu | F110: 185.00 | H110: 224 | I110: 220-225 | J110: Target Achieved | K110: 39.00 | L110: 21.08% | M110: Successful | N110: 2016-10-04
A111: 26 | B111: 2015-03-27 | D111: PFS | E111: Accu | F111: 49.5 | H111: 15.85 | I111: 67.00 | J111: Loss of Rs.33.65/- | K111: -33.65 | L111: -68% | M111: Unsuccessful | N111: 2019-06-11
A112: 27 | B112: 2015-03-30 | D112: Walchandnagar Ind Ltd | E112: Accu | F112: 183.50 | H112: 219 | I112: 218.00 | J112: Profit of Rs.35.50/- | K112: 35.50 | L112: 19.35% | M112: Successful | N112: 2015-04-09
A113: 28 | B113: 2015-04-20 | D113: Kalpataru Power Transmission Ltd | E113: Accu | F113: =(227+237)/2 -> 232.00 | H113: 298 | I113: 298.00 | J113: Target Achieved | K113: 66.00 | L113: 28.45% | M113: Successful | N113: 2017-03-29
A114: 29 | B114: 2015-05-04 | D114: Mastek Ltd | E114: Buy | F114: 385.00 | H114: =212.5+331 -> 543.5 | I114: 510.00 | J114: Profit of Rs 158.50/- | K114: 158.50 | L114: 41.17% | M114: Successful | N114: 2015-08-19
A115: 30 | B115: 2015-05-04 | D115: Suprajit Eng | E115: Buy | F115: 115.50 | H115: 146 | I115: 142.00 | J115: Profit of Rs 30.50/- | K115: 30.50 | L115: 26.41% | M115: Successful | N115: 2015-07-17
A116: 31 | B116: 2015-05-27 | D116: TCI | E116: Buy | F116: 237.50 | H116: 279.5 | I116: 278.00 | J116: Target Achieved | K116: 42.00 | L116: 17.68% | M116: Successful | N116: 2015-08-06
A117: 32 | B117: 2015-06-19 | D117: HSIL | E117: Accu | F117: 340.00 | H117: 448 | I117: 448.00 | J117: Target Achieved | K117: 108.00 | L117: 31.76% | M117: Successful | N117: 2017-10-10
A118: 33 | B118: 2015-07-06 | D118: Capital First | E118: Accu | F118: 390.00 | H118: 460 | I118: 460.00 | J118: Target Achieved | K118: =H118-F118 -> 70.00 | L118: =K118/F118 -> 17.95% | M118: Successful | N118: 2016-04-18
A119: 34 | B119: 2015-07-10 | D119: Dolphin OffShore | E119: Accu | F119: 122.5 | H119: 61.00 | I119: 172.00 | J119: Loss of Rs.61.50/- | K119: -61.50 | L119: -50.20% | M119: Unsuccessful | N119: 2018-08-21
A120: 35 | B120: 2015-08-03 | D120: Allcargo logistics | E120: Accu | F120: 297.50 | H120: 350 | I120: 360.00 | J120: Profit of Rs 52.50/- | K120: 52.50 | L120: 17.65% | M120: Successful | N120: 2015-08-16
A121: 36 | B121: 2015-08-03 | D121: Camline Fine | E121: Accu | F121: 115.50 | H121: 149 | I121: 140.00 | J121: Profit of Rs 33.50/- | K121: 33.50 | L121: 29.00% | M121: Successful | N121: 2017-01-05
A122: 37 | B122: 2015-09-04 | D122: TCI | E122: Accu | F122: 226.00 | H122: 292 | I122: 292.00 | J122: Target Achieved | K122: 66.00 | L122: 29.20% | M122: Successful | N122: 2015-10-09
A123: 38 | B123: 2015-09-07 | D123: Kalpataru Power Transmission Ltd | E123: Accu | F123: 232.50 | H123: 312.5 | I123: 310.00 | J123: Target Achieved | K123: 80.00 | L123: 34.41% | M123: Successful | N123: 2017-03-29
A124: 39 | B124: 2015-09-21 | D124: LLOYD ELECTRIC & ENG LTD | E124: Accu | F124: 196.50 | H124: 238 | I124: 238.00 | J124: Target Achieved | K124: 41.50 | L124: 21.12% | M124: Successful | N124: 2015-10-14
A125: 40 | B125: 2015-09-24 | D125: L&T Finance Holding | E125: Accu | F125: 65.00 | H125: 82 | I125: 82.00 | J125: Target Achieved | K125: 17.00 | L125: 26.15% | M125: Successful | N125: 2016-07-27
A126: 41 | B126: 2015-10-14 | D126: KEC International ltd | E126: Accu | F126: 144.00 | H126: 182.5 | I126: 181.00 | J126: Target Achieved | K126: 38.50 | L126: 26.74% | M126: Successful | N126: 2017-03-23
A127: 42 | B127: 2015-10-14 | D127: Gruh Finance | E127: Accu | F127: 264.00 | H127: 311 | I127: 311.00 | J127: Target Achieved | K127: 47.00 | L127: 17.80% | M127: Successful | N127: 2016-08-22
A128: 43 | B128: 2015-11-10 | D128: Pidilitind | E128: Buy | F128: 549.50 | H128: 630 | I128: 630.00 | J128: Target Achieved | K128: 80.50 | L128: 14.65% | M128: Successful | N128: 2016-02-19
A129: 44 | B129: 2015-12-04 | D129: Zensar Technology | E129: Accu | F129: 1027.50 | H129: 1315 | I129: 1250.00 | J129: Target Achieved | K129: 287.50 | L129: 27.98% | M129: Successful | N129: 2018-05-24
A130: 45 | B130: 2015-12-29 | D130: Vinati Organics Ltd | E130: Accu | F130: 465.00 | H130: 540 | I130: 540.00 | J130: Target Achieved | K130: 75.00 | L130: 16.13% | M130: Successful | N130: 2016-06-09
A131: 46 | B131: 2016-01-11 | D131: GSFC | E131: Buy | F131: 81.00 | H131: 110 | I131: 110.00 | J131: Target Achieved | K131: 29.00 | L131: 35.80% | M131: Successful | N131: 2017-01-10
A132: 47 | B132: 2016-01-13 | D132: SSWL | E132: Buy | F132: 417.50 | H132: 547 | I132: 535.00 | J132: Target Achieved | K132: 129.50 | L132: 31.02% | M132: Successful | N132: 2016-07-27
A133: 48 | B133: 2016-02-08 | D133: Persistent System Ltd | E133: Accu | F133: 650.00 | H133: 800 | I133: 800.00 | J133: Target Achieved | K133: 150.00 | L133: 23.08% | M133: Successful | N133: 2018-02-23
A134: 49 | B134: 2016-03-04 | D134: UPL | E134: Accu | F134: 437.50 | H134: 504.5 | I134: 522.00 | J134: Profit of Rs.67/- | K134: 67.00 | L134: 15.31% | M134: Successful | N134: 2016-04-20
A135: 50 | B135: 2016-03-09 | D135: Ashoka Buildcon Ltd | E135: Accu | F135: 189.50 | H135: 218 | I135: 218.00 | J135: Target Achieved | K135: 28.50 | L135: 15.04% | M135: Successful | N135: 2017-10-26
A136: 51 | B136: 2016-04-11 | D136: PTC INDIA FIN SERV LTD | E136: Accu | F136: 36.5 | H136: 15.85 | I136: 60.00 | J136: Loss of Rs.20.65/- | K136: -20.65 | L136: -56.58% | M136: Unsuccessful | N136: 2019-06-11
A137: 52 | B137: 2016-04-12 | D137: CAMLINFINE $ | E137: Accu | F137: 93.00 | H137: 149 | I137: 140.00 | J137: Profit of Rs 56/- | K137: 56.00 | L137: 60.22% | M137: Successful | N137: 2017-01-05
A138: 53 | B138: 2016-04-12 | D138: Greaves Cotton Ltd. | E138: Accu | F138: 130.00 | H138: 150 | I138: 150-155 | J138: Target Achieved | K138: 20.00 | L138: 15.38% | M138: Successful | N138: 2016-07-13
A139: 54 | B139: 2016-04-13 | D139: DHFL | E139: Accu | F139: 196.00 | H139: 299 | I139: 299.00 | J139: Target Achieved | K139: 103.00 | L139: 52.55% | M139: Successful | N139: 2016-09-07
A140: 55 | B140: 2016-04-13 | D140: Magma | E140: Accu | F140: 88.00 | H140: 103 | I140: 103.00 | J140: Target Achieved | K140: 15.00 | L140: 17.05% | M140: Successful | N140: 2016-06-09
A141: 56 | B141: 2016-05-02 | D141: KEC International ltd $ | E141: Accu | F141: 127.50 | H141: 148 | I141: 148-150 | J141: Target Achieved | K141: =H141-F141 -> 20.50 | L141: =K141/F141 -> 16.08% | M141: Successful | N141: 2016-07-13
A142: 57 | B142: 2016-05-03 | D142: Mindtree | E142: Accu | F142: 675.00 | H142: 815 | I142: 790-800 | J142: Target Achieved | K142: =H142-F142 -> 140.00 | L142: =K142/F142 -> 20.74% | M142: Successful | N142: 2018-02-23
A143: 58 | B143: 2016-06-01 | D143: Atulauto | E143: Accu | F143: 500 | H143: 232.50 | I143: 565-570 | J143: Loss of Rs.267.50 /- | K143: =H143-F143 -> -267.50 | L143: =K143/F143 -> -53.50% | M143: Unsuccessful | N143: 2019-09-27
A144: 59 | B144: 2016-06-06 | D144: TRITURBINE | E144: Accu | F144: 110.00 | H144: 126.5 | I144: 125.00 | J144: Profit of Rs.16.50/- | K144: =H144-F144 -> 16.50 | L144: =K144/F144 -> 15.00% | M144: Successful | N144: 2016-07-01
A145: 60 | B145: 2016-06-17 | D145: Pennar Industries Ltd | E145: Accu | F145: 44.00 | H145: 69.5 | I145: 69.50 | J145: Profit of Rs.25.50/- | K145: =H145-F145 -> 25.50 | L145: =K145/F145 -> 57.95% | M145: Successful | N145: 2017-08-30
A146: 61 | B146: 2016-06-28 | D146: EVEREADY | E146: Accu | F146: 262.50 | H146: 340 | I146: 333.00 | J146: Profit of Rs.77.50/- | K146: 77.50 | L146: 29.52% | M146: Successful | N146: 2017-10-09
A147: 62 | B147: 2016-06-28 | D147: FIEMIND | E147: Accu | F147: 840.00 | H147: 1230 | I147: 1230.00 | J147: Target Achieved | K147: 390.00 | L147: 46.43% | M147: Successful | N147: 2016-10-06
A148: 63 | B148: 2016-07-05 | D148: Bajaj Corp Ltd | E148: Accu | F148: 395 | H148: =(468.5+342.5)/2 -> 405.50 | I148: 510.00 | J148: Profit of Rs.10.50/- | K148: =H148-F148 -> 10.50 | L148: =K148/F148 -> 3% | M148: Neutral | N148: 2019-05-21
A149: 64 | B149: 2016-08-02 | D149: GPPL $ | E149: Buy | F149: =169.5-12.8 -> 156.7 | H149: 77.00 | I149: 198-200 | J149: Loss of Rs.79.7/- | K149: -79.70 | L149: -50.86% | M149: Unsuccessful | N149: 2019-02-26
A150: 65 | B150: 2016-08-04 | D150: WONDERLA HOLIDAYS LTD | E150: Accu | F150: 400 | H150: 305.00 | I150: 475.00 | J150: Loss of Rs.95/- | K150: -95.00 | L150: -23.75% | M150: Unsuccessful | N150: 2019-05-21
A151: 66 | B151: 2016-08-11 | D151: CAMLINFINE | E151: Accu | F151: 86.50 | H151: 130 | I151: 130.00 | J151: Profit of Rs.43.50/- | K151: 43.50 | L151: 50.29% | M151: Successful | N151: 2017-12-22
A152: 67 | B152: 2016-08-18 | D152: GRANULES | E152: Accu | F152: 133.5 | H152: 126.50 | I152: 178.00 | J152: Exit | K152: -7.00 | L152: -5.24% | M152: Unsuccessful | N152: 2016-09-02
A153: 68 | B153: 2016-08-31 | D153: VA TECH WABAG | E153: Accu | F153: 560.00 | H153: 725 | I153: 725.00 | J153: Target Achieved | K153: 165.00 | L153: 29.46% | M153: Successful | N153: 2016-03-27
A154: 69 | B154: 2016-09-01 | D154: SKIPPER LIMITED | E154: Accu | F154: 160.50 | H154: 210 | I154: 210.00 | J154: Target Achieved | K154: 49.50 | L154: 30.84% | M154: Successful | N154: 2017-05-16
A155: 70 | B155: 2016-10-03 | D155: IFBIND | E155: Accu | F155: 430.00 | H155: 596 | I155: 575.00 | J155: Profit of Rs.166/- | K155: 166.00 | L155: 38.60% | M155: Successful | N155: 2017-02-03
A156: 71 | B156: 2016-10-14 | D156: ASIANTILES | E156: Accu | F156: 280.00 | H156: 345 | I156: 345.00 | J156: Target Achieved | K156: =H156-F156 -> 65.00 | L156: =K156/F156 -> 23.21% | M156: Successful | N156: 2017-03-20
A157: 72 | B157: 2016-10-14 | D157: DEEPIND | E157: Accu | F157: 245.00 | H157: 325.5 | I157: 330.00 | J157: Profit of Rs.80.5/- | K157: 80.50 | L157: =K157/F157 -> 32.86% | M157: Successful | N157: 2017-02-03
A158: 73 | B158: 2016-10-17 | D158: DCBBANK | E158: Accu | F158: 125.00 | H158: 160 | I158: 160.00 | J158: Target Achieved | K158: 35.00 | L158: 28.00% | M158: Successful | N158: 2017-03-09
A159: 74 | B159: 2016-10-17 | D159: ORIENTREF | E159: Accu | F159: 114.00 | H159: 145 | I159: 145.00 | J159: Target Achieved | K159: 31.00 | L159: =K159/F159 -> 27.19% | M159: Successful | N159: 2017-05-04
A160: 75 | B160: 2016-10-17 | D160: GANECOS | E160: Accu | F160: 212.00 | H160: 280 | I160: 276.00 | J160: Profit of Rs.68/- | K160: 68.00 | L160: =K160/F160 -> 32.08% | M160: Successful | N160: 2017-05-03
A161: 76 | B161: 2016-11-04 | D161: NBCC | E161: Accu | F161: 155.00 | H161: 210 | I161: 210.00 | J161: Profit of Rs.55/- | K161: 55.00 | L161: =K161/F161 -> 35.48% | M161: Successful | N161: 2017-07-28
A162: 77 | B162: 2016-12-06 | D162: PRECAM | E162: Accu | F162: 150.5 | H162: 72.50 | I162: 174.00 | J162: Loss of Rs.78/- | K162: -78.00 | L162: -51.83% | M162: Unsuccessful | N162: 2018-08-21
A163: 78 | B163: 2016-12-08 | D163: INFRATEL | E163: Accu | F163: 380.00 | H163: 478 | I163: 468.00 | J163: Target Achieved | K163: =H163-F163 -> 98.00 | L163: =K163/F163 -> 25.79% | M163: Successful | N163: 2017-10-17
A164: 79 | B164: 2016-12-30 | D164: GODREJPROP | E164: Accu | F164: 305.00 | H164: 375 | I164: 375.00 | J164: Target Achieved | K164: =H164-F164 -> 70.00 | L164: =K164/F164 -> 22.95% | M164: Successful | N164: 2017-02-02
A165: 80 | B165: 2017-01-04 | D165: DEEPAKNTR | E165: Accu | F165: 99.50 | H165: 158 | I165: 158.00 | J165: Target Achieved | K165: =H165-F165 -> 58.50 | L165: =K165/F165 -> 58.79% | M165: Successful | N165: 2017-06-12
A166: 81 | B166: 2017-01-04 | D166: DEEPAKNTR | E166: Accu | F166: 99.50 | H166: 158 | I166: 158.00 | J166: Target Achieved | K166: 58.50 | L166: 58.79% | M166: Successful | N166: 2017-06-12
A167: 82 | B167: 2017-02-20 | D167: RECLTD | E167: Accu | F167: 140.50 | H167: 220 | I167: 220.00 | J167: Target Achieved | K167: =H167-F167 -> 79.50 | L167: =K167/F167 -> 56.58% | M167: Successful | N167: 2017-05-09
A168: 83 | B168: 2017-02-20 | D168: SUBROS | E168: Accu | F168: 202.50 | H168: 234 | I168: 234.00 | J168: Target Achieved | K168: 31.50 | L168: 15.56% | M168: Successful | N168: 2017-04-11
A169: 84 | B169: 2017-03-24 | D169: VRLLOG | E169: Accu | F169: 300.50 | H169: 417.5 | I169: 420.00 | J169: Profit of Rs.117/- | K169: =H169-F169 -> 117.00 | L169: =K169/F169 -> 38.94% | M169: Successful | N169: 2017-12-01
A170: 85 | B170: 2017-03-24 | D170: FIEMIND | E170: Accu | F170: 850.00 | H170: 1042.5 | I170: 1023.00 | J170: Profit of Rs 192.50/- | K170: 192.50 | L170: 22.65% | M170: Successful | N170: 2017-04-05
A171: 86 | B171: 2017-04-05 | D171: RATNAMANI | E171: Accu | F171: 785.00 | H171: 930 | I171: 920.00 | J171: Profit of Rs.145/- | K171: =H171-F171 -> 145.00 | L171: =K171/F171 -> 18.47% | M171: Successful | N171: 2017-08-29
A172: 87 | B172: 2017-04-06 | D172: ZEEMEDIA | E172: Accu | F172: 40 | H172: 13.10 | I172: 60.00 | J172: Loss of Rs.26.9/- | K172: -26.90 | L172: -67.25% | M172: Unsuccessful | N172: 2018-02-07
A173: 88 | B173: 2017-04-12 | D173: DABUR | E173: Accu | F173: 289.50 | H173: 354 | I173: 360.00 | J173: Profit of Rs.64.5/- | K173: =H173-F173 -> 64.50 | L173: =K173/F173 -> 22.28% | M173: Successful | N173: 2017-11-01
A174: 89 | B174: 2017-04-20 | D174: KPRMILL | E174: Accu | F174: 700.00 | H174: 840 | I174: 840.00 | J174: Profit of Rs.140/- | K174: 140.00 | L174: 20.00% | M174: Successful | N174: 2017-06-07
A175: 90 | B175: 2017-06-01 | D175: ESSELPACK | E175: Accu | F175: 130.00 | H175: 144.25 | I175: 170.00 | J175: Profit of Rs.14.25/- | K175: 14.25 | L175: 10.96% | M175: Successful | N175: 2019-07-29
A176: 91 | B176: 2017-06-15 | D176: KEI | E176: Accu | F176: 214.50 | H176: 262 | I176: 262.00 | J176: Profit of Rs.47.5/- | K176: 47.50 | L176: 22.14% | M176: Successful | N176: 2017-08-30
A177: 92 | B177: 2017-07-17 | D177: MAYURUNIQ | E177: Accu | F177: 370.00 | H177: 447.5 | I177: 450.00 | J177: Target Achieved | K177: 77.50 | L177: 20.95% | M177: Successful | N177: 2017-10-27
A178: 93 | B178: 2017-07-27 | D178: RAMCOCEM | E178: Accu | F178: 657.50 | H178: 825 | I178: 820.00 | J178: Target Achieved | K178: 167.50 | L178: 25.48% | M178: Successful | N178: 2017-12-21
A179: 94 | B179: 2017-08-17 | D179: FINPIPE | E179: Accu | F179: 605.00 | H179: 750 | I179: 750.00 | J179: Profit of Rs.145/- | K179: 145.00 | L179: 23.97% | M179: Successful | N179: 2017-10-19
A180: 95 | B180: 2017-09-01 | D180: SHK | E180: Accu | F180: 255 | H180: 217.25 | I180: 320.00 | J180: Loss of Rs.37.75/- | K180: -37.75 | L180: -15% | M180: Unsuccessful | N180: 2019-07-15
A181: 96 | B181: 2017-09-19 | D181: SKIPPER | E181: Accu | F181: 215.00 | H181: 258 | I181: 258.00 | J181: Target Achieved | K181: 43.00 | L181: 20.00% | M181: Successful | N181: 2017-11-01
A182: 97 | B182: 2017-09-19 | D182: SKIPPER | E182: Accu | F182: 215.00 | H182: 258 | I182: 258.00 | J182: Target Achieved | K182: 43.00 | L182: 20.00% | M182: Successful | N182: 2017-11-01
A183: 98 | B183: 2017-09-20 | D183: CAMLINFINE$ | E183: Accu | F183: 75.00 | H183: 90 | I183: 90.00 | J183: Profit of Rs.15.00/- | K183: =H183-F183 -> 15.00 | L183: =K183/F183 -> 20.00% | M183: Successful | N183: 2017-10-11
A184: 99 | B184: 2017-10-03 | D184: GNA | E184: Accu | F184: 315.00 | H184: 392 | I184: 384.00 | J184: Profit of Rs.77/- | K184: 77.00 | L184: 24.44% | M184: Successful | N184: 2017-10-09
A185: 100 | B185: 2017-10-05 | D185: NOCIL | E185: Accu | F185: 145.00 | H185: 179 | I185: 180.00 | J185: Profit of Rs.34/- | K185: 34.00 | L185: 23.45% | M185: Successful | N185: 2017-10-17
A186: 101 | B186: 2017-10-06 | D186: CENTURYPLY | E186: Accu | F186: 256.00 | H186: 323 | I186: 320.00 | J186: Target Achieved | K186: 67.00 | L186: 26.17% | M186: Successful | N186: 2017-11-28
A187: 102 | B187: 2017-10-09 | D187: EIHOTEL | E187: Accu | F187: 137.50 | H187: 184 | I187: 183.00 | J187: Profit of Rs.46.5/- | K187: 46.50 | L187: 33.82% | M187: Successful | N187: 2018-01-08
A188: 103 | B188: 2017-10-10 | D188: NRBBEARING | E188: Accu | F188: 125.50 | H188: 158 | I188: 155.00 | J188: Profit of Rs.32.5/- | K188: 32.50 | L188: 25.90% | M188: Successful | N188: 2017-11-28
A189: 104 | B189: 2017-10-10 | D189: BOROSIL | E189: Accu | F189: 895.00 | H189: 1122.5 | I189: 1078.00 | J189: Profit of Rs.227.5/- | K189: 227.50 | L189: 25.42% | M189: Successful | N189: 2018-01-17
A190: 105 | B190: 2017-10-12 | D190: CYIENT | E190: Accu | F190: 525.00 | H190: 629 | I190: 629.00 | J190: Target Achieved | K190: 104.00 | L190: 19.81% | M190: Successful | N190: 2018-01-19
A191: 106 | B191: 2017-11-07 | D191: HATSUN | E191: Accu | F191: 740.00 | H191: 892.5 | I191: 900.00 | J191: Profit of Rs.152.5/- | K191: =H191-F191 -> 152.50 | L191: =K191/F191 -> 20.61% | M191: Successful | N191: 2017-11-13
A192: 107 | B192: 2017-12-04 | D192: SANGHIIND | E192: Accu | F192: 118.50 | H192: 143.5 | I192: 145.00 | J192: Profit of Rs.25/- | K192: =H192-F192 -> 25.00 | L192: =K192/F192 -> 21.10% | M192: Successful | N192: 2017-12-28
A193: 108 | B193: 2017-12-21 | D193: KAJARIACER | E193: Accu | F193: 715 | H193: 500.00 | I193: 872.00 | J193: Loss of Rs.215/- | K193: =H193-F193 -> -215.00 | L193: =K193/F193 -> -30.07% | M193: Unsuccessful | N193: 2019-07-24
A194: 109 | B194: 2017-12-29 | D194: GNA | E194: Accu | F194: 435.00 | H194: 542.5 | I194: 539.00 | J194: Target Achieved | K194: 107.50 | L194: 24.71% | M194: Successful | N194: 2018-04-16
A195: 110 | B195: 2017-12-29 | D195: ZENSARTECH | E195: Accu | F195: 885.00 | H195: 1090 | I195: 1084.00 | J195: Target Achieved | K195: 205.00 | L195: 23.16% | M195: Successful | N195: 2018-04-23
A196: 111 | B196: 2018-04-02 | D196: EVERESTIND | E196: Accu | F196: 478.50 | H196: 442 | I196: 613.00 | J196: Loss of Rs.36.50 /- | K196: =H196-F196 -> -36.50 | L196: =K196/F196 -> -7.63% | M196: Unsuccessful | N196: 2019-10-24
A197: 112 | B197: 2018-04-04 | D197: GPPL$ | E197: Accu | F197: =141.5-7.3 -> 134.2 | H197: 77.00 | I197: 180.00 | J197: Loss of Rs.57.2/- | K197: =H197-F197 -> -57.20 | L197: =K197/F197 -> -42.62% | M197: Unsuccessful | N197: 2019-02-26
A198: 113 | B198: 2018-04-19 | D198: MANPASAND | E198: Accu | F198: 430 | H198: 220.00 | I198: 537.00 | J198: Loss of Rs.210/- | K198: =H198-F198 -> -210.00 | L198: =K198/F198 -> -48.84% | M198: Unsuccessful | N198: 2018-06-01
A199: 114 | B199: 2018-04-30 | D199: HEIDELBERG | E199: Accu | F199: 153.50 | H199: 196.00 | I199: 196.00 | J199: Profit of Rs.42.50/- | K199: =H199-F199 -> 42.50 | L199: =K199/F199 -> 28% | M199: Successful | N199: 2019-05-20
A200: 115 | B200: 2018-07-25 | D200: ZEEMEDIA | E200: Accu | F200: 27.5 | H200: 13.10 | I200: 60.00 | J200: Loss of Rs.14.40/- | K200: -14.40 | L200: -52.36% | M200: Unsuccessful | N200: 2018-02-07
A201: 116 | B201: 2018-08-06 | D201: GABRIEL | E201: Accu | F201: 148.5 | H201: 102 | I201: 182.00 | J201: Loss of Rs.46.50/- | K201: =H201-F201 -> -46.50 | L201: =K201/F201 -> -31.31% | M201: Unsuccessful | N201: 2019-07-15
A202: 117 | B202: 2018-08-23 | D202: INDIANHUME | E202: Accu | F202: 285 | H202: 355 | I202: 364.00 | J202: Profit of Rs.70/- | K202: 70.00 | L202: 24.56% | M202: Successful | N202: 2018-12-21
A203: 118 | B203: 2018-08-29 | D203: GRINDWELL | E203: Accu | F203: 525 | H203: 585 | I203: 635.00 | J203: Profit of Rs.60- | K203: =H203-F203 -> 60.00 | L203: =K203/F203 -> 11.43% | M203: Successful | N203: 2019-07-16
A204: 119 | B204: 2018-10-22 | D204: FINPIPE | E204: Accu | F204: 475 | H204: 574 | I204: 570.00 | J204: Target Achieved | K204: 99.00 | L204: 20.84% | M204: Successful | N204: 2018-10-30
A205: 120 | B205: 2018-10-24 | D205: GULFOILLUB | E205: Accu | F205: 707.5 | H205: 872 | I205: 872.00 | J205: Target Achieved | K205: 164.50 | L205: 23.25% | M205: Successful | N205: 2019-01-17
A206: 121 | B206: 2018-10-25 | D206: DBCORP | E206: Accu | F206: 162 | H206: 204 | I206: 209.00 | J206: Profit of Rs.42/- | K206: 42.00 | L206: 25.93% | M206: Successful | N206: 2019-03-15
A207: 122 | B207: 2018-10-26 | D207: RITES | E207: Accu | F207: 240 | H207: 297 | I207: 297.00 | J207: Target Achieved | K207: 57.00 | L207: 23.75% | M207: Successful | N207: 2018-11-13
A208: 123 | B208: 2018-12-05 | D208: BRIGADE | E208: Accu | F208: 202.5 | H208: 255 | I208: 252.00 | J208: Target Achieved | K208: 52.50 | L208: 25.93% | M208: Successful | N208: 2019-03-18
A209: 124 | B209: 2018-12-31 | D209: JKCEMENT | E209: Accu | F209: 710 | H209: 866 | I209: 866.00 | J209: Target Achieved | K209: 156.00 | L209: 21.97% | M209: Successful | N209: 2019-03-29
A210: 125 | B210: 2019-02-26 | D210: MARICO | E210: Accu | F210: 337.25 | H210: 398.5 | I210: 411.00 | J210: Profit of Rs.61.25/- | K210: 61.25 | L210: 18.16% | M210: Successful | N210: 2019-10-22
A211: 126 | B211: 2019-04-04 | D211: ITDCEM | E211: Accu | F211: 130 | H211: 65 | I211: 158.00 | J211: Loss of Rs.65 /- | K211: -65.00 | L211: -50.00% | M211: Unsuccessful | N211: 2019-09-18
A212: 127 | B212: 2017-10-09 | D212: RECLTD | E212: Accu | F212: 141.5 | H212: 183.50 | I212: 210.00 | J212: Part Profit of Rs.42/- | K212: 42.00 | L212: 30% | M212: Successful | N212: 2017-11-03 | R212: V
A213: 128 | B213: 2017-12-05 | D213: ALLCARGO | E213: Accu | F213: 172.00 | H213: 155.25 | I213: 230.00 | J213: Loss of Rs.16.75/- | K213: =H213-F213 -> -16.75 | L213: =K213/F213 -> -9.74% | M213: Unsuccessful | N213: 2019-11-18 | R213: V
A214: 129 | B214: 2018-10-25 | D214: GODREJCP | E214: Accu | F214: 698.50 | H214: 850.00 | I214: 890.00 | J214: Part Profit of Rs.151.50/- | K214: 151.50 | L214: 22% | M214: Successful | N214: 2018-12-19 | R214: V
A215: 130 | B215: 2017-05-22 | D215: GREAVESCOT | E215: Accu | F215: 127.6 | H215: 138.00 | I215: 190.00 | J215: Profit of Rs.10.40 | K215: 10.40 | L215: 8% | M215: Successful | N215: 2019-11-05 | R215: K
A216: 131 | B216: 2018-02-27 | D216: MOLDTKPAC | E216: Accu | F216: 317.00 | I216: 398.00 | M216: Open | R216: K
A217: 132 | B217: 2018-03-05 | D217: LICHSGFIN | E217: Accu | F217: =510-14.4 -> 495.60 | H217: 350 | I217: 672.00 | J217: Loss of Rs.145.60/- | K217: =H217-F217 -> -145.60 | L217: =K217/F217 -> -29.38% | M217: Unsuccessful | N217: 2020-02-26 | R217: K
A218: 133 | B218: 2018-05-17 | D218: PHILIPCARB | E218: Accu | F218: 230.30 | H218: 102.5 | I218: 348.00 | J218: Loss of Rs.127.80/- | K218: =H218-F218 -> -127.80 | L218: =K218/F218 -> -55.49% | M218: Unsuccessful | N218: 2020-03-06 | R218: V
A219: 134 | B219: 2018-06-07 | D219: KEC | E219: Accu | F219: =342.5-5.1 -> 337.40 | I219: 439.00 | M219: Open | R219: K
A220: 135 | B220: 2018-07-04 | D220: ASHOKLEY | E220: Accu | F220: =127.5-5.53 -> 121.97 | I220: 170.00 | M220: Open | R220: K
A221: 136 | B221: 2018-07-13 | D221: FCONSUMER | E221: Accu | F221: 46.50 | H221: 17 | I221: 59.00 | J221: Loss of Rs.29.50/- | K221: =H221-F221 -> -29.50 | L221: =K221/F221 -> -63.44% | M221: Unsuccessful | N221: 2020-02-26 | R221: V
A222: 137 | B222: 2018-10-23 | D222: JKPAPER | E222: Accu | F222: 156.50 | I222: 191.00 | M222: Open | R222: V
... 17 more rows

Sheet Sheet2 (hidden)
A1: SYMBOL | B1: SERIES | C1: OPEN | D1: HIGH | E1: LOW | F1: CLOSE | G1: LAST | H1: PREVCLOSE | I1: TOTTRDQTY | J1: TOTTRDVAL | K1: TIMESTAMP | L1: TOTALTRADES | M1: ISIN | N1: ISIN
A2: 20MICRONS | B2: EQ | C2: 27.9 | D2: 29 | E2: 25.9 | F2: 26.2 | G2: 25.9 | H2: 27.5 | I2: 80527 | J2: 2193820.55 | K2: 2020-04-08 | L2: 1099 | M2: INE144J01027
A3: 21STCENMGM | B3: EQ | C3: 10.15 | D3: 10.5 | E3: 10.1 | F3: 10.4 | G3: 10.5 | H3: 10.3 | I3: 3205 | J3: 32728.25 | K3: 2020-04-08 | L3: 28 | M3: INE253B01015
A4: 3IINFOTECH | B4: EQ | C4: 1.35 | D4: 1.35 | E4: 1.2 | F4: 1.25 | G4: 1.25 | H4: 1.35 | I4: 2793301 | J4: 3578364.95 | K4: 2020-04-08 | L4: 46535 | M4: INE748C01020
A5: 3MINDIA | B5: EQ | C5: 18950 | D5: 19170 | E5: 18155.05 | F5: 18318.2 | G5: 18270 | H5: 18755.7 | I5: 9926 | J5: 183605811.2 | K5: 2020-04-08 | L5: 4453 | M5: INE470A01017
A6: 3PLAND | B6: EQ | C6: 3.7 | D6: 3.85 | E6: 3.7 | F6: 3.85 | G6: 3.85 | H6: 3.7 | I6: 406 | J6: 1557.85 | K6: 2020-04-08 | L6: 9 | M6: INE105C01023
A7: 5PAISA | B7: EQ | C7: 119.95 | D7: 134 | E7: 115 | F7: 123.35 | G7: 120.5 | H7: 116.4 | I7: 6500 | J7: 793277.05 | K7: 2020-04-08 | L7: 265 | M7: INE618L01018
A8: 63MOONS | B8: EQ | C8: 50.7 | D8: 55.45 | E8: 50.7 | F8: 53.7 | G8: 53.55 | H8: 50.7 | I8: 72221 | J8: 3890984.7 | K8: 2020-04-08 | L8: 3078 | M8: INE111B01023
A9: A2ZINFRA | B9: EQ | C9: 3.15 | D9: 3.25 | E9: 3.1 | F9: 3.15 | G9: 3.15 | H9: 3.15 | I9: 116011 | J9: 367778.85 | K9: 2020-04-08 | L9: 227 | M9: INE619I01012
A10: AARTIDRUGS | B10: EQ | C10: 627 | D10: 669.3 | E10: 605 | F10: 631.6 | G10: 625 | H10: 607.85 | I10: 75970 | J10: 48223549.15 | K10: 2020-04-08 | L10: 5720 | M10: INE767A01016
A11: AARTIIND | B11: EQ | C11: 839.95 | D11: 909.8 | E11: 818 | F11: 854.9 | G11: 864 | H11: 830.7 | I11: 477805 | J11: 419092386.9 | K11: 2020-04-08 | L11: 50045 | M11: INE769A01020
A12: AARVEEDEN | B12: EQ | C12: 8.95 | D12: 9.25 | E12: 7.85 | F12: 8.35 | G12: 8.45 | H12: 8.1 | I12: 9251 | J12: 77100.1 | K12: 2020-04-08 | L12: 94 | M12: INE273D01019
A13: AAVAS | B13: EQ | C13: 1101 | D13: 1183 | E13: 1101 | F13: 1135.2 | G13: 1137 | H13: 1142.35 | I13: 24179 | J13: 28073100.85 | K13: 2020-04-08 | L13: 3631 | M13: INE216P01012
A14: ABAN | B14: EQ | C14: 15.7 | D14: 16.2 | E14: 15.7 | F14: 16.2 | G14: 16.2 | H14: 15.45 | I14: 37609 | J14: 608439.6 | K14: 2020-04-08 | L14: 288 | M14: INE421A01028
A15: ABB | B15: EQ | C15: 935 | D15: 965 | E15: 910 | F15: 930.7 | G15: 928 | H15: 931.35 | I15: 87757 | J15: 82358527.9 | K15: 2020-04-08 | L15: 4699 | M15: INE117A01022
A16: ABBOTINDIA | B16: EQ | C16: 16799.45 | D16: 18250 | E16: 16750 | F16: 17481.1 | G16: 17488 | H16: 16699.7 | I16: 57991 | J16: 1023745502 | K16: 2020-04-08 | L16: 21022 | M16: INE358A01014
A17: ABCAPITAL | B17: EQ | C17: 45 | D17: 47.9 | E17: 44.25 | F17: 45.6 | G17: 45.7 | H17: 45.1 | I17: 1253267 | J17: 57952493.6 | K17: 2020-04-08 | L17: 7317 | M17: INE674K01013
A18: ABFRL | B18: EQ | C18: 148 | D18: 152.8 | E18: 146.75 | F18: 149 | G18: 148 | H18: 149.85 | I18: 416099 | J18: 62371769.1 | K18: 2020-04-08 | L18: 10148 | M18: INE647O01011
A19: ABSLNN50ET | B19: EQ | C19: 244 | D19: 248 | E19: 210 | F19: 235 | G19: 235 | H19: 244 | I19: 56 | J19: 12779.4 | K19: 2020-04-08 | L19: 13 | M19: INF209KB1B87
A20: ACC | B20: EQ | C20: 1000 | D20: 1029.9 | E20: 941.25 | F20: 956.05 | G20: 958 | H20: 1009.95 | I20: 2153627 | J20: 2101320389 | K20: 2020-04-08 | L20: 79728 | M20: INE012A01025
A21: ACCELYA | B21: EQ | C21: 874.3 | D21: 886 | E21: 862 | F21: 880.45 | G21: 879.95 | H21: 874.3 | I21: 10865 | J21: 9557704.55 | K21: 2020-04-08 | L21: 923 | M21: INE793A01012
A22: ACE | B22: EQ | C22: 32.75 | D22: 35.2 | E22: 32.55 | F22: 33.25 | G22: 33.35 | H22: 32.95 | I22: 244708 | J22: 8296578.4 | K22: 2020-04-08 | L22: 2925 | M22: INE731H01025
A23: ADANIENT | B23: EQ | C23: 136.85 | D23: 147.15 | E23: 134.9 | F23: 138.1 | G23: 137.5 | H23: 138.15 | I23: 3237290 | J23: 456492273.1 | K23: 2020-04-08 | L23: 23696 | M23: INE423A01024
A24: ADANIGAS | B24: EQ | C24: 93.9 | D24: 96.35 | E24: 90.5 | F24: 90.8 | G24: 90.65 | H24: 94 | I24: 1888606 | J24: 176837924.4 | K24: 2020-04-08 | L24: 14517 | M24: INE399L01023
A25: ADANIGREEN | B25: EQ | C25: 166.85 | D25: 166.85 | E25: 162 | F25: 166.45 | G25: 166.85 | H25: 158.95 | I25: 702014 | J25: 116248737 | K25: 2020-04-08 | L25: 10187 | M25: INE364U01010
A26: ADANIPORTS | B26: EQ | C26: 248 | D26: 255.85 | E26: 242.75 | F26: 250.85 | G26: 249.7 | H26: 248.1 | I26: 6897883 | J26: 1724830525 | K26: 2020-04-08 | L26: 81499 | M26: INE742F01042
A27: ADANIPOWER | B27: EQ | C27: 28.65 | D27: 31.15 | E27: 27.5 | F27: 28.95 | G27: 28.85 | H27: 28.8 | I27: 12308064 | J27: 361987996.9 | K27: 2020-04-08 | L27: 23153 | M27: INE814H01011
A28: ADANITRANS | B28: EQ | C28: 196.65 | D28: 202 | E28: 190 | F28: 193.65 | G28: 193.5 | H28: 198.3 | I28: 306320 | J28: 59783940.3 | K28: 2020-04-08 | L28: 4236 | M28: INE931S01010
A29: ADFFOODS | B29: EQ | C29: 187.85 | D29: 192.25 | E29: 184 | F29: 187.7 | G29: 187.3 | H29: 183.1 | I29: 22107 | J29: 4185556.05 | K29: 2020-04-08 | L29: 773 | M29: INE982B01019
A30: ADHUNIKIND | B30: EQ | C30: 13.3 | D30: 13.3 | E30: 13.3 | F30: 13.3 | G30: 13.3 | H30: 12.7 | I30: 5518 | J30: 73389.4 | K30: 2020-04-08 | L30: 21 | M30: INE452L01012
A31: ADLABS | B31: EQ | C31: 2.75 | D31: 2.85 | E31: 2.75 | F31: 2.85 | G31: 2.85 | H31: 2.75 | I31: 19360 | J31: 54965.35 | K31: 2020-04-08 | L31: 72 | M31: INE172N01012
A32: ADORWELD | B32: EQ | C32: 195.7 | D32: 201.9 | E32: 193.95 | F32: 195.1 | G32: 194.45 | H32: 196.75 | I32: 1438 | J32: 283768.75 | K32: 2020-04-08 | L32: 94 | M32: INE045A01017
A33: ADROITINFO | B33: EQ | C33: 5.5 | D33: 5.7 | E33: 5.45 | F33: 5.7 | G33: 5.7 | H33: 5.7 | I33: 691 | J33: 3857 | K33: 2020-04-08 | L33: 25 | M33: INE737B01033
A34: ADSL | B34: EQ | C34: 13.05 | D34: 13.2 | E34: 12.4 | F34: 12.5 | G34: 12.45 | H34: 12.7 | I34: 16203 | J34: 205559.25 | K34: 2020-04-08 | L34: 143 | M34: INE102I01027
A35: ADVANIHOTR | B35: EQ | C35: 30.1 | D35: 33 | E35: 30.1 | F35: 31.8 | G35: 31.5 | H35: 30.65 | I35: 5340 | J35: 169948.95 | K35: 2020-04-08 | L35: 193 | M35: INE199C01026
A36: ADVENZYMES | B36: EQ | C36: 140.2 | D36: 146.55 | E36: 137.95 | F36: 139.2 | G36: 139.75 | H36: 136.55 | I36: 77441 | J36: 11046136.15 | K36: 2020-04-08 | L36: 1990 | M36: INE837H01020
A37: AEGISCHEM | B37: EQ | C37: 150 | D37: 158.5 | E37: 147.1 | F37: 156.35 | G37: 156.05 | H37: 144.1 | I37: 175470 | J37: 27041093.9 | K37: 2020-04-08 | L37: 4268 | M37: INE208C01025
A38: AFFLE | B38: BE | C38: 1050 | D38: 1053.45 | E38: 1030 | F38: 1053.45 | G38: 1053.45 | H38: 1003.3 | I38: 8191 | J38: 8619737.5 | K38: 2020-04-08 | L38: 470 | M38: INE00WC01019
A39: AGARIND | B39: EQ | C39: 49.8 | D39: 52.85 | E39: 49.05 | F39: 52.25 | G39: 52.5 | H39: 49.95 | I39: 7826 | J39: 404450.25 | K39: 2020-04-08 | L39: 207 | M39: INE204E01012
A40: AGCNET | B40: BE | C40: 224.35 | D40: 235.55 | E40: 213.25 | F40: 234.7 | G40: 235.55 | H40: 224.35 | I40: 2524 | J40: 573063 | K40: 2020-04-08 | L40: 70 | M40: INE676A01019
A41: AGRITECH | B41: EQ | C41: 23.95 | D41: 23.95 | E41: 23.95 | F41: 23.95 | G41: 23.95 | H41: 22.85 | I41: 504 | J41: 12070.8 | K41: 2020-04-08 | L41: 18 | M41: INE449G01018
A42: AGROPHOS | B42: EQ | C42: 5.7 | D42: 5.7 | E42: 5.2 | F42: 5.7 | G42: 5.7 | H42: 5.45 | I42: 40596 | J42: 227201.55 | K42: 2020-04-08 | L42: 340 | M42: INE740V01019
A43: AHLEAST | B43: EQ | C43: 133.15 | D43: 141.85 | E43: 128.15 | F43: 131.55 | G43: 128.35 | H43: 131.5 | I43: 3303 | J43: 439718.1 | K43: 2020-04-08 | L43: 350 | M43: INE926K01017
A44: AHLUCONT | B44: EQ | C44: 145.95 | D44: 148 | E44: 136 | F44: 146.3 | G44: 148 | H44: 144.1 | I44: 153910 | J44: 21077811.2 | K44: 2020-04-08 | L44: 995 | M44: INE758C01029
A45: AHLWEST | B45: EQ | C45: 289.9 | D45: 289.9 | E45: 270.95 | F45: 275 | G45: 275 | H45: 277 | I45: 238 | J45: 67030 | K45: 2020-04-08 | L45: 91 | M45: INE915K01010
A46: AIAENG | B46: EQ | C46: 1259.45 | D46: 1291 | E46: 1229 | F46: 1255.85 | G46: 1268 | H46: 1249.9 | I46: 73842 | J46: 92756824.05 | K46: 2020-04-08 | L46: 10503 | M46: INE212H01026
A47: AIONJSW | B47: EQ | C47: 10.9 | D47: 11.1 | E47: 10.2 | F47: 11.1 | G47: 11.1 | H47: 10.6 | I47: 90347 | J47: 996144.95 | K47: 2020-04-08 | L47: 180 | M47: INE743C01021
A48: AIRAN | B48: EQ | C48: 9.8 | D48: 10.3 | E48: 9.75 | F48: 9.8 | G48: 9.75 | H48: 9.85 | I48: 1826 | J48: 18127.1 | K48: 2020-04-08 | L48: 25 | M48: INE645W01026
A49: AJANTPHARM | B49: EQ | C49: 1325.75 | D49: 1450 | E49: 1325 | F49: 1367.5 | G49: 1363 | H49: 1340.2 | I49: 166582 | J49: 233126032.5 | K49: 2020-04-08 | L49: 8748 | M49: INE031B01049
A50: AJMERA | B50: EQ | C50: 64.95 | D50: 70.5 | E50: 64.6 | F50: 68.4 | G50: 69.9 | H50: 64.65 | I50: 31766 | J50: 2167947.5 | K50: 2020-04-08 | L50: 909 | M50: INE298G01027
A51: AKASH | B51: BE | C51: 90 | D51: 90 | E51: 90 | F51: 90 | G51: 90 | H51: 90.95 | I51: 500 | J51: 45000 | K51: 2020-04-08 | L51: 1 | M51: INE737W01013
A52: AKSHARCHEM | B52: EQ | C52: 174.75 | D52: 177.6 | E52: 165.3 | F52: 169.7 | G52: 167.15 | H52: 165.25 | I52: 3130 | J52: 531878.25 | K52: 2020-04-08 | L52: 293 | M52: INE542B01011
A53: AKSHOPTFBR | B53: EQ | C53: 3.6 | D53: 3.6 | E53: 3.6 | F53: 3.6 | G53: 3.6 | H53: 3.45 | I53: 27750 | J53: 99900 | K53: 2020-04-08 | L53: 45 | M53: INE523B01011
A54: AKZOINDIA | B54: EQ | C54: 2084.95 | D54: 2133 | E54: 2030 | F54: 2047.9 | G54: 2040 | H54: 2086.75 | I54: 12835 | J54: 26789836.95 | K54: 2020-04-08 | L54: 2242 | M54: INE133A01011
A55: ALANKIT | B55: EQ | C55: 12.9 | D55: 12.9 | E55: 12.9 | F55: 12.9 | G55: 12.9 | H55: 12.3 | I55: 14247 | J55: 183786.3 | K55: 2020-04-08 | L55: 75 | M55: INE914E01040
A56: ALBERTDAVD | B56: EQ | C56: 338.8 | D56: 364.75 | E56: 338.8 | F56: 353.15 | G56: 352 | H56: 341.15 | I56: 24334 | J56: 8579416.55 | K56: 2020-04-08 | L56: 1220 | M56: INE155C01010
A57: ALCHEM | B57: BE | C57: 1.4 | D57: 1.4 | E57: 1.4 | F57: 1.4 | G57: 1.4 | H57: 1.35 | I57: 8608 | J57: 12051.2 | K57: 2020-04-08 | L57: 18 | M57: INE964B01033
A58: ALEMBICLTD | B58: EQ | C58: 43.7 | D58: 48.05 | E58: 39.7 | F58: 45.05 | G58: 45.5 | H58: 42.15 | I58: 695128 | J58: 31779132.75 | K58: 2020-04-08 | L58: 6991 | M58: INE426A01027
A59: ALICON | B59: EQ | C59: 195.95 | D59: 196 | E59: 181.05 | F59: 184.75 | G59: 184 | H59: 189.25 | I59: 3909 | J59: 722322.5 | K59: 2020-04-08 | L59: 123 | M59: INE062D01024
A60: ALKALI | B60: EQ | C60: 29.95 | D60: 31.75 | E60: 29.65 | F60: 31.75 | G60: 31.75 | H60: 28.9 | I60: 9346 | J60: 289594.95 | K60: 2020-04-08 | L60: 349 | M60: INE773I01017
A61: ALKEM | B61: EQ | C61: 2360 | D61: 2736.5 | E61: 2326.2 | F61: 2671.15 | G61: 2639 | H61: 2324.05 | I61: 371259 | J61: 967330461.6 | K61: 2020-04-08 | L61: 44106 | M61: INE540L01014
A62: ALKYLAMINE | B62: EQ | C62: 1236.6 | D62: 1398 | E62: 1222.2 | F62: 1334.05 | G62: 1334 | H62: 1232.45 | I62: 41501 | J62: 55061848.25 | K62: 2020-04-08 | L62: 3832 | M62: INE150B01021
A63: ALLCARGO | B63: EQ | C63: 63.05 | D63: 65.85 | E63: 63 | F63: 65.7 | G63: 65.85 | H63: 59.9 | I63: 300794 | J63: 19569467.05 | K63: 2020-04-08 | L63: 3098 | M63: INE418H01029
A64: ALLSEC | B64: EQ | C64: 131.7 | D64: 131.9 | E64: 129.35 | F64: 131.9 | G64: 131.9 | H64: 125.65 | I64: 1335 | J64: 175836.2 | K64: 2020-04-08 | L64: 37 | M64: INE835G01018
A65: ALOKINDS | B65: EQ | C65: 4.7 | D65: 4.7 | E65: 4.7 | F65: 4.7 | G65: 4.7 | H65: 4.5 | I65: 1698707 | J65: 7983922.9 | K65: 2020-04-08 | L65: 397 | M65: INE270A01029
A66: ALPA | B66: EQ | C66: 18.55 | D66: 20.15 | E66: 17.8 | F66: 20.15 | G66: 20.15 | H66: 16.8 | I66: 131233 | J66: 2593665.9 | K66: 2020-04-08 | L66: 858 | M66: INE385I01010
A67: ALPHAGEO | B67: EQ | C67: 126 | D67: 137.5 | E67: 126 | F67: 134.45 | G67: 133.3 | H67: 129.7 | I67: 22258 | J67: 2986986.5 | K67: 2020-04-08 | L67: 783 | M67: INE137C01018
A68: ALPSINDUS | B68: EQ | C68: 0.65 | D68: 0.75 | E68: 0.65 | F68: 0.75 | G68: 0.7 | H68: 0.7 | I68: 25369 | J68: 18108.8 | K68: 2020-04-08 | L68: 33 | M68: INE093B01015
A69: AMARAJABAT | B69: EQ | C69: 501.1 | D69: 513.65 | E69: 488.45 | F69: 502.05 | G69: 504.9 | H69: 501.1 | I69: 755312 | J69: 378881689.9 | K69: 2020-04-08 | L69: 18162 | M69: INE885A01032
A70: AMBER | B70: EQ | C70: 1189.9 | D70: 1199 | E70: 1072 | F70: 1108.05 | G70: 1109.25 | H70: 1189.9 | I70: 93512 | J70: 105805912.2 | K70: 2020-04-08 | L70: 14252 | M70: INE371P01015
A71: AMBIKCO | B71: EQ | C71: 539.25 | D71: 559 | E71: 531.05 | F71: 545.2 | G71: 536.4 | H71: 537.25 | I71: 3988 | J71: 2168349.4 | K71: 2020-04-08 | L71: 406 | M71: INE540G01014
A72: AMBUJACEM | B72: EQ | C72: 158.5 | D72: 159.5 | E72: 148.2 | F72: 149.7 | G72: 149.55 | H72: 159 | I72: 10421438 | J72: 1597618498 | K72: 2020-04-08 | L72: 84074 | M72: INE079A01024
A73: AMDIND | B73: EQ | C73: 9.9 | D73: 10.5 | E73: 9.5 | F73: 9.8 | G73: 9.55 | H73: 10 | I73: 17757 | J73: 177659.15 | K73: 2020-04-08 | L73: 707 | M73: INE005I01014
A74: AMJLAND | B74: EQ | C74: 14.3 | D74: 14.95 | E74: 13.7 | F74: 14 | G74: 14 | H74: 14.25 | I74: 12523 | J74: 176065.3 | K74: 2020-04-08 | L74: 106 | M74: INE606A01024
A75: AMRUTANJAN | B75: EQ | C75: 326 | D75: 352 | E75: 320.1 | F75: 345.45 | G75: 344.3 | H75: 324 | I75: 278725 | J75: 95586275.35 | K75: 2020-04-08 | L75: 9075 | M75: INE098F01031
A76: ANANTRAJ | B76: EQ | C76: 19.55 | D76: 20.15 | E76: 18.6 | F76: 18.75 | G76: 18.8 | H76: 19.55 | I76: 184694 | J76: 3509270.8 | K76: 2020-04-08 | L76: 1012 | M76: INE242C01024
A77: ANDHRACEMT | B77: EQ | C77: 1.8 | D77: 1.9 | E77: 1.7 | F77: 1.85 | G77: 1.9 | H77: 1.75 | I77: 105618 | J77: 196578.05 | K77: 2020-04-08 | L77: 227 | M77: INE666E01012
A78: ANDHRAPAP | B78: EQ | C78: 148.55 | D78: 148.55 | E78: 147 | F78: 148.55 | G78: 148.55 | H78: 141.5 | I78: 2622 | J78: 389210.05 | K78: 2020-04-08 | L78: 70 | M78: INE435A01028
A79: ANDHRSUGAR | B79: EQ | C79: 206.95 | D79: 212 | E79: 195 | F79: 206.05 | G79: 205.85 | H79: 203.55 | I79: 35494 | J79: 7286675.25 | K79: 2020-04-08 | L79: 1328 | M79: INE715B01013
A80: ANIKINDS | B80: EQ | C80: 7.25 | D80: 7.25 | E80: 6.65 | F80: 6.8 | G80: 6.8 | H80: 6.95 | I80: 4994 | J80: 34701.65 | K80: 2020-04-08 | L80: 35 | M80: INE087B01017
A81: ANKITMETAL | B81: EQ | C81: 0.4 | D81: 0.45 | E81: 0.35 | F81: 0.45 | G81: 0.45 | H81: 0.4 | I81: 64810 | J81: 27213.05 | K81: 2020-04-08 | L81: 29 | M81: INE106I01010
A82: ANSALAPI | B82: EQ | C82: 3.65 | D82: 3.8 | E82: 3.65 | F82: 3.8 | G82: 3.8 | H82: 3.65 | I82: 3974 | J82: 15023.75 | K82: 2020-04-08 | L82: 28 | M82: INE436A01026
A83: ANSALHSG | B83: EQ | C83: 3 | D83: 3 | E83: 2.8 | F83: 2.9 | G83: 2.9 | H83: 2.9 | I83: 31510 | J83: 91846.6 | K83: 2020-04-08 | L83: 64 | M83: INE880B01015
A84: ANUP | B84: EQ | C84: 304.75 | D84: 323.7 | E84: 303.1 | F84: 313.2 | G84: 313.05 | H84: 312.75 | I84: 11786 | J84: 3732090.6 | K84: 2020-04-08 | L84: 460 | M84: INE294Z01018
A85: APARINDS | B85: EQ | C85: 296.95 | D85: 300.35 | E85: 290.6 | F85: 295.85 | G85: 295.5 | H85: 296.05 | I85: 6051 | J85: 1806443.45 | K85: 2020-04-08 | L85: 427 | M85: INE372A01015
A86: APCL | B86: EQ | C86: 102.4 | D86: 102.4 | E86: 95.2 | F86: 97.35 | G86: 97 | H86: 98.5 | I86: 3739 | J86: 362867.6 | K86: 2020-04-08 | L86: 79 | M86: INE071F01012
A87: APCOTEXIND | B87: EQ | C87: 87.55 | D87: 94.85 | E87: 86 | F87: 87.5 | G87: 86.1 | H87: 87.45 | I87: 13115 | J87: 1175575.25 | K87: 2020-04-08 | L87: 323 | M87: INE116A01032
A88: APEX | B88: EQ | C88: 190 | D88: 201.65 | E88: 185.1 | F88: 201.65 | G88: 201.65 | H88: 183.35 | I88: 141806 | J88: 27768799.35 | K88: 2020-04-08 | L88: 3293 | M88: INE346W01013
A89: APLAPOLLO | B89: EQ | C89: 1245 | D89: 1274 | E89: 1220 | F89: 1259.5 | G89: 1258 | H89: 1231.75 | I89: 21152 | J89: 26442272.1 | K89: 2020-04-08 | L89: 3032 | M89: INE702C01019
A90: APLLTD | B90: EQ | C90: 630 | D90: 702.65 | E90: 615.5 | F90: 640.85 | G90: 626 | H90: 610.2 | I90: 540272 | J90: 353935242.1 | K90: 2020-04-08 | L90: 30323 | M90: INE901L01018
A91: APOLLO | B91: EQ | C91: 45.5 | D91: 56 | E91: 45.25 | F91: 54.3 | G91: 53.55 | H91: 46.7 | I91: 68951 | J91: 3631629.4 | K91: 2020-04-08 | L91: 1694 | M91: INE713T01010
A92: APOLLOHOSP | B92: EQ | C92: 1225.9 | D92: 1338.4 | E92: 1211 | F92: 1263.95 | G92: 1261 | H92: 1225.95 | I92: 2070270 | J92: 2654141027 | K92: 2020-04-08 | L92: 156926 | M92: INE437A01024
A93: APOLLOPIPE | B93: EQ | C93: 279.5 | D93: 304 | E93: 262.95 | F93: 281.3 | G93: 281 | H93: 280.1 | I93: 12940 | J93: 3607793.25 | K93: 2020-04-08 | L93: 543 | M93: INE126J01016
A94: APOLLOTYRE | B94: EQ | C94: 83.5 | D94: 87.15 | E94: 82 | F94: 83.4 | G94: 83.15 | H94: 83.5 | I94: 2950752 | J94: 248872037.1 | K94: 2020-04-08 | L94: 19408 | M94: INE438A01022
A95: APOLSINHOT | B95: EQ | C95: 460.35 | D95: 460.4 | E95: 421.1 | F95: 439.8 | G95: 436 | H95: 438.6 | I95: 694 | J95: 306874.65 | K95: 2020-04-08 | L95: 84 | M95: INE451F01024
A96: APTECHT | B96: EQ | C96: 85.3 | D96: 87.7 | E96: 83.55 | F96: 84.6 | G96: 84.3 | H96: 85.3 | I96: 106721 | J96: 9133416.7 | K96: 2020-04-08 | L96: 2385 | M96: INE266F01018
A97: ARCHIDPLY | B97: EQ | C97: 16.55 | D97: 17 | E97: 16.45 | F97: 16.85 | G97: 16.95 | H97: 16.75 | I97: 4083 | J97: 68300.2 | K97: 2020-04-08 | L97: 63 | M97: INE877I01016
A98: ARCHIES | B98: EQ | C98: 9.4 | D98: 9.5 | E98: 9 | F98: 9.05 | G98: 9.15 | H98: 9.45 | I98: 24343 | J98: 224667.6 | K98: 2020-04-08 | L98: 150 | M98: INE731A01020
A99: ARCOTECH | B99: EQ | C99: 0.9 | D99: 0.95 | E99: 0.85 | F99: 0.9 | G99: 0.9 | H99: 0.9 | I99: 51482 | J99: 47500.05 | K99: 2020-04-08 | L99: 77 | M99: INE574I01035
A100: ARENTERP | B100: EQ | C100: 12.65 | D100: 12.65 | E100: 12.05 | F100: 12.05 | G100: 12.05 | H100: 12.65 | I100: 63 | J100: 765.15 | K100: 2020-04-08 | L100: 4 | M100: INE610C01014
A101: ARIES | B101: EQ | C101: 44.4 | D101: 47.6 | E101: 42.65 | F101: 43.6 | G101: 44 | H101: 44.4 | I101: 50875 | J101: 2250478.25 | K101: 2020-04-08 | L101: 1080 | M101: INE298I01015
A102: ARIHANT | B102: EQ | C102: 12.05 | D102: 12.55 | E102: 11.6 | F102: 12.15 | G102: 12.5 | H102: 12.05 | I102: 964 | J102: 11418.15 | K102: 2020-04-08 | L102: 27 | M102: INE413D01011
A103: ARIHANTSUP | B103: EQ | C103: 21.4 | D103: 21.45 | E103: 19.45 | F103: 19.5 | G103: 21 | H103: 20.45 | I103: 4362 | J103: 85414.05 | K103: 2020-04-08 | L103: 80 | M103: INE643K01018
A104: ARMANFIN | B104: EQ | C104: 340 | D104: 373.2 | E104: 337.7 | F104: 373.05 | G104: 373.2 | H104: 355.45 | I104: 50867 | J104: 18465582.65 | K104: 2020-04-08 | L104: 911 | M104: INE109C01017
A105: AROGRANITE | B105: EQ | C105: 21.95 | D105: 24.5 | E105: 20.85 | F105: 24.2 | G105: 24.5 | H105: 22.35 | I105: 26052 | J105: 602565.3 | K105: 2020-04-08 | L105: 183 | M105: INE210C01013
A106: ARROWGREEN | B106: BE | C106: 33.55 | D106: 35 | E106: 33.45 | F106: 33.45 | G106: 33.45 | H106: 33.85 | I106: 5735 | J106: 195198.5 | K106: 2020-04-08 | L106: 32 | M106: INE570D01018
A107: ARSHIYA | B107: EQ | C107: 7.1 | D107: 7.6 | E107: 7.1 | F107: 7.6 | G107: 7.6 | H107: 7.25 | I107: 23178 | J107: 175819.45 | K107: 2020-04-08 | L107: 63 | M107: INE968D01022
A108: ARSSINFRA | B108: EQ | C108: 11.25 | D108: 12.3 | E108: 10.9 | F108: 11.8 | G108: 11.85 | H108: 11.15 | I108: 16388 | J108: 189874.85 | K108: 2020-04-08 | L108: 107 | M108: INE267I01010
A109: ARTEMISMED | B109: EQ | C109: 140 | D109: 147 | E109: 136.3 | F109: 138 | G109: 137 | H109: 139.15 | I109: 1729 | J109: 245138.4 | K109: 2020-04-08 | L109: 31 | M109: INE025R01013
A110: ARVIND | B110: EQ | C110: 23.5 | D110: 24.4 | E110: 22.45 | F110: 23.75 | G110: 23.75 | H110: 22.2 | I110: 2137547 | J110: 50521243.45 | K110: 2020-04-08 | L110: 7057 | M110: INE034A01011
A111: ARVINDFASN | B111: EQ | C111: 139.8 | D111: 141.9 | E111: 132.2 | F111: 133.8 | G111: 134.75 | H111: 139.85 | I111: 46445 | J111: 6387304.5 | K111: 2020-04-08 | L111: 1243 | M111: INE955V01021
A112: ARVSMART | B112: EQ | C112: 64.05 | D112: 67 | E112: 64 | F112: 65.4 | G112: 65.5 | H112: 65 | I112: 10000 | J112: 656036.65 | K112: 2020-04-08 | L112: 320 | M112: INE034S01021
A113: ASAHIINDIA | B113: EQ | C113: 152 | D113: 158 | E113: 147.05 | F113: 155.5 | G113: 152.35 | H113: 153.2 | I113: 5605 | J113: 858978.65 | K113: 2020-04-08 | L113: 218 | M113: INE439A01020
A114: ASAHISONG | B114: EQ | C114: 80.8 | D114: 88.95 | E114: 80.05 | F114: 85.25 | G114: 86 | H114: 80.9 | I114: 8055 | J114: 692533.2 | K114: 2020-04-08 | L114: 314 | M114: INE228I01012
A115: ASAL | B115: EQ | C115: 14.8 | D115: 14.9 | E115: 14.5 | F115: 14.5 | G115: 14.5 | H115: 14.25 | I115: 8037 | J115: 118819.3 | K115: 2020-04-08 | L115: 36 | M115: INE900C01027
A116: ASALCBR | B116: EQ | C116: 164.9 | D116: 175 | E116: 158 | F116: 165.7 | G116: 165 | H116: 162.9 | I116: 31033 | J116: 5116102.05 | K116: 2020-04-08 | L116: 970 | M116: INE073G01016
A117: ASHAPURMIN | B117: EQ | C117: 22.1 | D117: 22.1 | E117: 22.05 | F117: 22.1 | G117: 22.1 | H117: 21.05 | I117: 8770 | J117: 193792 | K117: 2020-04-08 | L117: 43 | M117: INE348A01023
A118: ASHIANA | B118: EQ | C118: 52.9 | D118: 52.9 | E118: 49.1 | F118: 49.95 | G118: 50 | H118: 50 | I118: 69042 | J118: 3480534.3 | K118: 2020-04-08 | L118: 621 | M118: INE365D01021
A119: ASHIMASYN | B119: EQ | C119: 3.9 | D119: 3.9 | E119: 3.9 | F119: 3.9 | G119: 3.9 | H119: 3.55 | I119: 28914 | J119: 112764.6 | K119: 2020-04-08 | L119: 46 | M119: INE440A01010
A120: ASHOKA | B120: EQ | C120: 38.35 | D120: 42.7 | E120: 37.8 | F120: 42.7 | G120: 42.7 | H120: 38.85 | I120: 1577514 | J120: 65134101.3 | K120: 2020-04-08 | L120: 8475 | M120: INE442H01029
A121: ASHOKLEY | B121: EQ | C121: 39.85 | D121: 47.8 | E121: 38.75 | F121: 43.85 | G121: 43.6 | H121: 39.85 | I121: 76817768 | J121: 3355417806 | K121: 2020-04-08 | L121: 169889 | M121: INE208A01029
A122: ASIANHOTNR | B122: EQ | C122: 70 | D122: 71.8 | E122: 66 | F122: 71.55 | G122: 71.5 | H122: 65.4 | I122: 4982 | J122: 349215.55 | K122: 2020-04-08 | L122: 198 | M122: INE363A01022
A123: ASIANPAINT | B123: EQ | C123: 1623.8 | D123: 1687.8 | E123: 1600 | F123: 1608.95 | G123: 1608 | H123: 1623.8 | I123: 2382216 | J123: 3911658954 | K123: 2020-04-08 | L123: 101146 | M123: INE021A01026
A124: ASIANTILES | B124: EQ | C124: 156 | D124: 162.9 | E124: 155 | F124: 157.6 | G124: 156.5 | H124: 157.65 | I124: 19917 | J124: 3151924.4 | K124: 2020-04-08 | L124: 431 | M124: INE022I01019
A125: ASPINWALL | B125: EQ | C125: 93 | D125: 98.7 | E125: 83.55 | F125: 93 | G125: 93 | H125: 90 | I125: 413 | J125: 38837.15 | K125: 2020-04-08 | L125: 20 | M125: INE991I01015
A126: ASTEC | B126: EQ | C126: 450.65 | D126: 465.05 | E126: 440 | F126: 460.05 | G126: 460.3 | H126: 443.9 | I126: 5283 | J126: 2392645.5 | K126: 2020-04-08 | L126: 494 | M126: INE563J01010
A127: ASTERDM | B127: EQ | C127: 96 | D127: 103.5 | E127: 93.8 | F127: 99.25 | G127: 99 | H127: 94.55 | I127: 996205 | J127: 98978623.7 | K127: 2020-04-08 | L127: 4570 | M127: INE914M01019
A128: ASTRAL | B128: EQ | C128: 962 | D128: 986 | E128: 952 | F128: 955.45 | G128: 954 | H128: 973.85 | I128: 59212 | J128: 57381672.65 | K128: 2020-04-08 | L128: 7623 | M128: INE006I01046
A129: ASTRAMICRO | B129: EQ | C129: 56.9 | D129: 62.55 | E129: 55.85 | F129: 61.7 | G129: 62.55 | H129: 56.9 | I129: 253097 | J129: 15146656.55 | K129: 2020-04-08 | L129: 1961 | M129: INE386C01029
A130: ASTRAZEN | B130: EQ | C130: 2700 | D130: 2830 | E130: 2544 | F130: 2561.6 | G130: 2549 | H130: 2693.65 | I130: 38510 | J130: 104113109 | K130: 2020-04-08 | L130: 6647 | M130: INE203A01020
A131: ASTRON | B131: EQ | C131: 26.15 | D131: 29.9 | E131: 25.3 | F131: 27.5 | G131: 27.8 | H131: 27.65 | I131: 61618 | J131: 1693449.45 | K131: 2020-04-08 | L131: 1743 | M131: INE646X01014
A132: ATFL | B132: EQ | C132: 479.65 | D132: 499 | E132: 475 | F132: 481.55 | G132: 475 | H132: 479.65 | I132: 6104 | J132: 2975754.9 | K132: 2020-04-08 | L132: 411 | M132: INE209A01019
A133: ATLANTA | B133: EQ | C133: 3 | D133: 3.15 | E133: 3 | F133: 3.15 | G133: 3.15 | H133: 3 | I133: 8624 | J133: 26936.35 | K133: 2020-04-08 | L133: 28 | M133: INE285H01022
A134: ATLASCYCLE | B134: BE | C134: 30 | D134: 31.5 | E134: 29.5 | F134: 30.7 | G134: 30.7 | H134: 30 | I134: 2000 | J134: 60118.65 | K134: 2020-04-08 | L134: 42 | M134: INE446A01025
A135: ATNINTER | B135: BE | C135: 0.1 | D135: 0.1 | E135: 0.1 | F135: 0.1 | G135: 0.1 | H135: 0.1 | I135: 12716 | J135: 1271.6 | K135: 2020-04-08 | L135: 5 | M135: INE803A01027
A136: ATUL | B136: EQ | C136: 3930 | D136: 4005 | E136: 3908.35 | F136: 3951.85 | G136: 3954.95 | H136: 3927.1 | I136: 76768 | J136: 304824820.4 | K136: 2020-04-08 | L136: 11635 | M136: INE100A01010
A137: ATULAUTO | B137: EQ | C137: 151.35 | D137: 154.05 | E137: 146.8 | F137: 153.45 | G137: 153.95 | H137: 146.75 | I137: 13699 | J137: 2093863.3 | K137: 2020-04-08 | L137: 810 | M137: INE951D01028
A138: AUBANK | B138: EQ | C138: 461.2 | D138: 490 | E138: 457 | F138: 480.3 | G138: 473 | H138: 478.4 | I138: 1791057 | J138: 837589012.6 | K138: 2020-04-08 | L138: 59410 | M138: INE949L01017
A139: AURIONPRO | B139: EQ | C139: 41.75 | D139: 43.7 | E139: 40 | F139: 42.9 | G139: 42.9 | H139: 40.95 | I139: 8828 | J139: 376649.05 | K139: 2020-04-08 | L139: 213 | M139: INE132H01018
A140: AUROPHARMA | B140: EQ | C140: 432.5 | D140: 476.3 | E140: 426.3 | F140: 438.15 | G140: 438.9 | H140: 445.7 | I140: 13186213 | J140: 5925576015 | K140: 2020-04-08 | L140: 205238 | M140: INE406A01037
A141: AUSOMENT | B141: EQ | C141: 26.1 | D141: 26.1 | E141: 26.1 | F141: 26.1 | G141: 26.1 | H141: 25 | I141: 100 | J141: 2610 | K141: 2020-04-08 | L141: 1 | M141: INE218C01016
A142: AUTOAXLES | B142: EQ | C142: 413 | D142: 423.5 | E142: 398.05 | F142: 413.45 | G142: 416 | H142: 399.3 | I142: 5448 | J142: 2244823.45 | K142: 2020-04-08 | L142: 638 | M142: INE449A01011
A143: AUTOIND | B143: EQ | C143: 11.3 | D143: 11.35 | E143: 11.1 | F143: 11.35 | G143: 11.35 | H143: 10.85 | I143: 9358 | J143: 105383.05 | K143: 2020-04-08 | L143: 68 | M143: INE718H01014
A144: AUTOLITIND | B144: EQ | C144: 13.2 | D144: 14.4 | E144: 13.2 | F144: 13.8 | G144: 13.9 | H144: 13.75 | I144: 4699 | J144: 65525.8 | K144: 2020-04-08 | L144: 68 | M144: INE448A01013
A145: AVADHSUGAR | B145: EQ | C145: 143.55 | D145: 143.55 | E145: 143.55 | F145: 143.55 | G145: 143.55 | H145: 136.75 | I145: 13174 | J145: 1891127.7 | K145: 2020-04-08 | L145: 157 | M145: INE349W01017
A146: AVANTIFEED | B146: EQ | C146: 311 | D146: 341.55 | E146: 310.5 | F146: 341.35 | G146: 341.55 | H146: 310.5 | I146: 748404 | J146: 246839085.1 | K146: 2020-04-08 | L146: 23272 | M146: INE871C01038
A147: AVTNPL | B147: EQ | C147: 25.45 | D147: 27.8 | E147: 24.25 | F147: 27.25 | G147: 27 | H147: 25.05 | I147: 213540 | J147: 5643644.4 | K147: 2020-04-08 | L147: 1601 | M147: INE488D01021
A148: AXISBANK | B148: EQ | C148: 383.75 | D148: 427.7 | E148: 373.5 | F148: 391.35 | G148: 391.4 | H148: 388.85 | I148: 64930772 | J148: 2.575974593e+10 | K148: 2020-04-08 | L148: 769506 | M148: INE238A01034
A149: AXISCADES | B149: EQ | C149: 30.9 | D149: 31.5 | E149: 28.65 | F149: 31.4 | G149: 31.5 | H149: 30 | I149: 39670 | J149: 1232336.75 | K149: 2020-04-08 | L149: 621 | M149: INE555B01013
A150: AXISGOLD | B150: EQ | C150: 3969.9 | D150: 3989 | E150: 3925 | F150: 3973.3 | G150: 3983 | H150: 3919.55 | I150: 701 | J150: 2769851.6 | K150: 2020-04-08 | L150: 206 | M150: INF846K01347
A151: AXISNIFTY | B151: EQ | C151: 1000.01 | D151: 1000.01 | E151: 1000.01 | F151: 1000.01 | G151: 1000.01 | H151: 1007 | I151: 2 | J151: 2000.02 | K151: 2020-04-08 | L151: 1 | M151: INF846K01ZL0
A152: AYMSYNTEX | B152: EQ | C152: 15.5 | D152: 16.8 | E152: 15.5 | F152: 16.5 | G152: 16.5 | H152: 16.1 | I152: 2637 | J152: 43548.55 | K152: 2020-04-08 | L152: 26 | M152: INE193B01039
A153: BAFNAPH | B153: EQ | C153: 16.05 | D153: 16.05 | E153: 16.05 | F153: 16.05 | G153: 16.05 | H153: 15.3 | I153: 272 | J153: 4365.6 | K153: 2020-04-08 | L153: 8 | M153: INE878I01022
A154: BAGFILMS | B154: BE | C154: 1.75 | D154: 1.8 | E154: 1.75 | F154: 1.8 | G154: 1.8 | H154: 1.75 | I154: 3861 | J154: 6912.3 | K154: 2020-04-08 | L154: 20 | M154: INE116D01028
A155: BAJAJ-AUTO | B155: EQ | C155: 2180 | D155: 2383.45 | E155: 2168.55 | F155: 2241.7 | G155: 2260 | H155: 2280.05 | I155: 840875 | J155: 1933266167 | K155: 2020-04-08 | L155: 59866 | M155: INE917I01010
A156: BAJAJCON | B156: EQ | C156: 136 | D156: 148.65 | E156: 135.1 | F156: 137.95 | G156: 138 | H156: 138.15 | I156: 1031633 | J156: 145711259.1 | K156: 2020-04-08 | L156: 26102 | M156: INE933K01021
A157: BAJAJELEC | B157: EQ | C157: 277.3 | D157: 294.5 | E157: 277.3 | F157: 287.8 | G157: 289 | H157: 277.3 | I157: 58251 | J157: 16797537.55 | K157: 2020-04-08 | L157: 3821 | M157: INE193E01025
A158: BAJAJFINSV | B158: EQ | C158: 4575 | D158: 4950 | E158: 4537.8 | F158: 4608.5 | G158: 4604 | H158: 4724.9 | I158: 1113057 | J158: 5259493342 | K158: 2020-04-08 | L158: 158158 | M158: INE918I01018
A159: BAJAJHIND | B159: EQ | C159: 3.05 | D159: 3.05 | E159: 3.05 | F159: 3.05 | G159: 3.05 | H159: 2.95 | I159: 80900 | J159: 246745 | K159: 2020-04-08 | L159: 110 | M159: INE306A01021
A160: BAJAJHLDNG | B160: EQ | C160: 2027.95 | D160: 2073.85 | E160: 1925 | F160: 2024.75 | G160: 2025 | H160: 1978.9 | I160: 25453 | J160: 51363834.45 | K160: 2020-04-08 | L160: 6198 | M160: INE118A01012
A161: BAJFINANCE | B161: EQ | C161: 2184 | D161: 2374 | E161: 2144.15 | F161: 2332.9 | G161: 2329 | H161: 2253.35 | I161: 9109346 | J161: 2.088826331e+10 | K161: 2020-04-08 | L161: 516967 | M161: INE296A01024
A162: BALAJITELE | B162: EQ | C162: 43 | D162: 45 | E162: 40.8 | F162: 41.9 | G162: 42.15 | H162: 43.75 | I162: 194912 | J162: 8414452.4 | K162: 2020-04-08 | L162: 1677 | M162: INE794B01026
A163: BALAMINES | B163: EQ | C163: 277 | D163: 296 | E163: 260.4 | F163: 283.65 | G163: 284.45 | H163: 271.2 | I163: 70594 | J163: 20058887.5 | K163: 2020-04-08 | L163: 2337 | M163: INE050E01027
A164: BALAXI | B164: BE | C164: 82.7 | D164: 82.7 | E164: 75.05 | F164: 79.9 | G164: 79.9 | H164: 79 | I164: 1047 | J164: 78761.9 | K164: 2020-04-08 | L164: 24 | M164: INE618N01014
A165: BALKRISHNA | B165: EQ | C165: 8.6 | D165: 8.8 | E165: 8.35 | F165: 8.8 | G165: 8.8 | H165: 8.4 | I165: 7860 | J165: 67624.35 | K165: 2020-04-08 | L165: 49 | M165: INE875R01011
A166: BALKRISIND | B166: EQ | C166: 822 | D166: 862 | E166: 815 | F166: 821.35 | G166: 818.3 | H166: 823.55 | I166: 444079 | J166: 371870250.3 | K166: 2020-04-08 | L166: 24462 | M166: INE787D01026
A167: BALLARPUR | B167: EQ | C167: 0.4 | D167: 0.4 | E167: 0.3 | F167: 0.35 | G167: 0.35 | H167: 0.35 | I167: 9769871 | J167: 3419941.15 | K167: 2020-04-08 | L167: 514 | M167: INE294A01037
A168: BALMLAWRIE | B168: EQ | C168: 84 | D168: 87.9 | E168: 81 | F168: 84.75 | G168: 85.65 | H168: 85.5 | I168: 202053 | J168: 17357055.25 | K168: 2020-04-08 | L168: 3105 | M168: INE164A01016
A169: BALPHARMA | B169: EQ | C169: 38.9 | D169: 41.7 | E169: 38.9 | F169: 41.7 | G169: 41.7 | H169: 37.95 | I169: 40933 | J169: 1688199.5 | K169: 2020-04-08 | L169: 518 | M169: INE083D01012
A170: BALRAMCHIN | B170: EQ | C170: 123.85 | D170: 126.4 | E170: 123 | F170: 126.4 | G170: 126.4 | H170: 120.4 | I170: 642515 | J170: 80884980.2 | K170: 2020-04-08 | L170: 7125 | M170: INE119A01028
A171: BANARBEADS | B171: EQ | C171: 30.25 | D171: 32.5 | E171: 29.6 | F171: 29.75 | G171: 29.75 | H171: 31.5 | I171: 160 | J171: 4873.85 | K171: 2020-04-08 | L171: 26 | M171: INE655B01011
A172: BANARISUG | B172: EQ | C172: 900 | D172: 925 | E172: 880 | F172: 886.1 | G172: 880 | H172: 893.1 | I172: 410 | J172: 368979.1 | K172: 2020-04-08 | L172: 94 | M172: INE459A01010
A173: BANCOINDIA | B173: EQ | C173: 65.45 | D173: 67.5 | E173: 64.1 | F173: 65.95 | G173: 66 | H173: 65.45 | I173: 40062 | J173: 2654130.6 | K173: 2020-04-08 | L173: 1013 | M173: INE213C01025
A174: BANDHANBNK | B174: EQ | C174: 167.95 | D174: 209.05 | E174: 167.5 | F174: 193.75 | G174: 195.25 | H174: 167.25 | I174: 30692919 | J174: 5833285762 | K174: 2020-04-08 | L174: 332020 | M174: INE545U01014
A175: BANG | B175: EQ | C175: 12.05 | D175: 13.1 | E175: 11.9 | F175: 13.1 | G175: 13.1 | H175: 12.5 | I175: 1590 | J175: 20489 | K175: 2020-04-08 | L175: 31 | M175: INE863I01016
A176: BANKBARODA | B176: EQ | C176: 48 | D176: 51.5 | E176: 47.3 | F176: 48.35 | G176: 48.45 | H176: 48.15 | I176: 27159204 | J176: 1340103716 | K176: 2020-04-08 | L176: 77070 | M176: INE028A01039
A177: BANKBEES | B177: EQ | C177: 190 | D177: 205.4 | E177: 186.06 | F177: 191.28 | G177: 191.4 | H177: 192.12 | I177: 676832 | J177: 131368353.2 | K177: 2020-04-08 | L177: 10023 | M177: INF204KB15I9
A178: BANKINDIA | B178: EQ | C178: 32.7 | D178: 34.75 | E178: 32.5 | F178: 33.35 | G178: 33.25 | H178: 32.95 | I178: 1236627 | J178: 41574499.75 | K178: 2020-04-08 | L178: 6257 | M178: INE084A01016
A179: BANSWRAS | B179: EQ | C179: 77.4 | D179: 77.4 | E179: 70.2 | F179: 71.15 | G179: 70.2 | H179: 73.75 | I179: 22922 | J179: 1667255.55 | K179: 2020-04-08 | L179: 137 | M179: INE629D01012
A180: BASF | B180: EQ | C180: 1154 | D180: 1154 | E180: 1105 | F180: 1119.95 | G180: 1120.5 | H180: 1138.25 | I180: 26139 | J180: 29425244.35 | K180: 2020-04-08 | L180: 2640 | M180: INE373A01013
A181: BASML | B181: EQ | C181: 74.05 | D181: 84 | E181: 74.05 | F181: 80 | G181: 80 | H181: 78.7 | I181: 1648 | J181: 135366.45 | K181: 2020-04-08 | L181: 154 | M181: INE186H01014
A182: BATAINDIA | B182: EQ | C182: 1246.5 | D182: 1339 | E182: 1228 | F182: 1240.05 | G182: 1238.95 | H182: 1246.4 | I182: 1346088 | J182: 1726485633 | K182: 2020-04-08 | L182: 66274 | M182: INE176A01028
A183: BAYERCROP | B183: EQ | C183: 3500 | D183: 3946.6 | E183: 3499.3 | F183: 3818.15 | G183: 3772.15 | H183: 3510 | I183: 32833 | J183: 125437264 | K183: 2020-04-08 | L183: 6737 | M183: INE462A01022
A184: BBL | B184: EQ | C184: 590 | D184: 621.25 | E184: 590 | F184: 613.05 | G184: 621.25 | H184: 589.55 | I184: 9335 | J184: 5684085.45 | K184: 2020-04-08 | L184: 804 | M184: INE464A01028
A185: BBTC | B185: EQ | C185: 810 | D185: 854.3 | E185: 774 | F185: 784.2 | G185: 787.95 | H185: 788.4 | I185: 76612 | J185: 62014517.65 | K185: 2020-04-08 | L185: 5281 | M185: INE050A01025
A186: BCG | B186: EQ | C186: 3.6 | D186: 3.65 | E186: 3.55 | F186: 3.65 | G186: 3.65 | H186: 3.5 | I186: 305718 | J186: 1113234.95 | K186: 2020-04-08 | L186: 149 | M186: INE425B01027
A187: BCP | B187: EQ | C187: 10.75 | D187: 10.75 | E187: 10.5 | F187: 10.75 | G187: 10.75 | H187: 10.25 | I187: 8192 | J187: 87934.6 | K187: 2020-04-08 | L187: 28 | M187: INE905P01028
A188: BDL | B188: EQ | C188: 191 | D188: 229 | E188: 188.2 | F188: 218.2 | G188: 216.4 | H188: 191.4 | I188: 448405 | J188: 97968192.25 | K188: 2020-04-08 | L188: 13672 | M188: INE171Z01018
A189: BEARDSELL | B189: EQ | C189: 6.7 | D189: 7.3 | E189: 6.7 | F189: 7.3 | G189: 7.3 | H189: 7.05 | I189: 1250 | J189: 8417 | K189: 2020-04-08 | L189: 4 | M189: INE520H01022
A190: BEDMUTHA | B190: EQ | C190: 12.8 | D190: 13.05 | E190: 12.45 | F190: 12.45 | G190: 12.45 | H190: 13.1 | I190: 19584 | J190: 245429.15 | K190: 2020-04-08 | L190: 32 | M190: INE844K01012
A191: BEL | B191: EQ | C191: 69 | D191: 71.3 | E191: 65.1 | F191: 66.4 | G191: 66.5 | H191: 69 | I191: 16699885 | J191: 1138705070 | K191: 2020-04-08 | L191: 69587 | M191: INE263A01024
A192: BEML | B192: EQ | C192: 492 | D192: 523.5 | E192: 492 | F192: 503.6 | G192: 503 | H192: 475.95 | I192: 890527 | J192: 458689246.6 | K192: 2020-04-08 | L192: 23670 | M192: INE258A01016
A193: BEPL | B193: EQ | C193: 31 | D193: 32.75 | E193: 30.3 | F193: 31.25 | G193: 31.6 | H193: 30.25 | I193: 333595 | J193: 10578641.1 | K193: 2020-04-08 | L193: 3321 | M193: INE922A01025
A194: BERGEPAINT | B194: EQ | C194: 479.9 | D194: 487.65 | E194: 460 | F194: 463.5 | G194: 462 | H194: 479.2 | I194: 1729062 | J194: 817908730.6 | K194: 2020-04-08 | L194: 32950 | M194: INE463A01038
A195: BFINVEST | B195: EQ | C195: 258 | D195: 268.8 | E195: 244.6 | F195: 246.3 | G195: 248.95 | H195: 257.45 | I195: 4938 | J195: 1236639.95 | K195: 2020-04-08 | L195: 244 | M195: INE878K01010
A196: BFUTILITIE | B196: EQ | C196: 158.35 | D196: 158.35 | E196: 151.05 | F196: 154.05 | G196: 153.7 | H196: 150.85 | I196: 138134 | J196: 21700813.75 | K196: 2020-04-08 | L196: 1649 | M196: INE243D01012
A197: BGRENERGY | B197: EQ | C197: 22.1 | D197: 22.85 | E197: 20.95 | F197: 21.1 | G197: 21.15 | H197: 22.2 | I197: 172282 | J197: 3763089.75 | K197: 2020-04-08 | L197: 1108 | M197: INE661I01014
A198: BHAGERIA | B198: EQ | C198: 85 | D198: 91.05 | E198: 80.65 | F198: 81.6 | G198: 82.3 | H198: 84.2 | I198: 34795 | J198: 2944870.7 | K198: 2020-04-08 | L198: 925 | M198: INE354C01027
A199: BHAGYANGR | B199: EQ | C199: 14.05 | D199: 15.2 | E199: 14 | F199: 14.4 | G199: 14.4 | H199: 14.4 | I199: 1338 | J199: 19622.25 | K199: 2020-04-08 | L199: 50 | M199: INE458B01036
A200: BHAGYAPROP | B200: EQ | C200: 18 | D200: 20 | E200: 18 | F200: 20 | G200: 20 | H200: 19 | I200: 999 | J200: 19011 | K200: 2020-04-08 | L200: 5 | M200: INE363W01018
... 1470 more rows

Sheet Sheet1 (hidden)

Sheet Sheet3 (hidden)

Sheet Sheet4 (hidden)

Sheet Sheet5 (hidden)
